{"text_format":"1","workbook":"xlsx","n_sheets":12,"sheets":["Cover","Navigator","Style Guide","Model Parameters","Hierarchical Data Validation","Interdependent Data Validation","Data","Quarter Data Validation","Division Data Validation","Unit No Data Validation","Manager Data Validation","Error Checks"],"not_rendered":{"charts":0,"images":1,"macros":1,"external_links":0,"defined_names":40,"comments":0,"pivot_tables":0},"unopened":[],"bounds":{"document_bytes":16777216,"sheet_cells":100000,"rows_first":2000,"rows_last":500,"rows_between":2000,"halvings":0,"cell_chars":16384,"cell_head_chars":4096},"cells_cut":0,"cells_raw":0,"read":"whole","date_system":"1900"}

{"sheet":"Cover","index":0,"n_rows":22,"n_cols":7,"rows_kept":22,"cut":false,"hidden":false,"merged":[[16,2,16,9],[17,2,17,9],[20,6,20,8],[21,6,21,8]]}
[]
[]
["Navigator"]
[]
[null,null,{"$f":"Client_Name","v":"SumProduct Pty Limited"}]
[null,null,{"$f":"Model_Name","v":"SP Examples of Dependent Data Validation.xlsm"}]
[]
[]
[]
[]
[]
[]
[]
[null,null,"Primary Developer:  Liam Bastick"]
[]
[null,null,"General Cover Notes:"]
[null,null,"This requires Excel 365 to work."]
[]
[]
[]
[null,null,"Any queries, please e-mail:",null,null,null,"liam.bastick@sumproduct.com"]
[null,null,"Website:",null,null,null,"www.sumproduct.com"]

{"sheet":"Navigator","index":1,"n_rows":19,"n_cols":7,"rows_kept":19,"cut":false,"hidden":false,"merged":[]}
["Navigator"]
[{"$f":"Model_Name","v":"SP Examples of Dependent Data Validation.xlsm"}]
["Navigator"]
[null,null,null,null,"Error Checks:",null,{"$f":"Overall_Error_Check","v":0}]
[]
[]
[null,1,"Table of Contents"]
[]
[null,null,null,null,null,"Cover"]
[null,null,null,null,null,"Style Guide"]
[null,null,null,null,null,"Model Parameters"]
[null,null,null,null,null,"Hierarchical Data Validation"]
[null,null,null,null,null,"Interdependent Data Validation"]
[null,null,null,null,null,"Data"]
[null,null,null,null,null,"Quarter Data Validation"]
[null,null,null,null,null,"Division Data Validation"]
[null,null,null,null,null,"Unit No Data Validation"]
[null,null,null,null,null,"Manager Data Validation"]
[null,null,null,null,null,"Error Checks"]

{"sheet":"Style Guide","index":2,"n_rows":74,"n_cols":11,"rows_kept":74,"cut":false,"hidden":false,"merged":[[16,2,16,6],[2,0,2,4],[7,2,7,6],[8,2,8,6],[9,2,9,6],[10,2,10,6],[11,2,11,6],[12,2,12,6],[13,2,13,6],[14,2,14,6],[15,2,15,6],[34,2,34,6],[17,2,17,6],[18,2,18,6],[19,2,19,6],[24,2,24,6],[25,2,25,6],[26,2,26,6],[27,2,27,6],[28,2,28,6],[29,2,29,6],[30,2,30,6],[31,2,31,6],[46,2,46,6],[35,2,35,6],[36,2,36,6],[37,2,37,6],[38,2,38,6],[39,2,39,6],[40,2,40,6],[41,2,41,6],[42,2,42,6],[43,2,43,6],[44,2,44,6],[45,2,45,6],[61,2,61,6],[47,2,47,6],[48,2,48,6],[49,2,49,6],[50,2,50,6],[51,2,51,6],[52,2,52,6],[53,2,53,6],[54,2,54,6],[57,2,57,6],[59,2,59,6],[60,2,60,6],[73,2,73,6],[62,2,62,6],[63,2,63,6],[64,2,64,6],[65,2,65,6],[66,2,66,6],[67,2,67,6],[68,2,68,6],[69,2,69,6],[70,2,70,6],[71,2,71,6],[72,2,72,6],[80,2,80,6],[74,2,74,6],[75,2,75,6],[76,2,76,6],[77,2,77,6],[78,2,78,6],[79,2,79,6]]}
[{"$f":"IF(ISERROR(RIGHT(CELL(\"filename\",A1),LEN(CELL(\"filename\",A1))-FIND(\"]\",CELL(\"filename\",A1)))),\n\"\",\nRIGHT(CELL(\"filename\",A1),LEN(CELL(\"filename\",A1))-FIND(\"]\",CELL(\"filename\",A1))))","v":"Style Guide"}]
[{"$f":"Model_Name","v":"SP Examples of Dependent Data Validation.xlsm"}]
["Navigator"]
[null,null,null,null,"Error Checks:",null,null,null,{"$f":"Overall_Error_Check","v":0}]
[]
[null,{"$f":"MAX($B$5:$B5)+1","v":1},"Formatting of Headers / Dividers"]
[]
[null,null,"Description",null,null,null,null,null,"Display",null,"Style Name"]
[]
[null,null,"Sheet Title",null,null,null,null,null,{"$f":"C10","v":"Sheet Title"},null,"Sheet Title"]
[null,null,"Model Name",null,null,null,null,null,{"$f":"C11","v":"Model Name"},null,"Model Name"]
[]
[null,null,"Header 1",null,null,null,null,null,{"$f":"C13","v":"Header 1"},null,"Header 1"]
[null,null,"Header 2",null,null,null,null,null,{"$f":"C14","v":"Header 2"},null,"Header 2"]
[null,null,"Header 3",null,null,null,null,null,{"$f":"C15","v":"Header 3"},null,"Header 3"]
[null,null,"Header 4",null,null,null,null,null,{"$f":"C16","v":"Header 4"},null,"Header 4"]
[]
[null,null,"Notes",null,null,null,null,null,{"$f":"C18","v":"Notes"},null,"Notes"]
[]
[null,null,"Table Heading",null,null,null,null,null,{"$f":"C20","v":"Table Heading"},null,"Table Heading"]
[]
[]
[null,{"$f":"MAX($B$5:$B22)+1","v":2},"Individual Cell Styles"]
[]
[null,null,"Description",null,null,null,null,null,"Display",null,"Style Name"]
[]
[null,null,"Assumption",null,null,null,null,null,"Assumption",null,{"$f":"C27","v":"Assumption"}]
[]
[null,null,"Constraint",null,null,null,null,null,{"$f":"C29","v":"Constraint"},null,{"$f":"C29","v":"Constraint"}]
[]
[null,null,"Empty",null,null,null,null,null,null,null,{"$f":"C31","v":"Empty"}]
[]
[null,null,"Error Check",null,null,null,null,null,0,null,{"$f":"C33","v":"Error Check"}]
[]
[null,null,"Hyperlink",null,null,null,null,null,"Hyperlink",null,{"$f":"C35","v":"Hyperlink"}]
[]
[null,null,"Internal Reference",null,null,null,null,null,{"$f":"'Error Checks'!E12","v":"Hierarchical Data Validation OK"},null,{"$f":"C37","v":"Internal Reference"}]
[]
[null,null,"Line Calculation",null,null,null,null,null,77,null,"Line Calc"]
[]
[null,null,"Line Total",null,null,null,null,null,{"$f":"I39","v":77},null,{"$f":"C41","v":"Line Total"}]
[]
[null,null,"Parameter",null,null,null,null,null,365,null,{"$f":"C43","v":"Parameter"}]
[]
[null,null,"Range Name Description",null,null,null,null,null,"Not_Named",null,{"$f":"C45","v":"Range Name Description"}]
[]
[null,null,"Row Reference",null,null,null,null,null,{"$f":"ROW(C47)","v":47},null,"Row Ref"]
[]
[null,null,"Row Summary",null,null,null,null,null,{"$f":"I41","v":77},null,{"$f":"C49","v":"Row Summary"}]
[]
[null,null,"Units",null,null,null,null,null,"A$",null,{"$f":"C51","v":"Units"}]
[]
[null,null,"WIP",null,null,null,null,null,null,null,{"$f":"C53","v":"WIP"}]
[]
[]
[null,{"$f":"MAX($B$5:$B55)+1","v":3},"Numerical Styles"]
[]
[null,null,"Description",null,null,null,null,null,"Display",null,"Style Name"]
[]
[null,null,"Comma",null,null,null,null,null,123456.789,null,{"$f":"C60","v":"Comma"}]
[]
[null,null,"Comma [0]",null,null,null,null,null,-123456.789,null,"Comma [0]"]
[]
[null,null,"Currency",null,null,null,null,null,123456.789,null,"Currency"]
[]
[null,null,"Currency [0]",null,null,null,null,null,123456.789,null,"Currency [0]"]
[]
[null,null,"Date",null,null,null,null,null,{"$f":"TODAY()","v":"2021-09-13"},null,{"$f":"C68","v":"Date"}]
[]
[null,null,"Date Heading",null,null,null,null,null,{"$f":"TODAY()","v":"2021-09-13"},null,{"$f":"C70","v":"Date Heading"}]
[]
[null,null,"Numbers 0",null,null,null,null,null,-123456.789,null,{"$f":"C72","v":"Numbers 0"}]
[]
[null,null,"Percent",null,null,null,null,null,0.5,null,{"$f":"C74","v":"Percent"}]

{"sheet":"Model Parameters","index":3,"n_rows":31,"n_cols":9,"rows_kept":31,"cut":false,"hidden":false,"merged":[[0,9,0,10],[2,0,2,4],[10,6,10,13],[11,6,11,13]]}
[{"$f":"IF(ISERROR(RIGHT(CELL(\"filename\",A1),LEN(CELL(\"filename\",A1))-FIND(\"]\",CELL(\"filename\",A1)))),\n\"\",\nRIGHT(CELL(\"filename\",A1),LEN(CELL(\"filename\",A1))-FIND(\"]\",CELL(\"filename\",A1))))","v":"Model Parameters"}]
[{"$f":"Model_Name","v":"SP Examples of Dependent Data Validation.xlsm"}]
["Navigator"]
[null,null,null,null,"Error Checks:",null,null,null,{"$f":"Overall_Error_Check","v":0}]
[]
[null,{"$f":"MAX($B$5:$B5)+1","v":1},"General"]
[]
[null,null,"Key Inputs"]
[]
[null,null,null,null,"General"]
[null,null,null,null,"Model Name",null,{"$f":"IF(ISERROR(OR(FIND(\"[\",CELL(\"filename\",A1)),FIND(\"]\",CELL(\"filename\",A1)))),\"\",MID(CELL(\"filename\",A1),FIND(\"[\",CELL(\"filename\",A1))+1,FIND(\"]\",CELL(\"filename\",A1))-FIND(\"[\",CELL(\"filename\",A1))-1))","v":"SP Examples of Dependent Data Validation.xlsm"}]
[null,null,null,null,"Client Name",null,"SumProduct Pty Limited"]
[]
[]
[null,{"$f":"MAX($B$5:$B14)+1","v":2},"General Range Names"]
[]
[null,null,"Technical Assumptions"]
[]
[null,null,null,null,"Days in Year",null,365]
[null,null,null,null,"Months in Month",null,1]
[null,null,null,null,"Months in Quarter",null,3]
[null,null,null,null,"Months in Half Yr",null,6]
[null,null,null,null,"Months in Year",null,12]
[null,null,null,null,"Quarters in Year",null,4]
[]
[null,null,null,null,"Rounding Accuracy",null,5]
[]
[null,null,null,null,"Very Large Number",null,9.9999999999999997E+98]
[null,null,null,null,"Very Small Number",null,1E-8]
[]
[null,null,null,null,"Thousand",null,1000]

{"sheet":"Hierarchical Data Validation","index":4,"n_rows":37,"n_cols":10,"rows_kept":37,"cut":false,"hidden":false,"merged":[[2,0,2,4]]}
[{"$f":"IF(ISERROR(RIGHT(CELL(\"filename\",A1),LEN(CELL(\"filename\",A1))-FIND(\"]\",CELL(\"filename\",A1)))),\n\"\",\nRIGHT(CELL(\"filename\",A1),LEN(CELL(\"filename\",A1))-FIND(\"]\",CELL(\"filename\",A1))))","v":"Hierarchical Data Validation"}]
[{"$f":"Model_Name","v":"SP Examples of Dependent Data Validation.xlsm"}]
["Navigator"]
[null,null,null,null,"Error Checks:",null,null,null,{"$f":"Overall_Error_Check","v":0}]
[]
[null,{"$f":"MAX($B$5:$B5)+1","v":1},"Source Data"]
[]
[null,null,"Assumptions"]
[]
[null,null,null,{"$f":"\"For Use with \"&A1","v":"For Use with Hierarchical Data Validation"}]
[]
[null,null,null,null,null,"Income_Statement","Balance_Sheet","Cash_Flow_Statement",null,"Financial_Statements"]
[null,null,null,null,null,"Revenue","Current Assets","Operating Cash Flow"]
[null,null,null,null,null,"COGS","Non-Current Assets","Investing Cash Flow"]
[null,null,null,null,null,"Gross Profit","Total Assets","Financing Cash Flow"]
[null,null,null,null,null,"Opex","Current Liabilities","Total Cash Flow"]
[null,null,null,null,null,"EBITDA","Non-Current Liabilities"]
[null,null,null,null,null,"Depreciation","Total Liabilities"]
[null,null,null,null,null,"EBIT","Net Assets"]
[null,null,null,null,null,"Interest","Shareholder Equity"]
[null,null,null,null,null,"NPBT","Retained Profits"]
[null,null,null,null,null,"Tax Expense","Total Equity"]
[null,null,null,null,null,"NPAT"]
[]
[null,null,null,null,null,{"$f":"F12","v":"Income_Statement"},{"$f":"G12","v":"Balance_Sheet"},"Cash_Flow_Statement"]
[]
[]
[null,{"$f":"MAX($B$5:$B27)+1","v":2},{"$f":"A1","v":"Hierarchical Data Validation"}]
[]
[null,null,"Example"]
[]
[null,null,null,"Make Selections IN ORDER"]
[]
[null,null,null,null,null,"Financial Statement","Balance_Sheet"]
[null,null,null,null,null,"Classification","Current Liabilities"]
[]
[null,null,null,null,null,"Check",{"$f":"IF(OR(G34=\"\",G35=\"\"),0,(COUNTIF(INDIRECT(G34),G35)<>1)*1)","v":0},null,null,"HL_Hierarchical_Data_Validation_OK"]

{"sheet":"Interdependent Data Validation","index":5,"n_rows":22,"n_cols":11,"rows_kept":22,"cut":false,"hidden":false,"merged":[[2,0,2,4]]}
[{"$f":"IF(ISERROR(RIGHT(CELL(\"filename\",A1),LEN(CELL(\"filename\",A1))-FIND(\"]\",CELL(\"filename\",A1)))),\n\"\",\nRIGHT(CELL(\"filename\",A1),LEN(CELL(\"filename\",A1))-FIND(\"]\",CELL(\"filename\",A1))))","v":"Interdependent Data Validation"}]
[{"$f":"Model_Name","v":"SP Examples of Dependent Data Validation.xlsm"}]
["Navigator"]
[null,null,null,null,"Error Checks:",null,null,{"$f":"Overall_Error_Check","v":0}]
[]
[null,{"$f":"MAX($B$5:$B5)+1","v":1},"Example"]
[]
[null,null,"For Calculation"]
[]
[null,null,null,{"$f":"A1","v":"Interdependent Data Validation"}]
[]
[null,null,null,{"$f":"(MIN(D13:D22)=0)*1","v":0},"#",{"$f":"Data[[#Headers],[Quarter]]","v":"Quarter"},{"$f":"Data[[#Headers],[Division]]","v":"Division"},{"$f":"Data[[#Headers],[Unit No]]","v":"Unit No"},{"$f":"Data[[#Headers],[Manager]]","v":"Manager"},{"$f":"Data[[#Headers],[Sales Invoiced]]","v":"Sales Invoiced"},{"$f":"Data[[#Headers],[Sales Received]]","v":"Sales Received"}]
[null,null,null,{"$f":"IF(OR(F13=\"\",G13=\"\",H13=\"\",I13=\"\"),1,COUNTIFS(Data[Quarter],$F13,Data[Division],$G13,Data[Unit No],$H13,Data[Manager],$I13))","v":1},{"$f":"N($E12)+1","v":1},1,"Alpha",5,"Erin Johns",{"$f":"SUMIFS(Data[Sales Invoiced],Data[Quarter],$F13,Data[Division],$G13,Data[Unit No],$H13,Data[Manager],$I13)","v":951.64},{"$f":"SUMIFS(Data[Sales Received],Data[Quarter],$F13,Data[Division],$G13,Data[Unit No],$H13,Data[Manager],$I13)","v":951.64}]
[null,null,null,{"$f":"IF(OR(F14=\"\",G14=\"\",H14=\"\",I14=\"\"),1,COUNTIFS(Data[Quarter],$F14,Data[Division],$G14,Data[Unit No],$H14,Data[Manager],$I14))","v":1},{"$f":"N($E13)+1","v":2},3,"Kilo",55,"Ishaan Hardy",{"$f":"SUMIFS(Data[Sales Invoiced],Data[Quarter],$F14,Data[Division],$G14,Data[Unit No],$H14,Data[Manager],$I14)","v":901},{"$f":"SUMIFS(Data[Sales Received],Data[Quarter],$F14,Data[Division],$G14,Data[Unit No],$H14,Data[Manager],$I14)","v":901}]
[null,null,null,{"$f":"IF(OR(F15=\"\",G15=\"\",H15=\"\",I15=\"\"),1,COUNTIFS(Data[Quarter],$F15,Data[Division],$G15,Data[Unit No],$H15,Data[Manager],$I15))","v":1},3,3,"Papa",76,"Carter Obrien",{"$f":"SUMIFS(Data[Sales Invoiced],Data[Quarter],$F15,Data[Division],$G15,Data[Unit No],$H15,Data[Manager],$I15)","v":845.4},{"$f":"SUMIFS(Data[Sales Received],Data[Quarter],$F15,Data[Division],$G15,Data[Unit No],$H15,Data[Manager],$I15)","v":845.4}]
[null,null,null,{"$f":"IF(OR(F16=\"\",G16=\"\",H16=\"\",I16=\"\"),1,COUNTIFS(Data[Quarter],$F16,Data[Division],$G16,Data[Unit No],$H16,Data[Manager],$I16))","v":1},4,null,null,null,null,{"$f":"SUMIFS(Data[Sales Invoiced],Data[Quarter],$F16,Data[Division],$G16,Data[Unit No],$H16,Data[Manager],$I16)","v":0},{"$f":"SUMIFS(Data[Sales Received],Data[Quarter],$F16,Data[Division],$G16,Data[Unit No],$H16,Data[Manager],$I16)","v":0}]
[null,null,null,{"$f":"IF(OR(F17=\"\",G17=\"\",H17=\"\",I17=\"\"),1,COUNTIFS(Data[Quarter],$F17,Data[Division],$G17,Data[Unit No],$H17,Data[Manager],$I17))","v":1},5,null,null,null,null,{"$f":"SUMIFS(Data[Sales Invoiced],Data[Quarter],$F17,Data[Division],$G17,Data[Unit No],$H17,Data[Manager],$I17)","v":0},{"$f":"SUMIFS(Data[Sales Received],Data[Quarter],$F17,Data[Division],$G17,Data[Unit No],$H17,Data[Manager],$I17)","v":0}]
[null,null,null,{"$f":"IF(OR(F18=\"\",G18=\"\",H18=\"\",I18=\"\"),1,COUNTIFS(Data[Quarter],$F18,Data[Division],$G18,Data[Unit No],$H18,Data[Manager],$I18))","v":1},6,null,null,null,null,{"$f":"SUMIFS(Data[Sales Invoiced],Data[Quarter],$F18,Data[Division],$G18,Data[Unit No],$H18,Data[Manager],$I18)","v":0},{"$f":"SUMIFS(Data[Sales Received],Data[Quarter],$F18,Data[Division],$G18,Data[Unit No],$H18,Data[Manager],$I18)","v":0}]
[null,null,null,{"$f":"IF(OR(F19=\"\",G19=\"\",H19=\"\",I19=\"\"),1,COUNTIFS(Data[Quarter],$F19,Data[Division],$G19,Data[Unit No],$H19,Data[Manager],$I19))","v":1},7,null,null,null,null,{"$f":"SUMIFS(Data[Sales Invoiced],Data[Quarter],$F19,Data[Division],$G19,Data[Unit No],$H19,Data[Manager],$I19)","v":0},{"$f":"SUMIFS(Data[Sales Received],Data[Quarter],$F19,Data[Division],$G19,Data[Unit No],$H19,Data[Manager],$I19)","v":0}]
[null,null,null,{"$f":"IF(OR(F20=\"\",G20=\"\",H20=\"\",I20=\"\"),1,COUNTIFS(Data[Quarter],$F20,Data[Division],$G20,Data[Unit No],$H20,Data[Manager],$I20))","v":1},8,null,null,null,null,{"$f":"SUMIFS(Data[Sales Invoiced],Data[Quarter],$F20,Data[Division],$G20,Data[Unit No],$H20,Data[Manager],$I20)","v":0},{"$f":"SUMIFS(Data[Sales Received],Data[Quarter],$F20,Data[Division],$G20,Data[Unit No],$H20,Data[Manager],$I20)","v":0}]
[null,null,null,{"$f":"IF(OR(F21=\"\",G21=\"\",H21=\"\",I21=\"\"),1,COUNTIFS(Data[Quarter],$F21,Data[Division],$G21,Data[Unit No],$H21,Data[Manager],$I21))","v":1},9,null,null,null,null,{"$f":"SUMIFS(Data[Sales Invoiced],Data[Quarter],$F21,Data[Division],$G21,Data[Unit No],$H21,Data[Manager],$I21)","v":0},{"$f":"SUMIFS(Data[Sales Received],Data[Quarter],$F21,Data[Division],$G21,Data[Unit No],$H21,Data[Manager],$I21)","v":0}]
[null,null,null,{"$f":"IF(OR(F22=\"\",G22=\"\",H22=\"\",I22=\"\"),1,COUNTIFS(Data[Quarter],$F22,Data[Division],$G22,Data[Unit No],$H22,Data[Manager],$I22))","v":1},10,null,null,null,null,{"$f":"SUMIFS(Data[Sales Invoiced],Data[Quarter],$F22,Data[Division],$G22,Data[Unit No],$H22,Data[Manager],$I22)","v":0},{"$f":"SUMIFS(Data[Sales Received],Data[Quarter],$F22,Data[Division],$G22,Data[Unit No],$H22,Data[Manager],$I22)","v":0}]

{"sheet":"Data","index":6,"n_rows":2012,"n_cols":11,"rows_kept":2012,"cut":false,"hidden":false,"merged":[[2,0,2,4]]}
[{"$f":"IF(ISERROR(RIGHT(CELL(\"filename\",A1),LEN(CELL(\"filename\",A1))-FIND(\"]\",CELL(\"filename\",A1)))),\n\"\",\nRIGHT(CELL(\"filename\",A1),LEN(CELL(\"filename\",A1))-FIND(\"]\",CELL(\"filename\",A1))))","v":"Data"}]
[{"$f":"Model_Name","v":"SP Examples of Dependent Data Validation.xlsm"}]
["Navigator"]
[null,null,null,null,"Error Checks:",null,null,{"$f":"Overall_Error_Check","v":0}]
[]
[null,{"$f":"MAX($B$5:$B5)+1","v":1},{"$f":"A1","v":"Data"}]
[]
[null,null,"Source Data"]
[]
[null,null,null,"Records Used for List"]
[]
[null,null,null,null,null,"Quarter","Division","Unit No","Manager","Sales Invoiced","Sales Received"]
[null,null,null,null,null,1,"Kilo",51,"Markus Benson",709.7,327.11]
[null,null,null,null,null,4,"Quebec",83,"Emery Estes",256.75,256.75]
[null,null,null,null,null,4,"Papa",78,"Frederick Knapp",887.86,502.24]
[null,null,null,null,null,1,"Uniform",103,"Christopher Bates",358.46,358.46]
[null,null,null,null,null,2,"Quebec",82,"Markus Benson",298.97000000000003,298.97000000000003]
[null,null,null,null,null,2,"X-Ray",118,"Brooke Ritter",358.01,358.01]
[null,null,null,null,null,2,"Echo",23,"Everett Gill",644.44000000000005,201.66]
[null,null,null,null,null,4,"Yankee",124,"Ishaan Hardy",863.55,586.96]
[null,null,null,null,null,1,"Kilo",55,"Karson Choi",218.41,157.81]
[null,null,null,null,null,2,"Oscar",74,"Morgan Rose",667.46,667.46]
[null,null,null,null,null,2,"Quebec",82,"Ellie Jensen",368.72,368.72]
[null,null,null,null,null,1,"Uniform",101,"Jasmine Newton",773.12,515.78]
[null,null,null,null,null,1,"November",69,"Declan Figueroa",591.91,338.27]
[null,null,null,null,null,4,"Tango",98,"Regina Freeman",340.49,264.91000000000003]
[null,null,null,null,null,1,"Whisky",111,"Sadie Pierce",288.79000000000002,288.79000000000002]
[null,null,null,null,null,2,"X-Ray",118,"Everett Gill",162.18,162.18]
[null,null,null,null,null,3,"Delta",17,"Stanley Gonzales",507.47,507.47]
[null,null,null,null,null,1,"Uniform",102,"Amber Spence",439.11,211.17]
[null,null,null,null,null,1,"India",41,"Enrique Lambert",629.94000000000005,246.77]
[null,null,null,null,null,4,"Echo",23,"Trystan Norton",524.48,209.33]
[null,null,null,null,null,4,"Tango",96,"Regina Freeman",665.72,195.6]
[null,null,null,null,null,1,"Alpha",1,"Allie Franklin",238,238]
[null,null,null,null,null,3,"Kilo",55,"Catalina Richards",166.56,166.56]
[null,null,null,null,null,4,"Zulu",129,"Everett Gill",880.04,655.22]
[null,null,null,null,null,1,"Hotel",37,"Douglas Barry",477.27,162.97]
[null,null,null,null,null,4,"Mike",62,"Akira Murray",982.17,349.79]
[null,null,null,null,null,4,"Lima",57,"Precious Guerrero",981.8,548.34]
[null,null,null,null,null,4,"Echo",23,"Precious Guerrero",486.17,486.17]
[null,null,null,null,null,3,"Delta",17,"Dixie Stanton",452.71,246.89]
[null,null,null,null,null,3,"Charlie",14,"Tyler Lynch",168.32,168.32]
[null,null,null,null,null,1,"Sierra",95,"Payton Horn",437.78,437.78]
[null,null,null,null,null,2,"Lima",56,"Sarai Kemp",288.44,288.44]
[null,null,null,null,null,3,"Yankee",125,"Raiden Shelton",590.67999999999995,590.67999999999995]
[null,null,null,null,null,4,"Sierra",91,"Kolton Elliott",210.24,210.24]
[null,null,null,null,null,2,"India",44,"Cristal York",222.95,222.95]
[null,null,null,null,null,4,"India",41,"Alejandra Clements",527.45000000000005,527.45000000000005]
[null,null,null,null,null,2,"Whisky",115,"Markus Benson",776.91,776.91]
[null,null,null,null,null,2,"Juliet",48,"Scarlett Calhoun",651.35,651.35]
[null,null,null,null,null,2,"Sierra",91,"Kolton Elliott",352.56,352.56]
[null,null,null,null,null,2,"Quebec",81,"Enrique Lambert",862.07,862.07]
[null,null,null,null,null,1,"Foxtrot",27,"Ingrid Parker",659.42,470.74]
[null,null,null,null,null,1,"Lima",59,"Dane Patton",120.98,120.98]
[null,null,null,null,null,3,"Romeo",88,"Allie Franklin",344.33,214.04]
[null,null,null,null,null,2,"Zulu",126,"Stephen Booth",749.69,749.69]
[null,null,null,null,null,3,"Kilo",53,"Ashanti Leblanc",180.04,126.62]
[null,null,null,null,null,4,"Yankee",121,"Akira Murray",812.57,812.57]
[null,null,null,null,null,3,"Tango",96,"Brooke Ritter",138.43,138.43]
[null,null,null,null,null,3,"Charlie",14,"Jacob Howell",196.92,196.92]
[null,null,null,null,null,1,"Kilo",52,"Tomas Suarez",243.13,243.13]
[null,null,null,null,null,4,"Hotel",40,"Carter Obrien",664.21,664.21]
[null,null,null,null,null,1,"Whisky",111,"Ari Hernandez",444.68,444.68]
[null,null,null,null,null,4,"Tango",96,"Pierre Cain",320.77999999999997,320.77999999999997]
[null,null,null,null,null,4,"November",70,"Regina Freeman",860.74,197.1]
[null,null,null,null,null,2,"Golf",34,"Jovan Solomon",715.73,715.73]
[null,null,null,null,null,2,"Hotel",36,"Emmett Esparza",343.75,343.75]
[null,null,null,null,null,3,"Kilo",54,"Jacob Howell",656.87,600.15]
[null,null,null,null,null,4,"November",69,"Pierre Cain",141.24,141.24]
[null,null,null,null,null,2,"Juliet",46,"Allie Franklin",632.96,632.96]
[null,null,null,null,null,2,"Lima",58,"Javier Meyers",704.58,193.96]
[null,null,null,null,null,4,"Kilo",53,"Jaylene Jones",314.01,314.01]
[null,null,null,null,null,1,"Golf",32,"Eileen Knox",479.03,479.03]
[null,null,null,null,null,4,"Oscar",73,"Javier Meyers",627.61,532.16999999999996]
[null,null,null,null,null,3,"Golf",31,"Douglas Barry",898.88,151.02000000000001]
[null,null,null,null,null,4,"Bravo",7,"Porter Leach",116.48,116.48]
[null,null,null,null,null,1,"Delta",19,"Brennan Campos",662.88,527.14]
[null,null,null,null,null,4,"Kilo",54,"Raiden Shelton",863.48,863.48]
[null,null,null,null,null,3,"Quebec",85,"Kennedy Christian",469.93,406.58]
[null,null,null,null,null,1,"Yankee",121,"Jasmine Newton",845.53,801.18]
[null,null,null,null,null,4,"Lima",60,"Dixie Stanton",273.94,273.94]
[null,null,null,null,null,1,"X-Ray",120,"Terrance Sampson",518.95000000000005,518.95000000000005]
[null,null,null,null,null,3,"Romeo",87,"Mariyah Randall",894.61,241.12]
[null,null,null,null,null,3,"Whisky",114,"Miya Miranda",277.37,277.37]
[null,null,null,null,null,2,"Tango",98,"Ellie Jensen",747.88,747.88]
[null,null,null,null,null,3,"Juliet",47,"Savanna Dixon",534.44000000000005,534.44000000000005]
[null,null,null,null,null,4,"Romeo",88,"Valentina Durham",399.32,399.32]
[null,null,null,null,null,4,"Tango",100,"Benjamin Bell",528.14,528.14]
[null,null,null,null,null,3,"Bravo",10,"Porter Leach",611.63,611.63]
[null,null,null,null,null,1,"Yankee",121,"America Choi",784.22,492.85]
[null,null,null,null,null,1,"Juliet",48,"Benjamin Bell",424.74,424.74]
[null,null,null,null,null,3,"Zulu",128,"Emery Estes",712.22,518.79999999999995]
[null,null,null,null,null,3,"Kilo",54,"Ashanti Leblanc",351.41,351.41]
[null,null,null,null,null,3,"November",68,"Everett Gill",569.45000000000005,424.99]
[null,null,null,null,null,1,"Lima",60,"Cruz Short",368.54,368.54]
[null,null,null,null,null,4,"Zulu",128,"Lizbeth Carrillo",227.36,227.36]
[null,null,null,null,null,1,"Uniform",104,"Shaniya Franklin",581.69000000000005,539.59]
[null,null,null,null,null,2,"Zulu",127,"Armando Hoover",438.66,325.45999999999998]
[null,null,null,null,null,2,"Hotel",37,"Rigoberto Bush",850.48,783.78]
[null,null,null,null,null,3,"Uniform",103,"Gilberto Yoder",944.27,844.14]
[null,null,null,null,null,3,"Charlie",13,"Tomas Suarez",198.2,198.2]
[null,null,null,null,null,1,"Bravo",10,"Everett Gill",120.1,120.1]
[null,null,null,null,null,4,"Kilo",52,"Dane Patton",218.29,218.29]
[null,null,null,null,null,3,"Foxtrot",26,"Akira Murray",303.2,303.2]
[null,null,null,null,null,2,"November",70,"Brooke Ritter",153.91999999999999,153.91999999999999]
[null,null,null,null,null,2,"Juliet",47,"Cristal York",621.57000000000005,197.68]
[null,null,null,null,null,2,"Hotel",40,"Amber Spence",239.1,239.1]
[null,null,null,null,null,2,"November",69,"Raiden Shelton",384.06,318.83]
[null,null,null,null,null,3,"Papa",76,"Carter Obrien",845.4,845.4]
[null,null,null,null,null,1,"Sierra",94,"Pierre Cain",832.58,392.38]
[null,null,null,null,null,1,"Golf",33,"Jaylene Jones",429.98,429.98]
[null,null,null,null,null,3,"Foxtrot",30,"Arthur Patton",881.04,253.39]
[null,null,null,null,null,4,"Romeo",88,"America Choi",585.72,406.22]
[null,null,null,null,null,1,"Yankee",121,"Tyler Lynch",975.42,314.77999999999997]
[null,null,null,null,null,2,"Sierra",94,"Leonard Monroe",297.25,105.89]
[null,null,null,null,null,2,"Uniform",105,"Baron Dougherty",140.05000000000001,140.05000000000001]
[null,null,null,null,null,1,"Hotel",37,"Jaylene Jones",906.82,324.68]
[null,null,null,null,null,4,"Whisky",112,"Heidy White",846.01,493.34]
[null,null,null,null,null,4,"Sierra",93,"Cristal York",194.19,194.19]
[null,null,null,null,null,4,"Sierra",95,"Benjamin Bell",136.63999999999999,136.63999999999999]
[null,null,null,null,null,4,"Tango",98,"Stanley Gonzales",592.75,592.75]
[null,null,null,null,null,3,"Uniform",105,"Rigoberto Bush",728.36,537.22]
[null,null,null,null,null,2,"Tango",100,"Ricardo Jacobs",556.1,169.55]
[null,null,null,null,null,2,"X-Ray",120,"Addyson Mccormick",185.77,185.77]
[null,null,null,null,null,1,"Alpha",4,"Everett Gill",109.95,109.95]
[null,null,null,null,null,3,"Hotel",36,"Baron Dougherty",599.52,101.05]
[null,null,null,null,null,3,"Tango",97,"Douglas Barry",638.65,315.29000000000002]
[null,null,null,null,null,2,"Victor",107,"Raiden Shelton",347.47,217.81]
[null,null,null,null,null,1,"Juliet",50,"Markus Benson",456.59,456.59]
[null,null,null,null,null,3,"Oscar",75,"Stanley Gonzales",578.15,578.15]
[null,null,null,null,null,3,"Bravo",7,"Terrance Sampson",710.7,246.64]
[null,null,null,null,null,2,"Kilo",53,"Enrique Lambert",320.49,320.49]
[null,null,null,null,null,2,"November",69,"Valentina Durham",985.16,538.04]
[null,null,null,null,null,4,"Sierra",95,"Keenan Sawyer",159.02000000000001,159.02000000000001]
[null,null,null,null,null,4,"Sierra",93,"Jaylene Jones",890.71,438.66]
[null,null,null,null,null,1,"Quebec",82,"Jacob Howell",630.9,630.9]
[null,null,null,null,null,1,"Golf",34,"Donna Warren",738.55,209.32]
[null,null,null,null,null,4,"Foxtrot",27,"Precious Guerrero",376.66,221.26]
[null,null,null,null,null,4,"Golf",33,"Valentina Durham",362.42,362.42]
[null,null,null,null,null,2,"India",45,"Tomas Suarez",343.12,343.12]
[null,null,null,null,null,1,"Zulu",128,"Scarlett Calhoun",761.83,166.7]
[null,null,null,null,null,2,"Bravo",10,"Jonathan Paul",609.54,125.57]
[null,null,null,null,null,1,"Zulu",128,"Arthur Patton",753.21,103.53]
[null,null,null,null,null,1,"Whisky",114,"Cristal York",565.76,451.03]
[null,null,null,null,null,4,"Lima",56,"Karina Cisneros",269.06,269.06]
[null,null,null,null,null,2,"Yankee",121,"Ingrid Parker",198.58,198.58]
[null,null,null,null,null,2,"Hotel",36,"Armando Hoover",599.48,229.84]
[null,null,null,null,null,4,"Mike",65,"Abdullah Bridges",917.76,184.7]
[null,null,null,null,null,1,"November",70,"Alexander Moses",816.92,297.36]
[null,null,null,null,null,1,"Uniform",101,"Brooke Ritter",161.16999999999999,161.16999999999999]
[null,null,null,null,null,4,"Charlie",12,"Emmett Esparza",565.66,421.38]
[null,null,null,null,null,1,"Zulu",128,"Jasmine Newton",699.62,699.62]
[null,null,null,null,null,3,"Victor",110,"Enrique Lambert",688.17,625.34]
[null,null,null,null,null,4,"Delta",17,"Baron Dougherty",774.7,774.7]
[null,null,null,null,null,2,"Victor",107,"Tomas Suarez",755.87,256.58]
[null,null,null,null,null,4,"Oscar",74,"Erin Johns",809.52,383.68]
[null,null,null,null,null,3,"Delta",17,"Zayne Dunn",340.07,340.07]
[null,null,null,null,null,4,"Lima",57,"Addyson Mccormick",688.78,324.52999999999997]
[null,null,null,null,null,4,"Lima",56,"Zayne Dunn",636.82000000000005,636.82000000000005]
[null,null,null,null,null,4,"Delta",18,"Porter Leach",194.6,186.86]
[null,null,null,null,null,1,"November",67,"Catalina Richards",256.49,157.43]
[null,null,null,null,null,1,"November",69,"Ishaan Hardy",201.39,201.39]
[null,null,null,null,null,3,"November",70,"Douglas Barry",627.44000000000005,387.85]
[null,null,null,null,null,1,"Quebec",85,"Jacob Howell",344.09,344.09]
[null,null,null,null,null,2,"Charlie",13,"Porter Leach",650.84,424.15]
[null,null,null,null,null,1,"Alpha",5,"Erin Johns",951.64,951.64]
[null,null,null,null,null,1,"Kilo",51,"Miya Miranda",781.58,781.58]
[null,null,null,null,null,4,"Echo",23,"Emmett Esparza",318.12,318.12]
[null,null,null,null,null,4,"Victor",108,"Ashanti Leblanc",988.42,167.76]
[null,null,null,null,null,1,"Uniform",102,"Amber Spence",849.58,564.94000000000005]
[null,null,null,null,null,3,"Alpha",1,"Jacob Howell",699.47,527.16]
[null,null,null,null,null,3,"Hotel",36,"Cruz Short",954.09,529.75]
[null,null,null,null,null,4,"Romeo",87,"Scarlett Calhoun",589.76,335.15]
[null,null,null,null,null,3,"Golf",31,"Gilberto Yoder",553.04999999999995,553.04999999999995]
[null,null,null,null,null,4,"Foxtrot",28,"Keenan Sawyer",182.03,182.03]
[null,null,null,null,null,3,"Quebec",82,"Baron Dougherty",619.36,619.36]
[null,null,null,null,null,1,"Whisky",113,"Karina Cisneros",488.13,488.13]
[null,null,null,null,null,2,"India",42,"Khloe Michael",218.13,218.13]
[null,null,null,null,null,1,"Romeo",88,"Jonathan Paul",332.92,332.92]
[null,null,null,null,null,1,"Yankee",125,"Markus Benson",433.38,104.57]
[null,null,null,null,null,2,"Juliet",46,"Arthur Patton",949.3,641.52]
[null,null,null,null,null,1,"Mike",64,"Ingrid Parker",830.01,615.38]
[null,null,null,null,null,3,"Romeo",87,"Asia Hendricks",830.63,490.04]
[null,null,null,null,null,4,"Delta",20,"Jasmine Newton",801.14,283.89]
[null,null,null,null,null,3,"Juliet",48,"Precious Guerrero",388.51,388.51]
[null,null,null,null,null,3,"Golf",33,"Julianna Knox",502.95,502.95]
[null,null,null,null,null,1,"Bravo",9,"Jovan Solomon",977.11,341.3]
[null,null,null,null,null,1,"Papa",79,"Brennan Campos",554.79,445.76]
[null,null,null,null,null,4,"Oscar",72,"Asia Hendricks",817.03,817.03]
[null,null,null,null,null,2,"Golf",34,"Francisco Stevenson",968.89,867.79]
[null,null,null,null,null,1,"Oscar",75,"Enrique Lambert",853.9,169.23]
[null,null,null,null,null,4,"Yankee",123,"Cruz Short",200.13,200.13]
[null,null,null,null,null,4,"Oscar",71,"Pierre Cain",615.79,120.35]
[null,null,null,null,null,1,"Bravo",8,"Karson Choi",645.38,645.38]
[null,null,null,null,null,3,"Zulu",127,"Sarai Kemp",887.05,212.64]
[null,null,null,null,null,4,"Alpha",5,"Catalina Richards",803.43,385.46]
[null,null,null,null,null,4,"Mike",61,"Stephen Booth",218.75,177.51]
[null,null,null,null,null,1,"Yankee",123,"Stanley Gonzales",768.49,566.16999999999996]
[null,null,null,null,null,3,"Echo",21,"Markus Benson",963.71,622.98]
[null,null,null,null,null,4,"November",66,"Benjamin Bell",689.44,640.41]
[null,null,null,null,null,4,"Oscar",71,"Luciano Jackson",514.59,213.04]
[null,null,null,null,null,3,"Golf",32,"Addyson Mccormick",363.49,201.1]
[null,null,null,null,null,2,"Romeo",87,"Paityn Olson",865.46,446.02]
[null,null,null,null,null,2,"Echo",24,"Amber Spence",535.62,109.45]
[null,null,null,null,null,1,"Delta",20,"Jaden Davidson",457.57,457.57]
[null,null,null,null,null,4,"Delta",17,"Leonard Monroe",495.8,275.32]
[null,null,null,null,null,2,"Tango",96,"Allie Franklin",574.13,574.13]
[null,null,null,null,null,2,"Yankee",123,"Jonathan Paul",709.62,304.85000000000002]
[null,null,null,null,null,4,"Delta",18,"Kamila Waters",324.57,324.57]
[null,null,null,null,null,4,"Victor",110,"Khloe Michael",163.18,163.18]
[null,null,null,null,null,3,"India",43,"Karina Cisneros",346.37,189.9]
[null,null,null,null,null,2,"Charlie",15,"Tyler Lynch",894.77,402.71]
[null,null,null,null,null,1,"Alpha",4,"Karson Choi",685.8,581.87]
[null,null,null,null,null,1,"Foxtrot",27,"Ishaan Hardy",793.71,584]
[null,null,null,null,null,3,"Hotel",36,"Asher Dunn",201.96,201.96]
[null,null,null,null,null,3,"Zulu",129,"Brennan Campos",461.52,347.31]
[null,null,null,null,null,4,"Charlie",14,"Javier Meyers",944.66,837]
[null,null,null,null,null,2,"Juliet",50,"Karina Cisneros",947.02,158.76]
[null,null,null,null,null,3,"X-Ray",120,"Asia Hendricks",639.22,635.16999999999996]
[null,null,null,null,null,3,"Uniform",101,"Stanley Gonzales",576.67999999999995,576.67999999999995]
[null,null,null,null,null,2,"Sierra",94,"Jaden Davidson",290.72000000000003,206.08]
[null,null,null,null,null,4,"Lima",60,"Brennan Campos",458.2,458.2]
[null,null,null,null,null,4,"Charlie",14,"Ingrid Parker",213.35,213.35]
[null,null,null,null,null,3,"Sierra",92,"Trystan Norton",358.19,358.19]
[null,null,null,null,null,1,"Delta",18,"Jonathan Paul",119.97,119.97]
[null,null,null,null,null,4,"Golf",32,"Enrique Lambert",542.44000000000005,542.44000000000005]
[null,null,null,null,null,2,"Quebec",85,"Regina Freeman",527.52,527.52]
[null,null,null,null,null,3,"Charlie",15,"Miya Miranda",886.54,886.54]
[null,null,null,null,null,1,"Foxtrot",28,"Alexander Moses",159.09,159.09]
[null,null,null,null,null,3,"Hotel",40,"Jasmine Newton",928.93,853.57]
[null,null,null,null,null,1,"Romeo",90,"Gilberto Yoder",779.85,773.91]
[null,null,null,null,null,4,"Sierra",92,"Parker Woods",825.47,825.47]
[null,null,null,null,null,4,"Foxtrot",30,"Terrance Sampson",953.32,630.27]
[null,null,null,null,null,2,"Quebec",84,"Kennedy Christian",632.75,513.26]
[null,null,null,null,null,1,"Delta",18,"Brooke Ritter",483.12,109]
[null,null,null,null,null,4,"Papa",77,"Enrique Lambert",967.68,207.6]
[null,null,null,null,null,2,"Juliet",50,"Jasmine Newton",941.51,569.63]
[null,null,null,null,null,1,"Charlie",15,"Braylon Townsend",664.49,664.49]
[null,null,null,null,null,4,"Lima",60,"Marley George",572.78,552.25]
[null,null,null,null,null,1,"November",69,"Lizbeth Carrillo",870.83,666.61]
[null,null,null,null,null,1,"Delta",16,"Scarlett Calhoun",543.82000000000005,500.01]
[null,null,null,null,null,1,"Kilo",54,"Valentina Durham",800.23,648.94000000000005]
[null,null,null,null,null,3,"Hotel",38,"Raiden Shelton",739.33,739.33]
[null,null,null,null,null,1,"Yankee",123,"Dixie Stanton",116.32,116.32]
[null,null,null,null,null,4,"Whisky",115,"Cruz Short",555.95000000000005,555.95000000000005]
[null,null,null,null,null,2,"Kilo",54,"Miya Miranda",948.05,574.87]
[null,null,null,null,null,3,"Lima",57,"Akira Murray",538.36,538.36]
[null,null,null,null,null,3,"Papa",80,"Alisha Woodward",366.71,366.71]
[null,null,null,null,null,3,"Quebec",84,"Khloe Michael",273.02,107.72]
[null,null,null,null,null,2,"Whisky",113,"Francisco Stevenson",415.97,415.97]
[null,null,null,null,null,2,"Golf",31,"Miya Miranda",563.25,352.49]
[null,null,null,null,null,2,"Victor",108,"Miya Miranda",741.87,255.37]
[null,null,null,null,null,3,"Victor",110,"Jacob Howell",420.47,420.47]
[null,null,null,null,null,3,"Uniform",105,"Braylon Townsend",925.73,925.73]
[null,null,null,null,null,4,"Hotel",39,"Markus Benson",947.35,265.95999999999998]
[null,null,null,null,null,2,"Oscar",73,"Arthur Patton",404.67,404.67]
[null,null,null,null,null,2,"Whisky",115,"Jamarion Kelly",390.21,390.21]
[null,null,null,null,null,1,"Papa",78,"Pierre Cain",956.94,714]
[null,null,null,null,null,3,"Oscar",74,"Mariyah Randall",194.12,194.12]
[null,null,null,null,null,1,"India",41,"Ellie Jensen",549.28,549.28]
[null,null,null,null,null,2,"X-Ray",116,"Carter Obrien",403.57,403.57]
[null,null,null,null,null,2,"Lima",57,"Gilberto Yoder",558.20000000000005,509.57]
[null,null,null,null,null,3,"Romeo",88,"Kamila Waters",917.89,357.88]
[null,null,null,null,null,3,"X-Ray",118,"Addyson Mccormick",895.85,243.53]
[null,null,null,null,null,2,"Delta",20,"Trystan Norton",459.67,328.58]
[null,null,null,null,null,3,"November",69,"Ricardo Jacobs",382.24,382.24]
[null,null,null,null,null,3,"Uniform",102,"Enrique Lambert",835.27,595.79]
[null,null,null,null,null,2,"Yankee",122,"Maren Sweeney",893.98,565.79]
[null,null,null,null,null,3,"Yankee",123,"Zayne Dunn",942.41,542.66999999999996]
[null,null,null,null,null,3,"Tango",100,"Dixie Stanton",723.97,372.72]
[null,null,null,null,null,3,"Papa",76,"Amber Spence",780.63,780.63]
[null,null,null,null,null,3,"Lima",60,"Miya Miranda",442.13,442.13]
[null,null,null,null,null,3,"Papa",78,"Javier Meyers",997.97,624.5]
[null,null,null,null,null,1,"Bravo",9,"Arthur Patton",794.28,429.76]
[null,null,null,null,null,3,"Sierra",95,"Enrique Lambert",249.26,231.47]
[null,null,null,null,null,2,"Alpha",3,"Zayne Dunn",956.46,366.33]
[null,null,null,null,null,4,"Kilo",54,"Ingrid Parker",308.75,308.75]
[null,null,null,null,null,3,"Kilo",52,"Asia Hendricks",746.15,483.22]
[null,null,null,null,null,2,"India",43,"Cruz Short",966.39,479.41]
[null,null,null,null,null,4,"Tango",97,"Lizbeth Carrillo",498.22,498.22]
[null,null,null,null,null,4,"Mike",63,"Markus Benson",260.36,260.36]
[null,null,null,null,null,3,"Hotel",36,"Tyler Lynch",340.47,340.47]
[null,null,null,null,null,3,"Tango",98,"Everett Gill",966.68,178.48]
[null,null,null,null,null,4,"Bravo",8,"Heidy White",503.12,321.79000000000002]
[null,null,null,null,null,2,"Foxtrot",29,"Valentina Durham",148.35,148.35]
[null,null,null,null,null,2,"Yankee",125,"Emmett Esparza",546.61,231.01]
[null,null,null,null,null,3,"Whisky",114,"Braylon Townsend",912.26,565.77]
[null,null,null,null,null,2,"Yankee",123,"Christopher Bates",319.38,319.38]
[null,null,null,null,null,3,"November",69,"Erin Johns",296.13,296.13]
[null,null,null,null,null,4,"Romeo",89,"Baron Dougherty",552.64,445.11]
[null,null,null,null,null,2,"Kilo",53,"Khloe Michael",570.4,120.69]
[null,null,null,null,null,2,"Bravo",9,"Alexander Moses",571.32000000000005,333.08]
[null,null,null,null,null,3,"Lima",60,"Ricardo Jacobs",695.89,275.98]
[null,null,null,null,null,2,"Romeo",88,"Zayne Dunn",457.51,457.51]
[null,null,null,null,null,3,"Sierra",95,"Kiley Rollins",733.68,353.42]
[null,null,null,null,null,1,"Lima",56,"Cruz Short",924.89,781.23]
[null,null,null,null,null,3,"Victor",107,"Everett Gill",315.64,315.64]
[null,null,null,null,null,1,"Foxtrot",26,"Asher Dunn",151.24,151.24]
[null,null,null,null,null,1,"Hotel",38,"Asher Dunn",888.39,145.63999999999999]
[null,null,null,null,null,1,"Delta",16,"Lizbeth Carrillo",581.42999999999995,269.66000000000003]
[null,null,null,null,null,1,"Whisky",115,"Donald Mcfarland",850.56,597.17999999999995]
[null,null,null,null,null,3,"Bravo",6,"Regina Freeman",511.53,508.58]
[null,null,null,null,null,3,"Whisky",113,"Alondra Long",693.39,609.99]
[null,null,null,null,null,1,"Foxtrot",28,"Lizbeth Carrillo",750.31,591.32000000000005]
[null,null,null,null,null,2,"Mike",62,"Tomas Suarez",558.16999999999996,558.16999999999996]
[null,null,null,null,null,4,"Hotel",39,"Armando Hoover",174.44,174.44]
[null,null,null,null,null,1,"India",41,"Ishaan Hardy",888.21,644.92999999999995]
[null,null,null,null,null,3,"Romeo",89,"Grant Snow",991.29,513.04999999999995]
[null,null,null,null,null,2,"Delta",17,"Lorelei Mccoy",991.05,335.73]
[null,null,null,null,null,3,"Juliet",48,"Everett Gill",695.16,415.58]
[null,null,null,null,null,4,"November",69,"Jasmine Newton",388.65,388.65]
[null,null,null,null,null,4,"Uniform",102,"Asia Hendricks",608.6,276]
[null,null,null,null,null,1,"Juliet",47,"Leonard Monroe",570.33000000000004,518.07000000000005]
[null,null,null,null,null,3,"Golf",31,"Porter Leach",832.68,206.11]
[null,null,null,null,null,3,"Papa",80,"Regina Freeman",604.03,555.11]
[null,null,null,null,null,3,"Foxtrot",29,"Keenan Sawyer",395.75,395.75]
[null,null,null,null,null,3,"Whisky",111,"Alexander Moses",690.54,183.15]
[null,null,null,null,null,4,"Whisky",111,"Precious Guerrero",177.56,102.26]
[null,null,null,null,null,4,"Oscar",71,"Enrique Lambert",111.47,111.47]
[null,null,null,null,null,2,"Kilo",51,"Akira Murray",529.66,162.72]
[null,null,null,null,null,1,"November",67,"Tomas Suarez",440.95,440.95]
[null,null,null,null,null,3,"Victor",110,"Mariyah Randall",945.5,491.25]
[null,null,null,null,null,3,"Tango",100,"Tomas Suarez",224.62,102.98]
[null,null,null,null,null,2,"Alpha",2,"Laura Barrett",382.14,382.14]
[null,null,null,null,null,4,"Echo",25,"Kolton Elliott",243.42,175.49]
[null,null,null,null,null,1,"Papa",78,"Carter Obrien",996.61,257.63]
[null,null,null,null,null,2,"India",43,"Zayne Dunn",432.73,432.73]
[null,null,null,null,null,3,"Lima",57,"Raiden Shelton",736.31,736.31]
[null,null,null,null,null,1,"Lima",56,"Jaden Davidson",678.92,678.92]
[null,null,null,null,null,3,"Whisky",115,"Karson Choi",192.22,192.22]
[null,null,null,null,null,2,"Bravo",8,"Javier Meyers",571.13,439.71]
[null,null,null,null,null,1,"Romeo",88,"Heidy White",975.53,369.47]
[null,null,null,null,null,4,"Tango",98,"Jonathan Paul",850.61,800.01]
[null,null,null,null,null,2,"Whisky",112,"Arthur Patton",935.05,249.45]
[null,null,null,null,null,4,"Papa",79,"Amber Spence",550.69000000000005,339.93]
[null,null,null,null,null,1,"Zulu",128,"Benjamin Bell",968.09,636.04999999999995]
[null,null,null,null,null,3,"Foxtrot",26,"Declan Figueroa",592.72,101.85]
[null,null,null,null,null,2,"Uniform",105,"Alexander Moses",575.34,575.34]
[null,null,null,null,null,4,"Romeo",86,"Declan Figueroa",296.18,296.18]
[null,null,null,null,null,1,"Mike",61,"Brennan Campos",960.58,555.29999999999995]
[null,null,null,null,null,1,"India",43,"Emma Mitchell",969.47,467.41]
[null,null,null,null,null,4,"Whisky",114,"Lizbeth Carrillo",880.99,880.99]
[null,null,null,null,null,3,"Hotel",39,"Grant Snow",849.67,838.39]
[null,null,null,null,null,4,"Zulu",126,"Lorelei Mccoy",439.96,439.96]
[null,null,null,null,null,1,"Papa",76,"Stanley Gonzales",882.01,194.12]
[null,null,null,null,null,2,"X-Ray",119,"Marley George",692.76,626.1]
[null,null,null,null,null,2,"Tango",96,"Gilberto Yoder",926.51,926.51]
[null,null,null,null,null,2,"Uniform",105,"America Choi",996.76,751.27]
[null,null,null,null,null,3,"Yankee",123,"Jamarion Kelly",883.48,809.59]
[null,null,null,null,null,4,"Whisky",111,"Kennedy Christian",134.4,134.4]
[null,null,null,null,null,1,"Whisky",115,"Ashanti Leblanc",504.55,504.55]
[null,null,null,null,null,2,"Golf",33,"Brennan Campos",264.25,152.38]
[null,null,null,null,null,3,"Kilo",54,"Shaniya Franklin",357.79,357.79]
[null,null,null,null,null,1,"Zulu",130,"Ellie Jensen",228.87,228.87]
[null,null,null,null,null,4,"Uniform",104,"Valentina Durham",897.68,554.42999999999995]
[null,null,null,null,null,2,"Golf",31,"Benjamin Bell",238.44,238.44]
[null,null,null,null,null,4,"Tango",99,"Sanaa Dunn",906.2,513.29999999999995]
[null,null,null,null,null,1,"Hotel",37,"Lorelei Mccoy",486.39,486.39]
[null,null,null,null,null,4,"Bravo",10,"Scarlett Calhoun",367.34,331.14]
[null,null,null,null,null,2,"X-Ray",120,"Savanna Dixon",804.07,717.37]
[null,null,null,null,null,2,"Yankee",123,"Cristal York",981.25,519.20000000000005]
[null,null,null,null,null,1,"Quebec",82,"Regina Freeman",553.69000000000005,202.28]
[null,null,null,null,null,4,"Echo",23,"Lorelei Mccoy",863.09,300.89]
[null,null,null,null,null,3,"Echo",22,"Raiden Shelton",579.74,180.26]
[null,null,null,null,null,1,"Oscar",74,"Ricardo Jacobs",341.94,303.66000000000003]
[null,null,null,null,null,2,"Whisky",114,"Sadie Pierce",459.39,177.87]
[null,null,null,null,null,1,"Romeo",90,"Laura Barrett",106.05,106.05]
[null,null,null,null,null,4,"India",45,"Everett Gill",897.29,667.36]
[null,null,null,null,null,1,"Juliet",48,"Christopher Bates",596.13,596.13]
[null,null,null,null,null,1,"Victor",107,"Christopher Bates",890.57,108.52]
[null,null,null,null,null,2,"Yankee",123,"Cristal York",191.94,191.94]
[null,null,null,null,null,3,"Alpha",5,"Shaniya Franklin",906.23,367.69]
[null,null,null,null,null,3,"Sierra",94,"America Choi",400.08,251.58]
[null,null,null,null,null,4,"Alpha",5,"Sadie Pierce",153.07,153.07]
[null,null,null,null,null,3,"Kilo",51,"Addyson Mccormick",267.01,267.01]
[null,null,null,null,null,4,"Victor",109,"Julianna Knox",399.57,108.27]
[null,null,null,null,null,3,"India",43,"Ishaan Hardy",178.04,132.84]
[null,null,null,null,null,1,"Papa",79,"Karina Cisneros",623.51,332.79]
[null,null,null,null,null,4,"Delta",17,"Jacob Howell",915.15,858.71]
[null,null,null,null,null,2,"X-Ray",120,"Frederick Knapp",213.87,213.87]
[null,null,null,null,null,1,"Romeo",90,"Kolton Elliott",694.52,694.52]
[null,null,null,null,null,1,"November",70,"Stephen Booth",424.74,283.51]
[null,null,null,null,null,1,"Delta",18,"Khloe Michael",875.19,140.61000000000001]
[null,null,null,null,null,4,"X-Ray",116,"Karina Cisneros",904.01,350.13]
[null,null,null,null,null,4,"Lima",60,"Laura Barrett",693.6,242.16]
[null,null,null,null,null,4,"Zulu",128,"Dixie Stanton",849.43,564.70000000000005]
[null,null,null,null,null,2,"Foxtrot",26,"Cruz Short",216.31,216.31]
[null,null,null,null,null,1,"Zulu",126,"Alejandra Clements",603.6,196.57]
[null,null,null,null,null,3,"Romeo",87,"Tyree Adkins",441.06,152.84]
[null,null,null,null,null,4,"Echo",21,"Miya Miranda",630.02,173.65]
[null,null,null,null,null,1,"Alpha",1,"Erin Johns",494.73,255.49]
[null,null,null,null,null,4,"Romeo",89,"Maren Sweeney",526.01,526.01]
[null,null,null,null,null,4,"Foxtrot",30,"Valentina Durham",312.92,312.92]
[null,null,null,null,null,2,"Romeo",86,"Tomas Suarez",491.02,126.26]
[null,null,null,null,null,4,"Lima",58,"Benjamin Bell",739.32,427.17]
[null,null,null,null,null,4,"Mike",63,"Abdullah Bridges",568.42999999999995,568.42999999999995]
[null,null,null,null,null,2,"Sierra",94,"Francisco Stevenson",758.55,377.72]
[null,null,null,null,null,2,"Foxtrot",26,"Carter Obrien",334.71,334.71]
[null,null,null,null,null,1,"Uniform",102,"Donald Mcfarland",874.61,673.34]
[null,null,null,null,null,1,"Uniform",102,"Emmett Esparza",716.75,481.22]
[null,null,null,null,null,3,"Romeo",87,"Karson Choi",241.23,241.23]
[null,null,null,null,null,2,"Romeo",86,"Dane Patton",699.27,699.27]
[null,null,null,null,null,4,"Papa",77,"Gilberto Yoder",980.08,815.26]
[null,null,null,null,null,2,"November",69,"Erin Johns",998.94,508.45]
[null,null,null,null,null,1,"Romeo",87,"Marley George",855.29,769.37]
[null,null,null,null,null,4,"Hotel",37,"Alisha Woodward",677.07,331.22]
[null,null,null,null,null,1,"Juliet",49,"Karina Cisneros",648.02,355.27]
[null,null,null,null,null,3,"Sierra",91,"Ishaan Hardy",935.22,834.97]
[null,null,null,null,null,1,"Golf",35,"Kolton Elliott",322.33,322.33]
[null,null,null,null,null,4,"Kilo",55,"Dane Patton",822.99,146.41]
[null,null,null,null,null,3,"Sierra",91,"Parker Woods",260.24,179.37]
[null,null,null,null,null,4,"Bravo",7,"Akira Murray",229.85,229.85]
[null,null,null,null,null,2,"Yankee",125,"Tyler Lynch",749.99,749.99]
[null,null,null,null,null,2,"November",66,"Paityn Olson",157.26,157.26]
[null,null,null,null,null,1,"Lima",58,"Ellie Jensen",620.80999999999995,592.46]
[null,null,null,null,null,3,"Kilo",53,"Sadie Pierce",527.79,395.45]
[null,null,null,null,null,2,"Foxtrot",28,"Alondra Long",202.27,112.31]
[null,null,null,null,null,3,"Whisky",111,"Maren Sweeney",619.42999999999995,619.42999999999995]
[null,null,null,null,null,3,"Papa",78,"Valentina Durham",275.23,275.23]
[null,null,null,null,null,1,"Whisky",114,"Cristal York",773.2,773.2]
[null,null,null,null,null,2,"Sierra",95,"Trystan Norton",685.92,289.49]
[null,null,null,null,null,4,"Alpha",1,"Douglas Barry",251.79,251.79]
[null,null,null,null,null,2,"Victor",106,"Cristal York",226.87,226.87]
[null,null,null,null,null,4,"Lima",60,"Valentina Durham",959.89,869.14]
[null,null,null,null,null,3,"November",70,"Jonathan Paul",639.58000000000004,639.58000000000004]
[null,null,null,null,null,1,"Golf",34,"Regina Freeman",923.25,585.74]
[null,null,null,null,null,3,"Golf",32,"Terrance Sampson",580.20000000000005,580.20000000000005]
[null,null,null,null,null,3,"Sierra",91,"Jamarion Kelly",530.13,530.13]
[null,null,null,null,null,1,"Juliet",50,"Javier Meyers",348.73,281.47000000000003]
[null,null,null,null,null,1,"Echo",21,"Alejandra Clements",945.07,186.21]
[null,null,null,null,null,3,"November",69,"Markus Benson",635.1,170.76]
[null,null,null,null,null,1,"X-Ray",119,"Ashanti Leblanc",685.06,685.06]
[null,null,null,null,null,3,"Sierra",92,"Kiley Rollins",556.11,556.11]
[null,null,null,null,null,2,"Mike",64,"Leonard Monroe",918.95,335.7]
[null,null,null,null,null,2,"November",66,"Alejandra Clements",525.21,525.21]
[null,null,null,null,null,3,"Zulu",129,"Leonard Monroe",904.12,169.97]
[null,null,null,null,null,4,"Hotel",37,"Keenan Sawyer",823.6,261.81]
[null,null,null,null,null,2,"Tango",97,"Sarai Kemp",457.41,453.78]
[null,null,null,null,null,2,"Charlie",12,"Allie Franklin",664.14,238.29]
[null,null,null,null,null,3,"Lima",56,"Javier Meyers",609.11,609.11]
[null,null,null,null,null,3,"Golf",33,"Tyler Lynch",747.68,551.87]
[null,null,null,null,null,2,"Uniform",103,"Cruz Short",530.84,530.84]
[null,null,null,null,null,2,"Quebec",84,"Eileen Knox",828.6,674.2]
[null,null,null,null,null,3,"India",43,"Tyree Adkins",374.05,374.05]
[null,null,null,null,null,1,"Mike",63,"Trystan Norton",727.35,510.32]
[null,null,null,null,null,3,"Hotel",38,"Erin Johns",812.38,773.4]
[null,null,null,null,null,4,"Juliet",49,"Donald Mcfarland",784.98,204.22]
[null,null,null,null,null,3,"Golf",31,"Lorelei Mccoy",140.22,140.22]
[null,null,null,null,null,4,"Uniform",105,"Declan Figueroa",449.14,243.27]
[null,null,null,null,null,1,"Victor",109,"Alondra Long",485.24,312.66000000000003]
[null,null,null,null,null,2,"Tango",98,"Sadie Pierce",891.74,855.88]
[null,null,null,null,null,2,"Romeo",90,"Laura Barrett",663.34,663.34]
[null,null,null,null,null,3,"X-Ray",119,"Brooke Ritter",527.82000000000005,182.17]
[null,null,null,null,null,3,"X-Ray",119,"Keenan Sawyer",902.53,735.28]
[null,null,null,null,null,3,"Romeo",89,"Marley George",467.66,308.81]
[null,null,null,null,null,3,"Mike",64,"Amber Spence",241.19,241.19]
[null,null,null,null,null,2,"Whisky",112,"Dane Patton",872.72,273.3]
[null,null,null,null,null,2,"Sierra",95,"Ashanti Leblanc",526.86,526.86]
[null,null,null,null,null,4,"November",70,"Emery Estes",123.53,123.53]
[null,null,null,null,null,3,"Romeo",86,"Addyson Mccormick",529.02,139.52000000000001]
[null,null,null,null,null,2,"Whisky",113,"Morgan Rose",821.4,532.64]
[null,null,null,null,null,3,"Juliet",50,"Trystan Norton",712.91,711.94]
[null,null,null,null,null,2,"Papa",79,"Paityn Olson",821.59,228.9]
[null,null,null,null,null,2,"India",45,"Shaniya Franklin",733.58,506.51]
[null,null,null,null,null,3,"Tango",96,"Emmett Esparza",787.67,574.80999999999995]
[null,null,null,null,null,4,"India",44,"Abdullah Bridges",774.67,401.5]
[null,null,null,null,null,3,"X-Ray",120,"Laura Barrett",635.23,233.74]
[null,null,null,null,null,3,"Alpha",3,"Savanna Dixon",863.71,493.18]
[null,null,null,null,null,1,"Uniform",105,"Arthur Patton",392.46,392.46]
[null,null,null,null,null,3,"Alpha",3,"Enrique Lambert",152.34,152.34]
[null,null,null,null,null,1,"Papa",79,"Alondra Long",840.7,699.94]
[null,null,null,null,null,2,"X-Ray",120,"Julianna Knox",443.22,167.56]
[null,null,null,null,null,3,"Foxtrot",26,"Erin Johns",322.25,265.5]
[null,null,null,null,null,4,"Papa",77,"Jonathan Paul",255.85,255.85]
[null,null,null,null,null,3,"India",43,"Christopher Bates",193.17,193.17]
[null,null,null,null,null,3,"Oscar",75,"Carter Obrien",266.33999999999997,266.33999999999997]
[null,null,null,null,null,2,"Sierra",92,"Dixie Stanton",187.42,187.42]
[null,null,null,null,null,4,"November",68,"Ingrid Parker",635.85,393]
[null,null,null,null,null,2,"Charlie",13,"Shaniya Franklin",786.61,127.22]
[null,null,null,null,null,1,"Bravo",8,"Dane Patton",162.18,162.18]
[null,null,null,null,null,4,"Foxtrot",27,"Marley George",362.97,362.97]
[null,null,null,null,null,4,"Victor",106,"Lizbeth Carrillo",389.11,389.11]
[null,null,null,null,null,4,"X-Ray",119,"Donna Warren",419.29,419.29]
[null,null,null,null,null,2,"Zulu",129,"Sarai Kemp",621.35,365.21]
[null,null,null,null,null,4,"Uniform",105,"Kolton Elliott",830.07,803.64]
[null,null,null,null,null,1,"Juliet",47,"Regina Freeman",838.25,427.73]
[null,null,null,null,null,1,"Alpha",1,"Maren Sweeney",149.51,149.51]
[null,null,null,null,null,3,"Hotel",37,"Eileen Knox",392.21,392.21]
[null,null,null,null,null,4,"Yankee",121,"Zayne Dunn",362.78,362.78]
[null,null,null,null,null,3,"Mike",62,"Catalina Richards",548.61,541.45000000000005]
[null,null,null,null,null,3,"Oscar",72,"Jaylene Jones",615.19000000000005,566.79]
[null,null,null,null,null,4,"Hotel",38,"Brennan Campos",265.22000000000003,265.22000000000003]
[null,null,null,null,null,2,"Lima",57,"Addyson Mccormick",800.78,800.78]
[null,null,null,null,null,2,"X-Ray",117,"Asher Dunn",183.98,183.98]
[null,null,null,null,null,1,"Echo",22,"Raiden Shelton",730.23,730.23]
[null,null,null,null,null,2,"Romeo",88,"Lorelei Mccoy",139.56,139.56]
[null,null,null,null,null,3,"Foxtrot",27,"Cristal York",818.06,760.24]
[null,null,null,null,null,2,"Golf",35,"Paityn Olson",540.85,386.33]
[null,null,null,null,null,4,"Bravo",6,"Alejandra Clements",372.3,129.07]
[null,null,null,null,null,3,"Whisky",115,"Miya Miranda",591.21,303.72000000000003]
[null,null,null,null,null,2,"Alpha",4,"Dixie Stanton",561.79999999999995,561.79999999999995]
[null,null,null,null,null,1,"Romeo",86,"Lorelei Mccoy",963.72,207.69]
[null,null,null,null,null,4,"Zulu",127,"Morgan Rose",676.61,203.8]
[null,null,null,null,null,1,"Foxtrot",26,"Grant Snow",920.56,695.27]
[null,null,null,null,null,2,"Quebec",81,"Abdullah Bridges",403.41,384.35]
[null,null,null,null,null,4,"Kilo",55,"Jaylene Jones",485.13,485.13]
[null,null,null,null,null,3,"Echo",25,"Emery Estes",478.74,478.74]
[null,null,null,null,null,1,"Lima",57,"Sanaa Dunn",783.61,179.93]
[null,null,null,null,null,2,"Juliet",46,"Khloe Michael",341.04,341.04]
[null,null,null,null,null,4,"Mike",62,"Julianna Knox",250.49,250.49]
[null,null,null,null,null,2,"Alpha",2,"Kiley Rollins",162.1,162.1]
[null,null,null,null,null,1,"Sierra",92,"Parker Woods",515.62,515.62]
[null,null,null,null,null,1,"Tango",96,"Miya Miranda",983.39,331.41]
[null,null,null,null,null,2,"Mike",61,"Maren Sweeney",822.33,459.15]
[null,null,null,null,null,2,"Lima",56,"Valentina Durham",698.18,298.27]
[null,null,null,null,null,1,"Charlie",14,"Dane Patton",527.07000000000005,479.99]
[null,null,null,null,null,4,"Charlie",11,"Asher Dunn",550.96,491.46]
[null,null,null,null,null,1,"Papa",77,"Luciano Jackson",739.81,739.81]
[null,null,null,null,null,4,"Victor",107,"Eileen Knox",589.05999999999995,470.5]
[null,null,null,null,null,4,"X-Ray",117,"Sarai Kemp",304.97000000000003,304.97000000000003]
[null,null,null,null,null,2,"Foxtrot",27,"Alexander Moses",214.51,214.51]
[null,null,null,null,null,4,"Hotel",37,"Abdullah Bridges",396.6,176.19]
[null,null,null,null,null,2,"Oscar",72,"Khloe Michael",416.53,201.17]
[null,null,null,null,null,4,"November",70,"Raiden Shelton",203.96,203.96]
[null,null,null,null,null,2,"Hotel",40,"Donald Mcfarland",624.70000000000005,481.46]
[null,null,null,null,null,4,"Lima",60,"Kolton Elliott",134.13,134.13]
[null,null,null,null,null,2,"Mike",63,"Everett Gill",444.23,444.23]
[null,null,null,null,null,2,"Juliet",46,"Brooke Ritter",488.18,488.18]
[null,null,null,null,null,3,"Sierra",93,"Donna Warren",661.52,588.01]
[null,null,null,null,null,2,"Zulu",127,"Erin Johns",277.18,277.18]
[null,null,null,null,null,1,"Romeo",87,"Morgan Rose",956.02,243.49]
[null,null,null,null,null,3,"Papa",78,"Brennan Campos",570.45000000000005,570.45000000000005]
[null,null,null,null,null,2,"Golf",34,"Shaniya Franklin",957.28,491.23]
[null,null,null,null,null,1,"Delta",16,"Jaden Davidson",501.56,356.58]
[null,null,null,null,null,2,"Zulu",129,"Brennan Campos",990.92,440.73]
[null,null,null,null,null,4,"Foxtrot",26,"Alondra Long",115.66,115.66]
[null,null,null,null,null,3,"Whisky",111,"Precious Guerrero",158.41,158.41]
[null,null,null,null,null,4,"Romeo",90,"Erin Johns",391.05,391.05]
[null,null,null,null,null,1,"Quebec",85,"Alondra Long",490.27,490.27]
[null,null,null,null,null,3,"Yankee",124,"Cristal York",216.21,216.21]
[null,null,null,null,null,2,"Kilo",54,"Julianna Knox",979.61,551.29]
[null,null,null,null,null,1,"Uniform",101,"Pierre Cain",428.42,428.42]
[null,null,null,null,null,2,"Sierra",94,"Dixie Stanton",767.47,767.47]
[null,null,null,null,null,1,"Kilo",54,"Trystan Norton",254.5,254.5]
[null,null,null,null,null,1,"Juliet",47,"Stephen Booth",523.70000000000005,134.41]
[null,null,null,null,null,3,"Echo",21,"Gilberto Yoder",587.94000000000005,288.25]
[null,null,null,null,null,4,"Delta",19,"Parker Woods",507.58,507.58]
[null,null,null,null,null,4,"Quebec",83,"Dane Patton",276.33999999999997,276.33999999999997]
[null,null,null,null,null,2,"Alpha",1,"Ashanti Leblanc",437.29,140.52000000000001]
[null,null,null,null,null,2,"Uniform",105,"Everett Gill",157.53,157.53]
[null,null,null,null,null,2,"Sierra",95,"America Choi",703.87,493.67]
[null,null,null,null,null,4,"Papa",79,"Enrique Lambert",183.9,183.9]
[null,null,null,null,null,1,"Juliet",46,"Francisco Stevenson",259.14,259.14]
[null,null,null,null,null,3,"November",66,"Ashanti Leblanc",305.98,305.98]
[null,null,null,null,null,3,"Victor",109,"Asia Hendricks",687.53,687.53]
[null,null,null,null,null,1,"Sierra",91,"Heidy White",403.43,403.43]
[null,null,null,null,null,1,"Mike",65,"Jacob Howell",690.36,575.27]
[null,null,null,null,null,4,"Romeo",89,"Tyree Adkins",446.77,446.77]
[null,null,null,null,null,2,"Whisky",115,"Kennedy Christian",399.51,399.51]
[null,null,null,null,null,4,"Echo",24,"Asia Hendricks",713.69,713.69]
[null,null,null,null,null,3,"Sierra",95,"Jasmine Newton",863.16,863.16]
[null,null,null,null,null,4,"Golf",34,"Regina Freeman",995,415.9]
[null,null,null,null,null,3,"Charlie",12,"Ari Hernandez",809.67,110.41]
[null,null,null,null,null,2,"Charlie",11,"Brooke Ritter",888.21,154.59]
[null,null,null,null,null,2,"X-Ray",117,"Eileen Knox",954.56,113.7]
[null,null,null,null,null,4,"Uniform",103,"Tyree Adkins",547.88,126.83]
[null,null,null,null,null,4,"Sierra",93,"Laura Barrett",191.89,191.89]
[null,null,null,null,null,3,"Mike",62,"Jaden Davidson",216.39,216.39]
[null,null,null,null,null,3,"Juliet",47,"Christopher Bates",141.43,141.43]
[null,null,null,null,null,3,"Uniform",105,"Arthur Patton",339.66,215.68]
[null,null,null,null,null,2,"November",70,"Abdullah Bridges",714.43,714.43]
[null,null,null,null,null,1,"Bravo",6,"Emma Mitchell",703.55,584.79]
[null,null,null,null,null,2,"Foxtrot",28,"Stanley Gonzales",190.23,190.23]
[null,null,null,null,null,2,"Juliet",47,"Parker Woods",530.19000000000005,530.19000000000005]
[null,null,null,null,null,4,"Bravo",6,"Payton Horn",104.97,104.97]
[null,null,null,null,null,2,"Whisky",114,"Enrique Lambert",252.78,226.4]
[null,null,null,null,null,3,"Hotel",37,"Emma Mitchell",558.11,172.18]
[null,null,null,null,null,1,"Alpha",1,"Regina Freeman",653.27,559.71]
[null,null,null,null,null,1,"Tango",96,"Francisco Stevenson",362.31,351.69]
[null,null,null,null,null,4,"X-Ray",119,"Asher Dunn",222.44,222.44]
[null,null,null,null,null,4,"Oscar",75,"Alisha Woodward",526.70000000000005,526.70000000000005]
[null,null,null,null,null,1,"Victor",107,"Cruz Short",656.31,656.31]
[null,null,null,null,null,4,"Tango",100,"Tyler Lynch",638.42999999999995,252.78]
[null,null,null,null,null,4,"Delta",18,"Cristal York",956.01,168.74]
[null,null,null,null,null,2,"Zulu",127,"Rigoberto Bush",836.52,731.65]
[null,null,null,null,null,4,"India",42,"Grant Snow",127.77,127.77]
[null,null,null,null,null,1,"Hotel",37,"Everett Gill",569.12,350.97]
[null,null,null,null,null,2,"Lima",58,"Zayne Dunn",237.44,237.44]
[null,null,null,null,null,3,"Romeo",88,"Braylon Townsend",254.2,254.2]
[null,null,null,null,null,2,"Oscar",73,"Allie Franklin",273.7,273.7]
[null,null,null,null,null,1,"Juliet",46,"Asher Dunn",534.08000000000004,473.94]
[null,null,null,null,null,4,"Hotel",37,"Carter Obrien",566.44000000000005,343.56]
[null,null,null,null,null,3,"Juliet",50,"Jonathan Paul",262.18,262.18]
[null,null,null,null,null,4,"Lima",59,"Asher Dunn",121.72,121.72]
[null,null,null,null,null,2,"Alpha",1,"Gilberto Yoder",233.01,233.01]
[null,null,null,null,null,3,"Yankee",121,"Sanaa Dunn",279.87,205.07]
[null,null,null,null,null,1,"Bravo",9,"Everett Gill",479.28,479.28]
[null,null,null,null,null,2,"Kilo",53,"Alondra Long",418.86,285.66000000000003]
[null,null,null,null,null,3,"Oscar",72,"Kiley Rollins",311.26,311.26]
[null,null,null,null,null,3,"Juliet",46,"Jaylene Jones",485.21,301.68]
[null,null,null,null,null,2,"Mike",61,"Lizbeth Carrillo",649.39,643.54999999999995]
[null,null,null,null,null,2,"Hotel",36,"Sarai Kemp",264.44,264.44]
[null,null,null,null,null,3,"Echo",23,"Akira Murray",593.76,537.54]
[null,null,null,null,null,1,"Quebec",84,"Eileen Knox",557.87,557.87]
[null,null,null,null,null,2,"Whisky",114,"Asher Dunn",977.09,604.92999999999995]
[null,null,null,null,null,2,"Romeo",88,"Asher Dunn",169.28,169.28]
[null,null,null,null,null,2,"November",68,"Ari Hernandez",545.33000000000004,376.97]
[null,null,null,null,null,3,"Sierra",93,"Morgan Rose",641.41,641.41]
[null,null,null,null,null,1,"X-Ray",117,"Raiden Shelton",140.28,140.28]
[null,null,null,null,null,4,"Delta",19,"Ricardo Jacobs",715.04,715.04]
[null,null,null,null,null,2,"Alpha",5,"Raiden Shelton",674.92,674.92]
[null,null,null,null,null,4,"Yankee",122,"Jonathan Paul",754.91,284.45999999999998]
[null,null,null,null,null,3,"Foxtrot",26,"Precious Guerrero",483.22,483.22]
[null,null,null,null,null,3,"Lima",56,"Ricardo Jacobs",754.64,754.64]
[null,null,null,null,null,2,"Kilo",53,"Eileen Knox",957.55,393.18]
[null,null,null,null,null,1,"Kilo",53,"Addyson Mccormick",563.17999999999995,563.17999999999995]
[null,null,null,null,null,4,"Lima",59,"Maren Sweeney",847.79,847.79]
[null,null,null,null,null,3,"Victor",108,"Jasmine Newton",882.99,706.99]
[null,null,null,null,null,2,"Hotel",36,"Scarlett Calhoun",349.44,234.46]
[null,null,null,null,null,1,"Zulu",127,"Benjamin Bell",964.46,155.86000000000001]
[null,null,null,null,null,2,"Lima",56,"Mariyah Randall",288.37,288.37]
[null,null,null,null,null,3,"Zulu",129,"Donald Mcfarland",374.28,182.41]
[null,null,null,null,null,3,"Juliet",47,"America Choi",833.68,349.09]
[null,null,null,null,null,1,"Foxtrot",30,"Luciano Jackson",442.08,394.77]
[null,null,null,null,null,3,"Echo",25,"Kiley Rollins",847.45,381.07]
[null,null,null,null,null,1,"Whisky",111,"Shaniya Franklin",574.51,333.3]
[null,null,null,null,null,1,"Juliet",49,"Jamarion Kelly",331.43,331.43]
[null,null,null,null,null,3,"Charlie",14,"Jacob Howell",840.53,840.53]
[null,null,null,null,null,2,"Quebec",83,"Cristal York",402.79,168.82]
[null,null,null,null,null,4,"Papa",78,"Regina Freeman",741.42,441.9]
[null,null,null,null,null,4,"Echo",25,"Brooke Ritter",582.85,582.85]
[null,null,null,null,null,3,"Quebec",85,"Markus Benson",721.36,514.32000000000005]
[null,null,null,null,null,2,"Tango",99,"Tyree Adkins",832.72,295.23]
[null,null,null,null,null,1,"Papa",80,"Jonathan Paul",391.91,391.91]
[null,null,null,null,null,2,"Delta",18,"Alondra Long",314.93,314.93]
[null,null,null,null,null,3,"Foxtrot",30,"Ari Hernandez",379.85,321.26]
[null,null,null,null,null,3,"India",41,"Cristal York",534.64,279.48]
[null,null,null,null,null,3,"Alpha",4,"Kolton Elliott",271.64,271.64]
[null,null,null,null,null,4,"Kilo",52,"Karson Choi",509.33,509.33]
[null,null,null,null,null,4,"November",68,"Asher Dunn",310.88,310.88]
[null,null,null,null,null,1,"X-Ray",117,"Erin Johns",426.85,287.2]
[null,null,null,null,null,2,"Kilo",53,"Jovan Solomon",857.32,309.61]
[null,null,null,null,null,1,"Yankee",123,"Tyree Adkins",747.05,747.05]
[null,null,null,null,null,4,"India",43,"Sanaa Dunn",927.15,849.04]
[null,null,null,null,null,2,"India",41,"Keenan Sawyer",880.4,332.43]
[null,null,null,null,null,3,"Bravo",8,"Benjamin Bell",283.02,283.02]
[null,null,null,null,null,2,"November",69,"Jasmine Newton",791.35,584.84]
[null,null,null,null,null,2,"Mike",64,"Jamarion Kelly",471.69,438.42]
[null,null,null,null,null,1,"Mike",63,"Sanaa Dunn",290.32,290.32]
[null,null,null,null,null,2,"Lima",57,"Julianna Knox",498.44,377.89]
[null,null,null,null,null,1,"Bravo",10,"Alondra Long",181.87,174.15]
[null,null,null,null,null,3,"November",70,"Donald Mcfarland",991.09,829.39]
[null,null,null,null,null,3,"Romeo",90,"Jonathan Paul",246.83,246.83]
[null,null,null,null,null,1,"Alpha",2,"Donna Warren",553.14,553.14]
[null,null,null,null,null,3,"Bravo",7,"Luciano Jackson",772.39,259.08999999999997]
[null,null,null,null,null,1,"Sierra",94,"Eileen Knox",126,126]
[null,null,null,null,null,4,"Foxtrot",30,"Cruz Short",259.54000000000002,259.54000000000002]
[null,null,null,null,null,4,"Papa",78,"Carter Obrien",640.03,265.17]
[null,null,null,null,null,2,"November",67,"Shaniya Franklin",842.07,275.8]
[null,null,null,null,null,2,"Oscar",74,"Donald Mcfarland",851.61,479.63]
[null,null,null,null,null,2,"Papa",76,"Lorelei Mccoy",556.66,387.35]
[null,null,null,null,null,2,"X-Ray",118,"Emery Estes",172.98,172.98]
[null,null,null,null,null,1,"Foxtrot",26,"Ari Hernandez",296.37,296.37]
[null,null,null,null,null,2,"Charlie",15,"Kolton Elliott",953.69,260.49]
[null,null,null,null,null,4,"Delta",16,"Julianna Knox",817.21,479.52]
[null,null,null,null,null,3,"Yankee",122,"Zayne Dunn",445.56,445.56]
[null,null,null,null,null,3,"Romeo",88,"Cruz Short",340.01,340.01]
[null,null,null,null,null,2,"Zulu",130,"Erin Johns",178.07,178.07]
[null,null,null,null,null,2,"Bravo",7,"Declan Figueroa",944.17,661.74]
[null,null,null,null,null,1,"Zulu",129,"Everett Gill",104.57,104.57]
[null,null,null,null,null,3,"Hotel",37,"Donna Warren",813.12,610.22]
[null,null,null,null,null,3,"Oscar",73,"Declan Figueroa",633.12,633.12]
[null,null,null,null,null,1,"Romeo",86,"Paityn Olson",234.26,140.69999999999999]
[null,null,null,null,null,4,"Echo",24,"Sadie Pierce",425.17,425.17]
[null,null,null,null,null,1,"Foxtrot",29,"Sanaa Dunn",364.93,327.37]
[null,null,null,null,null,2,"Zulu",130,"Rigoberto Bush",767.36,734.81]
[null,null,null,null,null,4,"Bravo",6,"Abdullah Bridges",146.87,146.87]
[null,null,null,null,null,2,"Golf",35,"Tyree Adkins",800.25,569.58000000000004]
[null,null,null,null,null,2,"Echo",22,"Tyree Adkins",229.9,229.9]
[null,null,null,null,null,2,"Tango",100,"Trystan Norton",351.29,351.29]
[null,null,null,null,null,3,"Uniform",105,"Leonard Monroe",652.26,322.31]
[null,null,null,null,null,4,"Yankee",123,"America Choi",410.86,410.86]
[null,null,null,null,null,3,"India",41,"Tyler Lynch",249.97,249.97]
[null,null,null,null,null,3,"Hotel",37,"Alondra Long",382.99,382.99]
[null,null,null,null,null,4,"Golf",35,"Jonathan Paul",490.4,443.16]
[null,null,null,null,null,3,"Tango",97,"Lorelei Mccoy",313.05,172.78]
[null,null,null,null,null,3,"Yankee",123,"Akira Murray",619.62,619.62]
[null,null,null,null,null,2,"Delta",16,"Julianna Knox",806.47,479.25]
[null,null,null,null,null,1,"Sierra",91,"Jonathan Paul",516.21,395.05]
[null,null,null,null,null,2,"Uniform",101,"Carter Obrien",104.41,104.41]
[null,null,null,null,null,2,"Delta",18,"Dixie Stanton",297.04000000000002,192.21]
[null,null,null,null,null,2,"Romeo",90,"Raiden Shelton",409.99,409.99]
[null,null,null,null,null,2,"Oscar",72,"Alondra Long",590.55999999999995,590.55999999999995]
[null,null,null,null,null,2,"Yankee",123,"Jonathan Paul",558.76,178.77]
[null,null,null,null,null,1,"Whisky",115,"Javier Meyers",659.57,599.76]
[null,null,null,null,null,3,"Kilo",55,"Laura Barrett",481.59,342.55]
[null,null,null,null,null,1,"Victor",108,"Emma Mitchell",372.06,372.06]
[null,null,null,null,null,1,"Sierra",93,"Frederick Knapp",129.12,129.12]
[null,null,null,null,null,4,"India",45,"Frederick Knapp",801.08,649.38]
[null,null,null,null,null,1,"Sierra",93,"Kolton Elliott",119.44,119.44]
[null,null,null,null,null,3,"Romeo",88,"Karson Choi",992.41,796.03]
[null,null,null,null,null,2,"Yankee",121,"Jovan Solomon",589.4,456.75]
[null,null,null,null,null,4,"Whisky",111,"Kennedy Christian",984.24,167.85]
[null,null,null,null,null,2,"Hotel",38,"Emma Mitchell",576.04999999999995,246.01]
[null,null,null,null,null,3,"Uniform",102,"Jaden Davidson",810.62,117.21]
[null,null,null,null,null,2,"Yankee",121,"Emery Estes",685.91,281.68]
[null,null,null,null,null,4,"Zulu",127,"Tomas Suarez",987.31,607.22]
[null,null,null,null,null,2,"Oscar",72,"Kamila Waters",194.3,194.3]
[null,null,null,null,null,3,"Whisky",115,"Rigoberto Bush",903.41,486.54]
[null,null,null,null,null,3,"Yankee",125,"Ashanti Leblanc",838.21,397.6]
[null,null,null,null,null,3,"Charlie",13,"Heidy White",308.2,308.2]
[null,null,null,null,null,1,"Charlie",12,"Christopher Bates",978.34,729.02]
[null,null,null,null,null,3,"Whisky",111,"Enrique Lambert",601.70000000000005,386.94]
[null,null,null,null,null,4,"Yankee",121,"Baron Dougherty",397.18,397.18]
[null,null,null,null,null,4,"Delta",18,"Kennedy Christian",247.55,247.55]
[null,null,null,null,null,1,"Foxtrot",26,"Everett Gill",414.01,414.01]
[null,null,null,null,null,3,"November",69,"Kennedy Christian",506.75,352.91]
[null,null,null,null,null,4,"X-Ray",116,"Laura Barrett",976.95,571.24]
[null,null,null,null,null,2,"Mike",65,"Declan Figueroa",991.89,209.15]
[null,null,null,null,null,4,"Hotel",38,"Maren Sweeney",249.88,228.1]
[null,null,null,null,null,2,"Kilo",54,"Markus Benson",638.59,602.52]
[null,null,null,null,null,3,"Bravo",8,"Paityn Olson",686.78,626.78]
[null,null,null,null,null,2,"November",67,"Kiley Rollins",399.24,399.24]
[null,null,null,null,null,2,"Romeo",88,"Pierre Cain",429.37,429.37]
[null,null,null,null,null,1,"Quebec",84,"Catalina Richards",130.97,130.97]
[null,null,null,null,null,2,"Oscar",72,"Gilberto Yoder",631.92999999999995,631.92999999999995]
[null,null,null,null,null,2,"Uniform",105,"Jaylene Jones",126.68,126.68]
[null,null,null,null,null,2,"Romeo",86,"Kamila Waters",509.68,509.68]
[null,null,null,null,null,1,"Foxtrot",27,"Kamila Waters",345.33,345.33]
[null,null,null,null,null,3,"Charlie",11,"Raiden Shelton",875.95,334.37]
[null,null,null,null,null,1,"Charlie",13,"Sadie Pierce",332.04,332.04]
[null,null,null,null,null,3,"Mike",65,"Heidy White",211.86,211.86]
[null,null,null,null,null,4,"Uniform",103,"Erin Johns",298.98,256.14999999999998]
[null,null,null,null,null,3,"Victor",108,"Rigoberto Bush",253.25,253.25]
[null,null,null,null,null,2,"Oscar",71,"Gilberto Yoder",343.45,343.45]
[null,null,null,null,null,1,"Yankee",121,"Benjamin Bell",178.12,178.12]
[null,null,null,null,null,1,"Yankee",125,"Alisha Woodward",723.52,436.83]
[null,null,null,null,null,3,"Yankee",121,"Javier Meyers",857.03,465.41]
[null,null,null,null,null,3,"Foxtrot",29,"Christopher Bates",959,859.54]
[null,null,null,null,null,3,"X-Ray",118,"Ricardo Jacobs",596.05999999999995,596.05999999999995]
[null,null,null,null,null,3,"Quebec",84,"Donna Warren",614.71,614.71]
[null,null,null,null,null,4,"Hotel",39,"Ricardo Jacobs",283.77999999999997,283.77999999999997]
[null,null,null,null,null,2,"Juliet",50,"Emmett Esparza",153.25,153.25]
[null,null,null,null,null,3,"Mike",63,"Jacob Howell",159.6,159.6]
[null,null,null,null,null,3,"Charlie",12,"Lizbeth Carrillo",195.82,195.82]
[null,null,null,null,null,3,"Kilo",55,"Savanna Dixon",400.61,341.83]
[null,null,null,null,null,3,"Oscar",71,"Donna Warren",817.04,181.02]
[null,null,null,null,null,1,"India",44,"Amber Spence",746.43,746.43]
[null,null,null,null,null,2,"Romeo",88,"Parker Woods",612.29,528.92999999999995]
[null,null,null,null,null,1,"Juliet",50,"Kolton Elliott",829.21,147.31]
[null,null,null,null,null,2,"Golf",33,"Jovan Solomon",181.99,181.99]
[null,null,null,null,null,2,"India",43,"Emma Mitchell",535.77,535.77]
[null,null,null,null,null,2,"X-Ray",116,"Zayne Dunn",575.89,282.94]
[null,null,null,null,null,1,"Kilo",52,"Luciano Jackson",114.76,114.76]
[null,null,null,null,null,1,"Juliet",48,"Trystan Norton",226.06,226.06]
[null,null,null,null,null,3,"Romeo",87,"Porter Leach",179.81,179.81]
[null,null,null,null,null,3,"Golf",32,"Markus Benson",288.86,209.82]
[null,null,null,null,null,4,"Tango",100,"Alejandra Clements",321.7,321.7]
[null,null,null,null,null,2,"Delta",19,"Raiden Shelton",126.49,126.49]
[null,null,null,null,null,2,"Romeo",90,"Brennan Campos",932.49,814.05]
[null,null,null,null,null,1,"Uniform",102,"Emmett Esparza",277.47000000000003,277.47000000000003]
[null,null,null,null,null,3,"Hotel",37,"Marley George",412.19,412.19]
[null,null,null,null,null,3,"Juliet",49,"Gilberto Yoder",577.49,552.16]
[null,null,null,null,null,4,"Mike",61,"Raiden Shelton",158.62,158.62]
[null,null,null,null,null,3,"Victor",109,"Sadie Pierce",981.77,264.94]
[null,null,null,null,null,3,"Golf",34,"Brooke Ritter",281.52,281.52]
[null,null,null,null,null,3,"Delta",18,"Erin Johns",478.91,478.91]
[null,null,null,null,null,4,"India",41,"Ricardo Jacobs",311.42,151.13999999999999]
[null,null,null,null,null,4,"Bravo",10,"Tyler Lynch",768.77,696.36]
[null,null,null,null,null,4,"Foxtrot",30,"Trystan Norton",652.30999999999995,387.58]
[null,null,null,null,null,3,"Lima",60,"Emma Mitchell",269.10000000000002,269.10000000000002]
[null,null,null,null,null,2,"India",41,"Eileen Knox",151.47999999999999,151.47999999999999]
[null,null,null,null,null,3,"Victor",107,"Eileen Knox",218.13,218.13]
[null,null,null,null,null,3,"India",45,"Karina Cisneros",318.58999999999997,318.58999999999997]
[null,null,null,null,null,4,"Charlie",14,"Precious Guerrero",212.74,212.74]
[null,null,null,null,null,2,"Victor",106,"Lorelei Mccoy",648.11,283.02]
[null,null,null,null,null,3,"Juliet",49,"Trystan Norton",714.46,553.99]
[null,null,null,null,null,4,"Echo",21,"Christopher Bates",520.02,520.02]
[null,null,null,null,null,2,"November",66,"Rigoberto Bush",988.61,731.5]
[null,null,null,null,null,1,"India",44,"Tomas Suarez",438.86,416.29]
[null,null,null,null,null,1,"Oscar",72,"Cristal York",637.80999999999995,582.35]
[null,null,null,null,null,2,"Tango",99,"Kolton Elliott",527.5,165.73]
[null,null,null,null,null,2,"November",67,"Everett Gill",276.38,201.09]
[null,null,null,null,null,3,"Oscar",73,"Parker Woods",590.21,127.32]
[null,null,null,null,null,3,"Oscar",74,"Emery Estes",685.83,241.17]
[null,null,null,null,null,2,"Mike",64,"Dane Patton",256.08,256.08]
[null,null,null,null,null,2,"Bravo",10,"Douglas Barry",174.08,174.08]
[null,null,null,null,null,3,"India",41,"Cristal York",221.99,221.99]
[null,null,null,null,null,2,"Papa",76,"Jaden Davidson",591.17999999999995,591.17999999999995]
[null,null,null,null,null,2,"Victor",107,"Luciano Jackson",729.9,421.52]
[null,null,null,null,null,1,"X-Ray",119,"Javier Meyers",720.52,299.89999999999998]
[null,null,null,null,null,4,"Charlie",12,"Cruz Short",560.67999999999995,349.78]
[null,null,null,null,null,2,"Bravo",10,"Luciano Jackson",340.1,340.1]
[null,null,null,null,null,2,"Romeo",89,"Markus Benson",732.59,152.44]
[null,null,null,null,null,2,"Tango",97,"Rigoberto Bush",241.18,241.18]
[null,null,null,null,null,1,"Charlie",15,"Donald Mcfarland",550.19000000000005,550.19000000000005]
[null,null,null,null,null,1,"Lima",57,"Parker Woods",669.59,225.17]
[null,null,null,null,null,3,"Juliet",49,"Addyson Mccormick",989.4,131.78]
[null,null,null,null,null,1,"Papa",77,"Alexander Moses",563.04,350.77]
[null,null,null,null,null,4,"Tango",100,"Lizbeth Carrillo",776.21,776.21]
[null,null,null,null,null,3,"X-Ray",116,"Christopher Bates",705.28,574.26]
[null,null,null,null,null,4,"Golf",34,"Sadie Pierce",418.94,418.94]
[null,null,null,null,null,4,"November",68,"Gilberto Yoder",964.61,421.88]
[null,null,null,null,null,1,"Whisky",112,"Precious Guerrero",130.16,130.16]
[null,null,null,null,null,4,"Tango",100,"America Choi",685.31,484.92]
[null,null,null,null,null,1,"Charlie",15,"Cruz Short",920.93,438.53]
[null,null,null,null,null,3,"Juliet",48,"Raiden Shelton",494.67,494.67]
[null,null,null,null,null,1,"Delta",17,"Shaniya Franklin",778.19,316.75]
[null,null,null,null,null,1,"Lima",60,"Dane Patton",631.91999999999996,549.62]
[null,null,null,null,null,1,"Juliet",50,"Laura Barrett",335.39,244.66]
[null,null,null,null,null,3,"Golf",32,"Tyree Adkins",313.02999999999997,313.02999999999997]
[null,null,null,null,null,2,"Hotel",39,"Brennan Campos",694.53,533.13]
[null,null,null,null,null,2,"Sierra",93,"Eileen Knox",666.81,666.81]
[null,null,null,null,null,4,"Tango",97,"Braylon Townsend",850.97,479.3]
[null,null,null,null,null,4,"Quebec",85,"Douglas Barry",356.43,356.43]
[null,null,null,null,null,2,"Uniform",104,"Emmett Esparza",248.87,248.87]
[null,null,null,null,null,4,"Charlie",11,"Kolton Elliott",310.89,200.52]
[null,null,null,null,null,2,"Bravo",10,"Brooke Ritter",134.96,134.96]
[null,null,null,null,null,1,"Echo",22,"Sadie Pierce",111.36,111.36]
[null,null,null,null,null,2,"X-Ray",116,"Asher Dunn",184.48,184.48]
[null,null,null,null,null,3,"November",70,"Jacob Howell",827.22,827.22]
[null,null,null,null,null,3,"Uniform",104,"Zayne Dunn",905.61,806.05]
[null,null,null,null,null,3,"November",70,"Kiley Rollins",192.91,192.91]
[null,null,null,null,null,2,"Papa",78,"Raiden Shelton",705.36,386.56]
[null,null,null,null,null,2,"Zulu",129,"Cristal York",350.4,350.4]
[null,null,null,null,null,2,"Hotel",39,"Emma Mitchell",939.28,841.55]
[null,null,null,null,null,3,"Tango",97,"Dixie Stanton",722.05,722.05]
[null,null,null,null,null,2,"Victor",107,"Shaniya Franklin",651.15,372.24]
[null,null,null,null,null,4,"Delta",19,"Armando Hoover",574.32000000000005,128.61000000000001]
[null,null,null,null,null,2,"Tango",100,"Karson Choi",178.94,123.53]
[null,null,null,null,null,3,"Romeo",86,"Markus Benson",302.69,302.69]
[null,null,null,null,null,3,"India",41,"Sarai Kemp",889.83,564.13]
[null,null,null,null,null,2,"Juliet",47,"Maren Sweeney",776.37,461.06]
[null,null,null,null,null,4,"Sierra",95,"Kiley Rollins",800.19,800.19]
[null,null,null,null,null,1,"X-Ray",120,"America Choi",360.12,195.84]
[null,null,null,null,null,3,"Zulu",126,"Jonathan Paul",439.39,439.39]
[null,null,null,null,null,4,"Oscar",71,"Alondra Long",742.81,213.88]
[null,null,null,null,null,2,"Zulu",126,"Tomas Suarez",879.28,634.82000000000005]
[null,null,null,null,null,2,"Alpha",5,"Emma Mitchell",771.11,771.11]
[null,null,null,null,null,2,"November",68,"Allie Franklin",467.72,467.72]
[null,null,null,null,null,4,"Quebec",82,"Dixie Stanton",195.13,195.13]
[null,null,null,null,null,2,"Alpha",1,"Ari Hernandez",486.16,226.64]
[null,null,null,null,null,4,"India",41,"Porter Leach",613.78,612.44000000000005]
[null,null,null,null,null,4,"Romeo",90,"Alondra Long",563.42999999999995,563.42999999999995]
[null,null,null,null,null,4,"Romeo",88,"Cristal York",848.99,283.82]
[null,null,null,null,null,2,"Lima",58,"Cristal York",169.76,169.76]
[null,null,null,null,null,3,"Lima",56,"Sanaa Dunn",411.27,411.27]
[null,null,null,null,null,2,"Uniform",102,"Gilberto Yoder",482.72,482.72]
[null,null,null,null,null,4,"Sierra",94,"Tyree Adkins",605.32000000000005,131.26]
[null,null,null,null,null,2,"Alpha",3,"Payton Horn",889.24,153.87]
[null,null,null,null,null,2,"Hotel",40,"Gilberto Yoder",265.33,195.07]
[null,null,null,null,null,1,"Whisky",115,"Gilberto Yoder",975.31,165.56]
[null,null,null,null,null,4,"India",44,"Marley George",384.6,181.7]
[null,null,null,null,null,4,"Papa",79,"Gilberto Yoder",186.1,186.1]
[null,null,null,null,null,1,"India",44,"Dane Patton",221.68,221.68]
[null,null,null,null,null,1,"Delta",17,"Terrance Sampson",476.56,292.45999999999998]
[null,null,null,null,null,1,"Victor",107,"Baron Dougherty",527.59,527.59]
[null,null,null,null,null,3,"Uniform",102,"Jasmine Newton",763.14,758.34]
[null,null,null,null,null,2,"Quebec",85,"Trystan Norton",496.02,496.02]
[null,null,null,null,null,2,"Uniform",105,"Jacob Howell",339.69,339.69]
[null,null,null,null,null,1,"Whisky",113,"Rigoberto Bush",228.68,152.33000000000001]
[null,null,null,null,null,4,"Golf",33,"Terrance Sampson",698.27,698.27]
[null,null,null,null,null,2,"Romeo",86,"Sarai Kemp",427.79,427.79]
[null,null,null,null,null,4,"Oscar",74,"Emma Mitchell",542.26,542.26]
[null,null,null,null,null,3,"Delta",16,"Kiley Rollins",565.07000000000005,565.07000000000005]
[null,null,null,null,null,2,"November",69,"Jaden Davidson",677.59,677.59]
[null,null,null,null,null,4,"Tango",99,"Savanna Dixon",868.68,181.62]
[null,null,null,null,null,2,"Mike",63,"Sadie Pierce",834.21,387.88]
[null,null,null,null,null,2,"Lima",58,"Kennedy Christian",310.14,310.14]
[null,null,null,null,null,3,"Papa",78,"Jovan Solomon",779.2,779.2]
[null,null,null,null,null,4,"Mike",63,"Tyler Lynch",523.05999999999995,523.05999999999995]
[null,null,null,null,null,2,"Echo",24,"America Choi",425.26,425.26]
[null,null,null,null,null,1,"Papa",79,"Shaniya Franklin",931.7,734.96]
[null,null,null,null,null,2,"Foxtrot",30,"Keenan Sawyer",262.54000000000002,262.54000000000002]
[null,null,null,null,null,1,"Juliet",47,"Heidy White",832.56,549.84]
[null,null,null,null,null,4,"Alpha",5,"America Choi",694.61,194.67]
[null,null,null,null,null,1,"Whisky",112,"Lizbeth Carrillo",354.46,354.46]
[null,null,null,null,null,1,"Romeo",89,"Kiley Rollins",812.91,507.75]
[null,null,null,null,null,2,"X-Ray",118,"Stanley Gonzales",231,198.34]
[null,null,null,null,null,3,"Bravo",8,"Shaniya Franklin",364.21,364.21]
[null,null,null,null,null,1,"Charlie",15,"Armando Hoover",311.74,311.74]
[null,null,null,null,null,1,"Golf",34,"Everett Gill",178.51,178.51]
[null,null,null,null,null,3,"Golf",31,"Jovan Solomon",717.69,717.69]
[null,null,null,null,null,4,"Mike",65,"Jovan Solomon",330.49,178.7]
[null,null,null,null,null,1,"November",68,"Ingrid Parker",545.4,545.4]
[null,null,null,null,null,2,"Lima",58,"Lizbeth Carrillo",105.91,105.91]
[null,null,null,null,null,3,"Lima",56,"Keenan Sawyer",414.2,414.2]
[null,null,null,null,null,1,"Uniform",103,"Javier Meyers",979.77,124.4]
[null,null,null,null,null,2,"Quebec",83,"Keenan Sawyer",134.47999999999999,130.19999999999999]
[null,null,null,null,null,2,"Whisky",112,"Alejandra Clements",666.51,199.4]
[null,null,null,null,null,2,"Hotel",39,"Trystan Norton",684.53,558.48]
[null,null,null,null,null,1,"Tango",100,"Parker Woods",221.21,221.21]
[null,null,null,null,null,1,"Sierra",93,"Valentina Durham",302.66000000000003,302.66000000000003]
[null,null,null,null,null,3,"Juliet",47,"Armando Hoover",714.41,336.07]
[null,null,null,null,null,4,"Romeo",90,"Sadie Pierce",797.66,565.98]
[null,null,null,null,null,4,"Echo",21,"Enrique Lambert",533.73,433.08]
[null,null,null,null,null,1,"Oscar",71,"Akira Murray",459.2,459.2]
[null,null,null,null,null,3,"Sierra",95,"Akira Murray",627.5,627.5]
[null,null,null,null,null,2,"India",45,"Raiden Shelton",732.35,707.34]
[null,null,null,null,null,4,"X-Ray",120,"Trystan Norton",990.99,812.96]
[null,null,null,null,null,4,"Hotel",36,"Tomas Suarez",808.31,279.74]
[null,null,null,null,null,2,"Uniform",102,"Akira Murray",946.3,598.74]
[null,null,null,null,null,1,"Bravo",6,"Javier Meyers",816.99,816.99]
[null,null,null,null,null,2,"Oscar",71,"Khloe Michael",302.92,302.92]
[null,null,null,null,null,2,"Romeo",89,"Eileen Knox",639.66,611.61]
[null,null,null,null,null,2,"Delta",17,"Scarlett Calhoun",621.75,621.75]
[null,null,null,null,null,3,"Foxtrot",30,"Christopher Bates",406.07,406.07]
[null,null,null,null,null,3,"Yankee",125,"Sanaa Dunn",516.69000000000005,516.69000000000005]
[null,null,null,null,null,3,"Alpha",5,"Precious Guerrero",862.72,586.15]
[null,null,null,null,null,3,"Delta",20,"Emma Mitchell",639.51,639.51]
[null,null,null,null,null,1,"Oscar",74,"Kennedy Christian",356.98,356.98]
[null,null,null,null,null,3,"Papa",79,"Braylon Townsend",706.99,677.78]
[null,null,null,null,null,3,"Mike",62,"Keenan Sawyer",478.93,318]
[null,null,null,null,null,2,"Yankee",122,"Ellie Jensen",338.39,338.39]
[null,null,null,null,null,3,"Tango",99,"Julianna Knox",493.37,493.37]
[null,null,null,null,null,1,"Victor",109,"Alexander Moses",426.31,413.1]
[null,null,null,null,null,4,"Bravo",6,"Abdullah Bridges",624.94000000000005,624.94000000000005]
[null,null,null,null,null,4,"Papa",79,"Rigoberto Bush",813.33,813.33]
[null,null,null,null,null,2,"Whisky",115,"Eileen Knox",709.09,650.24]
[null,null,null,null,null,2,"Delta",19,"Christopher Bates",115.4,115.4]
[null,null,null,null,null,4,"Whisky",111,"Payton Horn",549.54,549.54]
[null,null,null,null,null,3,"Quebec",82,"Akira Murray",372.59,372.59]
[null,null,null,null,null,2,"Quebec",82,"Luciano Jackson",672.38,315.54000000000002]
[null,null,null,null,null,3,"Kilo",55,"Maren Sweeney",867.18,520.66]
[null,null,null,null,null,1,"Hotel",38,"Valentina Durham",735.91,570.53]
[null,null,null,null,null,4,"Tango",97,"Tomas Suarez",943.49,672.72]
[null,null,null,null,null,1,"Bravo",9,"Lorelei Mccoy",299.41000000000003,299.41000000000003]
[null,null,null,null,null,4,"Echo",22,"Armando Hoover",544.69000000000005,204.4]
[null,null,null,null,null,1,"Charlie",15,"Amber Spence",305.43,305.43]
[null,null,null,null,null,1,"Victor",107,"Asher Dunn",470.78,470.78]
[null,null,null,null,null,4,"Foxtrot",26,"Ari Hernandez",278.76,278.76]
[null,null,null,null,null,2,"November",68,"Sarai Kemp",274.85000000000002,128.22999999999999]
[null,null,null,null,null,2,"Oscar",73,"Emma Mitchell",228.4,228.4]
[null,null,null,null,null,2,"Bravo",10,"Douglas Barry",410.47,382.47]
[null,null,null,null,null,2,"Lima",57,"Kiley Rollins",382.73,382.73]
[null,null,null,null,null,1,"Quebec",84,"Declan Figueroa",527.64,527.64]
[null,null,null,null,null,4,"Golf",35,"Payton Horn",155.55000000000001,155.55000000000001]
[null,null,null,null,null,1,"November",68,"Tomas Suarez",634.52,634.52]
[null,null,null,null,null,1,"Delta",17,"Rigoberto Bush",388.79,297.44]
[null,null,null,null,null,1,"Yankee",121,"Gilberto Yoder",758.6,758.6]
[null,null,null,null,null,3,"Bravo",10,"Catalina Richards",107.31,107.31]
[null,null,null,null,null,3,"Oscar",72,"Luciano Jackson",731.24,731.24]
[null,null,null,null,null,3,"Romeo",88,"Karson Choi",270.85000000000002,270.85000000000002]
[null,null,null,null,null,1,"Victor",107,"Donald Mcfarland",652.69000000000005,652.69000000000005]
[null,null,null,null,null,1,"Hotel",39,"Alisha Woodward",988.66,800]
[null,null,null,null,null,2,"Tango",97,"Asia Hendricks",654.41,356.77]
[null,null,null,null,null,1,"Quebec",85,"Pierre Cain",870.62,277.08999999999997]
[null,null,null,null,null,3,"Papa",78,"Asher Dunn",464.2,464.2]
[null,null,null,null,null,3,"India",43,"Cruz Short",996.13,905.54]
[null,null,null,null,null,4,"Golf",33,"Amber Spence",438.45,152.19999999999999]
[null,null,null,null,null,1,"Echo",24,"Precious Guerrero",634.9,322.08]
[null,null,null,null,null,3,"Romeo",89,"Declan Figueroa",401.11,401.11]
[null,null,null,null,null,4,"Romeo",90,"Brennan Campos",615.12,366.03]
[null,null,null,null,null,2,"Delta",17,"Porter Leach",715.14,272.63]
[null,null,null,null,null,4,"Charlie",14,"Lorelei Mccoy",156.41,156.41]
[null,null,null,null,null,2,"Kilo",52,"Pierre Cain",301.66000000000003,301.66000000000003]
[null,null,null,null,null,2,"Alpha",3,"Miya Miranda",674.9,674.9]
[null,null,null,null,null,1,"Sierra",94,"Karina Cisneros",202.9,202.9]
[null,null,null,null,null,3,"Bravo",6,"Tomas Suarez",658.39,354.14]
[null,null,null,null,null,2,"Hotel",36,"Paityn Olson",260.16000000000003,260.16000000000003]
[null,null,null,null,null,2,"Whisky",111,"Jaden Davidson",851.19,549.14]
[null,null,null,null,null,2,"Delta",17,"Porter Leach",645.5,220.63]
[null,null,null,null,null,4,"Zulu",128,"Kolton Elliott",283.52,108.72]
[null,null,null,null,null,4,"Bravo",8,"Stanley Gonzales",808.41,580.51]
[null,null,null,null,null,3,"India",43,"Miya Miranda",357.54,357.54]
[null,null,null,null,null,3,"Uniform",101,"Stephen Booth",452.98,452.98]
[null,null,null,null,null,3,"Lima",56,"Julianna Knox",538.72,422.67]
[null,null,null,null,null,4,"Zulu",130,"Brennan Campos",969.31,583.69000000000005]
[null,null,null,null,null,1,"Papa",79,"Grant Snow",436.61,204.39]
[null,null,null,null,null,2,"Echo",23,"Allie Franklin",863.9,527.57000000000005]
[null,null,null,null,null,3,"Lima",57,"Declan Figueroa",463.39,126.03]
[null,null,null,null,null,2,"Golf",34,"Douglas Barry",501.07,355.95]
[null,null,null,null,null,2,"Quebec",82,"America Choi",696.5,696.5]
[null,null,null,null,null,1,"November",68,"Emma Mitchell",730.65,656.34]
[null,null,null,null,null,1,"Juliet",50,"Abdullah Bridges",585.30999999999995,352.21]
[null,null,null,null,null,4,"Romeo",90,"Precious Guerrero",504.44,504.44]
[null,null,null,null,null,3,"Echo",24,"Sadie Pierce",212.73,212.73]
[null,null,null,null,null,3,"Hotel",38,"Emma Mitchell",995.27,680.91]
[null,null,null,null,null,4,"X-Ray",116,"Brooke Ritter",272.67,272.67]
[null,null,null,null,null,4,"Whisky",115,"Keenan Sawyer",946.5,852.34]
[null,null,null,null,null,2,"Kilo",54,"Emmett Esparza",573.39,213.84]
[null,null,null,null,null,3,"Alpha",3,"Amber Spence",383.36,330.2]
[null,null,null,null,null,2,"Foxtrot",28,"Leonard Monroe",639.82000000000005,619.53]
[null,null,null,null,null,3,"Quebec",81,"Eileen Knox",467.39,175.22]
[null,null,null,null,null,2,"Sierra",92,"Asia Hendricks",458.7,458.7]
[null,null,null,null,null,1,"Uniform",101,"Jamarion Kelly",973.1,499.25]
[null,null,null,null,null,4,"Victor",109,"Keenan Sawyer",216.13,216.13]
[null,null,null,null,null,4,"Charlie",11,"Marley George",926.95,110.31]
[null,null,null,null,null,3,"Alpha",1,"Emma Mitchell",547.70000000000005,231.56]
[null,null,null,null,null,4,"Papa",78,"Cristal York",458.75,458.75]
[null,null,null,null,null,3,"Golf",34,"Alisha Woodward",414.28,414.28]
[null,null,null,null,null,4,"Golf",31,"Enrique Lambert",896.28,455.78]
[null,null,null,null,null,2,"Golf",31,"Akira Murray",882.23,416.76]
[null,null,null,null,null,3,"Quebec",85,"Dixie Stanton",976.88,638.53]
[null,null,null,null,null,2,"Papa",76,"Allie Franklin",921.19,526]
[null,null,null,null,null,2,"Kilo",53,"Carter Obrien",386.73,351.21]
[null,null,null,null,null,2,"Uniform",105,"Scarlett Calhoun",712.49,613.83000000000004]
[null,null,null,null,null,1,"Zulu",129,"Dixie Stanton",700.31,700.31]
[null,null,null,null,null,2,"Uniform",103,"Grant Snow",900.27,657.94]
[null,null,null,null,null,3,"Hotel",40,"Parker Woods",608.91,228.06]
[null,null,null,null,null,1,"X-Ray",119,"Parker Woods",431.74,225.23]
[null,null,null,null,null,2,"Oscar",72,"Ricardo Jacobs",557.1,313.51]
[null,null,null,null,null,1,"Juliet",50,"Paityn Olson",675.92,668.75]
[null,null,null,null,null,3,"Charlie",15,"Benjamin Bell",288.77999999999997,288.77999999999997]
[null,null,null,null,null,4,"Golf",31,"Khloe Michael",408.04,331.75]
[null,null,null,null,null,4,"Whisky",114,"Addyson Mccormick",684.07,274.67]
[null,null,null,null,null,4,"Echo",22,"America Choi",525.99,123.62]
[null,null,null,null,null,2,"Romeo",88,"Douglas Barry",582.69000000000005,143.76]
[null,null,null,null,null,4,"Alpha",5,"Ashanti Leblanc",210.65,210.65]
[null,null,null,null,null,4,"Echo",25,"Emmett Esparza",916.04,427.14]
[null,null,null,null,null,3,"Papa",80,"Ingrid Parker",164.44,164.44]
[null,null,null,null,null,2,"Kilo",53,"Porter Leach",118.45,118.45]
[null,null,null,null,null,4,"Echo",23,"Javier Meyers",106.4,106.4]
[null,null,null,null,null,4,"X-Ray",120,"Alisha Woodward",465.43,465.43]
[null,null,null,null,null,1,"Whisky",111,"Christopher Bates",444.56,208.49]
[null,null,null,null,null,1,"X-Ray",116,"Alisha Woodward",366.74,113.36]
[null,null,null,null,null,4,"Zulu",127,"Kiley Rollins",583.41,583.41]
[null,null,null,null,null,4,"X-Ray",116,"Raiden Shelton",830.42,645.12]
[null,null,null,null,null,4,"X-Ray",120,"Precious Guerrero",648.86,374.88]
[null,null,null,null,null,2,"Quebec",85,"Morgan Rose",419.47,419.47]
[null,null,null,null,null,4,"Romeo",90,"Jaden Davidson",897.13,261.5]
[null,null,null,null,null,3,"Hotel",37,"Jasmine Newton",924.14,634.71]
[null,null,null,null,null,1,"Juliet",50,"Regina Freeman",543.87,543.87]
[null,null,null,null,null,4,"Golf",34,"Asia Hendricks",297.70999999999998,297.70999999999998]
[null,null,null,null,null,3,"Charlie",14,"Amber Spence",311.85000000000002,276.32]
[null,null,null,null,null,3,"Kilo",53,"Amber Spence",342.52,342.52]
[null,null,null,null,null,1,"Papa",79,"Enrique Lambert",763.49,122.25]
[null,null,null,null,null,4,"Yankee",125,"Ellie Jensen",214.6,214.6]
[null,null,null,null,null,2,"Romeo",86,"Christopher Bates",364.31,364.31]
[null,null,null,null,null,4,"Yankee",123,"Ellie Jensen",252.69,136.11000000000001]
[null,null,null,null,null,4,"Golf",31,"Gilberto Yoder",618.35,585.02]
[null,null,null,null,null,3,"Uniform",102,"Ingrid Parker",696.51,696.51]
[null,null,null,null,null,3,"Tango",97,"Maren Sweeney",333.02,333.02]
[null,null,null,null,null,2,"Alpha",5,"Frederick Knapp",683.79,345.94]
[null,null,null,null,null,1,"Sierra",92,"Arthur Patton",494.25,203.16]
[null,null,null,null,null,4,"Romeo",88,"Declan Figueroa",823.36,555.29999999999995]
[null,null,null,null,null,4,"Sierra",95,"Allie Franklin",712.82,712.82]
[null,null,null,null,null,3,"Mike",64,"Markus Benson",418.65,418.65]
[null,null,null,null,null,2,"Kilo",52,"Alisha Woodward",269.04000000000002,269.04000000000002]
[null,null,null,null,null,4,"Charlie",12,"Marley George",695.98,695.98]
[null,null,null,null,null,1,"India",42,"Luciano Jackson",456.49,305.13]
[null,null,null,null,null,2,"Oscar",74,"Pierre Cain",774.7,461.59]
[null,null,null,null,null,3,"India",45,"Allie Franklin",183.67,183.67]
[null,null,null,null,null,1,"Bravo",8,"Luciano Jackson",434.88,434.88]
[null,null,null,null,null,1,"Zulu",129,"Sanaa Dunn",355.69,284.97000000000003]
[null,null,null,null,null,1,"X-Ray",118,"Pierre Cain",508.41,343.25]
[null,null,null,null,null,3,"Victor",107,"Jonathan Paul",617.53,148.43]
[null,null,null,null,null,3,"Tango",96,"Emmett Esparza",776.46,712.54]
[null,null,null,null,null,1,"Yankee",122,"Francisco Stevenson",437.67,219]
[null,null,null,null,null,2,"Golf",34,"Everett Gill",585.41999999999996,585.41999999999996]
[null,null,null,null,null,2,"India",42,"Paityn Olson",536.30999999999995,536.30999999999995]
[null,null,null,null,null,1,"Oscar",74,"Regina Freeman",147.28,147.28]
[null,null,null,null,null,3,"Uniform",102,"Jaden Davidson",624.54999999999995,211.32]
[null,null,null,null,null,4,"Yankee",125,"Abdullah Bridges",948.74,844.46]
[null,null,null,null,null,3,"Kilo",55,"Laura Barrett",256.69,136.86000000000001]
[null,null,null,null,null,4,"Hotel",39,"Marley George",393.98,393.98]
[null,null,null,null,null,3,"Bravo",8,"Karson Choi",823.43,285.52999999999997]
[null,null,null,null,null,1,"India",44,"Braylon Townsend",732.89,732.89]
[null,null,null,null,null,3,"Charlie",15,"Keenan Sawyer",267.75,267.75]
[null,null,null,null,null,3,"Bravo",10,"Terrance Sampson",494.23,235.12]
[null,null,null,null,null,3,"Juliet",46,"Stephen Booth",388.62,388.62]
[null,null,null,null,null,1,"Juliet",49,"Cruz Short",843.01,843.01]
[null,null,null,null,null,3,"Whisky",114,"Ellie Jensen",527.72,527.72]
[null,null,null,null,null,2,"Kilo",55,"Trystan Norton",213.59,213.59]
[null,null,null,null,null,1,"Oscar",74,"Akira Murray",952.4,483.03]
[null,null,null,null,null,2,"Mike",64,"Frederick Knapp",903.16,451.71]
[null,null,null,null,null,3,"Juliet",50,"Laura Barrett",879.01,390.21]
[null,null,null,null,null,3,"Sierra",91,"Sarai Kemp",362.67,362.67]
[null,null,null,null,null,3,"Quebec",84,"Savanna Dixon",524.99,322.89999999999998]
[null,null,null,null,null,1,"Oscar",72,"Dane Patton",730.97,730.97]
[null,null,null,null,null,3,"Juliet",49,"Rigoberto Bush",187.15,187.15]
[null,null,null,null,null,4,"November",69,"Ari Hernandez",816.8,810.1]
[null,null,null,null,null,3,"Hotel",37,"America Choi",888.18,158.07]
[null,null,null,null,null,1,"Echo",22,"Donna Warren",616.48,616.48]
[null,null,null,null,null,2,"Alpha",3,"Scarlett Calhoun",838.71,798.75]
[null,null,null,null,null,4,"Juliet",46,"Jovan Solomon",220.21,220.21]
[null,null,null,null,null,1,"Echo",23,"Asia Hendricks",158.54,158.54]
[null,null,null,null,null,1,"Quebec",83,"Arthur Patton",816.31,816.31]
[null,null,null,null,null,4,"Quebec",84,"Baron Dougherty",680.76,633.16999999999996]
[null,null,null,null,null,4,"Charlie",11,"Tyler Lynch",115.67,115.67]
[null,null,null,null,null,1,"Delta",17,"Everett Gill",291.01,291.01]
[null,null,null,null,null,4,"Charlie",15,"Addyson Mccormick",989.79,158.44]
[null,null,null,null,null,4,"Alpha",1,"Morgan Rose",667.42,536.32000000000005]
[null,null,null,null,null,1,"Kilo",54,"Emma Mitchell",912.91,159.11000000000001]
[null,null,null,null,null,3,"November",69,"Ishaan Hardy",878.09,418.89]
[null,null,null,null,null,2,"Bravo",10,"Ricardo Jacobs",454.79,436.55]
[null,null,null,null,null,3,"Sierra",93,"Julianna Knox",279.75,279.75]
[null,null,null,null,null,4,"Oscar",72,"Luciano Jackson",206.75,161.13]
[null,null,null,null,null,4,"Alpha",1,"Jacob Howell",118.43,118.43]
[null,null,null,null,null,2,"Quebec",82,"Ellie Jensen",676.14,676.14]
[null,null,null,null,null,1,"Uniform",105,"Arthur Patton",729.03,665.33]
[null,null,null,null,null,1,"Papa",76,"Scarlett Calhoun",188.64,188.64]
[null,null,null,null,null,2,"Bravo",7,"Asia Hendricks",711.37,627.98]
[null,null,null,null,null,3,"Oscar",72,"Rigoberto Bush",185.51,126.84]
[null,null,null,null,null,2,"Tango",98,"Paityn Olson",901.91,108.71]
[null,null,null,null,null,2,"Papa",78,"Paityn Olson",848.11,227.84]
[null,null,null,null,null,4,"Yankee",122,"Rigoberto Bush",761.85,272.85000000000002]
[null,null,null,null,null,2,"Sierra",93,"Alondra Long",681.63,329.45]
[null,null,null,null,null,3,"Sierra",91,"Jaylene Jones",565.77,565.77]
[null,null,null,null,null,3,"Alpha",2,"Morgan Rose",234.71,130.78]
[null,null,null,null,null,3,"Lima",58,"Stanley Gonzales",683.8,683.8]
[null,null,null,null,null,1,"Sierra",94,"Cristal York",814.29,549.77]
[null,null,null,null,null,1,"India",44,"Luciano Jackson",290.64,290.64]
[null,null,null,null,null,2,"Tango",96,"Porter Leach",851.15,153.27000000000001]
[null,null,null,null,null,3,"Alpha",1,"Ricardo Jacobs",643.66,643.66]
[null,null,null,null,null,3,"Delta",20,"Jonathan Paul",588.13,371.62]
[null,null,null,null,null,2,"Juliet",48,"Addyson Mccormick",876.14,552.82000000000005]
[null,null,null,null,null,2,"Echo",23,"Asia Hendricks",158.19999999999999,158.19999999999999]
[null,null,null,null,null,1,"Oscar",75,"Julianna Knox",664.18,663.68]
[null,null,null,null,null,2,"Zulu",129,"Lorelei Mccoy",483.22,265.97000000000003]
[null,null,null,null,null,4,"X-Ray",116,"Armando Hoover",932.76,407.48]
[null,null,null,null,null,4,"Hotel",37,"Jonathan Paul",782.48,431.07]
[null,null,null,null,null,2,"X-Ray",118,"Ashanti Leblanc",985.71,469.18]
[null,null,null,null,null,4,"Whisky",115,"Stanley Gonzales",172.44,172.44]
[null,null,null,null,null,3,"Quebec",82,"Porter Leach",662.9,251.15]
[null,null,null,null,null,3,"Uniform",102,"Brennan Campos",609.20000000000005,600.92999999999995]
[null,null,null,null,null,4,"Juliet",47,"Parker Woods",549.78,182.44]
[null,null,null,null,null,2,"Oscar",73,"Kennedy Christian",234.81,234.81]
[null,null,null,null,null,3,"Quebec",82,"Khloe Michael",242.39,242.39]
[null,null,null,null,null,2,"Tango",97,"Alondra Long",753.8,753.8]
[null,null,null,null,null,1,"November",70,"Donna Warren",599.23,599.23]
[null,null,null,null,null,1,"Echo",21,"Sadie Pierce",310.72000000000003,310.72000000000003]
[null,null,null,null,null,4,"Lima",58,"Asher Dunn",545.5,545.5]
[null,null,null,null,null,1,"Juliet",48,"Armando Hoover",551.64,183.89]
[null,null,null,null,null,2,"Hotel",38,"Jamarion Kelly",482.85,482.85]
[null,null,null,null,null,3,"Romeo",89,"Khloe Michael",556.79,476.83]
[null,null,null,null,null,4,"Romeo",86,"Keenan Sawyer",291.58,291.58]
[null,null,null,null,null,4,"Tango",97,"Carter Obrien",851.47,851.47]
[null,null,null,null,null,4,"Whisky",115,"Khloe Michael",144.15,144.15]
[null,null,null,null,null,3,"Oscar",73,"Douglas Barry",508.76,465.54]
[null,null,null,null,null,1,"Romeo",88,"Alexander Moses",934.99,211.72]
[null,null,null,null,null,1,"Oscar",75,"Cristal York",979.61,190.53]
[null,null,null,null,null,4,"Echo",21,"Christopher Bates",121.59,121.59]
[null,null,null,null,null,3,"India",44,"Alexander Moses",892.72,892.72]
[null,null,null,null,null,1,"Yankee",125,"Karson Choi",267.49,267.49]
[null,null,null,null,null,2,"X-Ray",120,"Ricardo Jacobs",371.95,108.56]
[null,null,null,null,null,2,"Juliet",46,"Trystan Norton",788.45,535.13]
[null,null,null,null,null,2,"Echo",24,"Kolton Elliott",776.1,586.76]
[null,null,null,null,null,2,"Delta",17,"Enrique Lambert",430.32,405.07]
[null,null,null,null,null,3,"Kilo",53,"Jonathan Paul",832.62,570.52]
[null,null,null,null,null,2,"Oscar",75,"Ishaan Hardy",982.57,862.84]
[null,null,null,null,null,4,"Charlie",11,"Brennan Campos",996.63,972.14]
[null,null,null,null,null,3,"Lima",57,"Erin Johns",882.97,882.97]
[null,null,null,null,null,3,"India",45,"Khloe Michael",948.84,514.30999999999995]
[null,null,null,null,null,2,"X-Ray",118,"Declan Figueroa",972,188.84]
[null,null,null,null,null,3,"Zulu",129,"Ellie Jensen",306.83,306.83]
[null,null,null,null,null,4,"Lima",56,"Brooke Ritter",949.49,910.69]
[null,null,null,null,null,3,"Foxtrot",28,"Francisco Stevenson",833.36,833.36]
[null,null,null,null,null,4,"Papa",79,"Ellie Jensen",631.27,631.27]
[null,null,null,null,null,2,"Kilo",55,"Keenan Sawyer",935.42,712.54]
[null,null,null,null,null,2,"Tango",96,"Karina Cisneros",245.23,245.23]
[null,null,null,null,null,2,"Lima",58,"Jacob Howell",348.66,348.66]
[null,null,null,null,null,2,"Golf",32,"Dixie Stanton",978.67,431.35]
[null,null,null,null,null,4,"Zulu",127,"America Choi",626.57000000000005,478.58]
[null,null,null,null,null,4,"Delta",18,"Tyler Lynch",525.73,125.42]
[null,null,null,null,null,3,"Whisky",114,"Ari Hernandez",170.68,170.68]
[null,null,null,null,null,3,"Alpha",4,"Valentina Durham",253.99,184.91]
[null,null,null,null,null,2,"Zulu",128,"Heidy White",141.86000000000001,141.86000000000001]
[null,null,null,null,null,2,"X-Ray",120,"Ingrid Parker",416.94,416.94]
[null,null,null,null,null,4,"X-Ray",116,"Savanna Dixon",844.77,138.46]
[null,null,null,null,null,2,"Charlie",14,"Julianna Knox",740.61,522.26]
[null,null,null,null,null,4,"Sierra",93,"Alexander Moses",742.64,188.81]
[null,null,null,null,null,2,"Golf",31,"Addyson Mccormick",433.19,433.19]
[null,null,null,null,null,4,"Kilo",51,"Julianna Knox",185.9,185.9]
[null,null,null,null,null,2,"Victor",108,"Julianna Knox",768.82,768.82]
[null,null,null,null,null,4,"Zulu",130,"Emma Mitchell",562.72,562.72]
[null,null,null,null,null,4,"Uniform",101,"Lorelei Mccoy",988.11,375.38]
[null,null,null,null,null,4,"November",68,"Brennan Campos",633.16,400.54]
[null,null,null,null,null,4,"Romeo",86,"Maren Sweeney",268.24,268.24]
[null,null,null,null,null,1,"Quebec",83,"Laura Barrett",282.08999999999997,282.08999999999997]
[null,null,null,null,null,4,"Foxtrot",26,"Kamila Waters",121.18,121.18]
[null,null,null,null,null,1,"Papa",80,"Alejandra Clements",960.2,283.82]
[null,null,null,null,null,1,"Delta",19,"Precious Guerrero",617.16,196.46]
[null,null,null,null,null,3,"November",67,"Ashanti Leblanc",601.32000000000005,601.32000000000005]
[null,null,null,null,null,3,"Lima",59,"Jaylene Jones",577.34,414.56]
[null,null,null,null,null,3,"Sierra",91,"Stephen Booth",388.42,388.42]
[null,null,null,null,null,2,"Delta",19,"Karson Choi",488.55,488.55]
[null,null,null,null,null,3,"Kilo",55,"Douglas Barry",310.33999999999997,310.33999999999997]
[null,null,null,null,null,3,"Tango",96,"America Choi",500.24,281.76]
[null,null,null,null,null,4,"India",42,"Declan Figueroa",427.46,195.87]
[null,null,null,null,null,4,"X-Ray",117,"Karson Choi",407.03,407.03]
[null,null,null,null,null,1,"Quebec",83,"Abdullah Bridges",242.42,242.42]
[null,null,null,null,null,4,"Papa",78,"Precious Guerrero",149.79,149.79]
[null,null,null,null,null,1,"Romeo",87,"Laura Barrett",226.19,226.19]
[null,null,null,null,null,2,"X-Ray",120,"Ishaan Hardy",683.96,683.96]
[null,null,null,null,null,1,"Alpha",3,"Savanna Dixon",961.25,463.09]
[null,null,null,null,null,4,"Charlie",14,"Christopher Bates",822.73,271.33999999999997]
[null,null,null,null,null,4,"Tango",99,"Miya Miranda",678.18,678.18]
[null,null,null,null,null,1,"Mike",64,"Marley George",731.18,436.21]
[null,null,null,null,null,2,"Romeo",90,"Amber Spence",729.69,490.11]
[null,null,null,null,null,4,"Charlie",11,"Terrance Sampson",438.77,438.77]
[null,null,null,null,null,1,"Victor",108,"Tyler Lynch",482.37,482.37]
[null,null,null,null,null,4,"Kilo",52,"Raiden Shelton",569.69000000000005,569.69000000000005]
[null,null,null,null,null,2,"Mike",64,"Rigoberto Bush",731.24,731.24]
[null,null,null,null,null,2,"Zulu",128,"Rigoberto Bush",183.99,125.29]
[null,null,null,null,null,2,"Uniform",102,"Carter Obrien",615.63,615.63]
[null,null,null,null,null,4,"November",68,"Lizbeth Carrillo",152.08000000000001,152.08000000000001]
[null,null,null,null,null,4,"Sierra",95,"Stanley Gonzales",214.62,131]
[null,null,null,null,null,1,"Mike",65,"Karson Choi",425.3,192.04]
[null,null,null,null,null,3,"Yankee",121,"Donna Warren",942.3,795.7]
[null,null,null,null,null,4,"Lima",56,"Maren Sweeney",721.8,560.61]
[null,null,null,null,null,1,"Tango",96,"Tyree Adkins",294.01,294.01]
[null,null,null,null,null,1,"Hotel",36,"Kennedy Christian",803.16,703.29]
[null,null,null,null,null,1,"November",66,"Ari Hernandez",959.29,561.98]
[null,null,null,null,null,4,"Tango",98,"Donna Warren",312.05,253.46]
[null,null,null,null,null,2,"Delta",19,"Tomas Suarez",818.62,591.20000000000005]
[null,null,null,null,null,2,"Hotel",40,"Rigoberto Bush",496.29,496.29]
[null,null,null,null,null,4,"Echo",21,"Dixie Stanton",578.08000000000004,578.08000000000004]
[null,null,null,null,null,2,"Foxtrot",27,"Stephen Booth",554.37,484.87]
[null,null,null,null,null,1,"Kilo",53,"Frederick Knapp",427.55,250.18]
[null,null,null,null,null,3,"Foxtrot",30,"Amber Spence",510.86,510.86]
[null,null,null,null,null,1,"Romeo",89,"Francisco Stevenson",568.44000000000005,239.8]
[null,null,null,null,null,1,"Golf",34,"Amber Spence",298.61,298.61]
[null,null,null,null,null,3,"Sierra",91,"Jacob Howell",975.63,688.92]
[null,null,null,null,null,3,"Victor",107,"Ricardo Jacobs",822.45,763.39]
[null,null,null,null,null,1,"Romeo",86,"Raiden Shelton",761.63,761.63]
[null,null,null,null,null,4,"Golf",31,"Lizbeth Carrillo",814.47,631.25]
[null,null,null,null,null,3,"Bravo",9,"Christopher Bates",933.27,247.45]
[null,null,null,null,null,4,"Whisky",113,"Marley George",487.73,421.64]
[null,null,null,null,null,3,"Hotel",39,"Mariyah Randall",972.14,576.08000000000004]
[null,null,null,null,null,2,"November",67,"Karina Cisneros",521.71,444.22]
[null,null,null,null,null,4,"Mike",61,"Addyson Mccormick",580.52,580.52]
[null,null,null,null,null,3,"Charlie",14,"Keenan Sawyer",696.58,457.74]
[null,null,null,null,null,3,"Papa",79,"Ishaan Hardy",450.43,450.43]
[null,null,null,null,null,4,"Romeo",90,"Emmett Esparza",169.76,117.89]
[null,null,null,null,null,2,"Delta",16,"Asia Hendricks",337.07,178.2]
[null,null,null,null,null,2,"Papa",77,"Frederick Knapp",185.26,185.26]
[null,null,null,null,null,1,"Charlie",15,"Terrance Sampson",582.33000000000004,282.98]
[null,null,null,null,null,4,"Tango",99,"Heidy White",523.41999999999996,265.05]
[null,null,null,null,null,1,"Charlie",13,"Ellie Jensen",793.13,357.36]
[null,null,null,null,null,3,"Quebec",82,"Maren Sweeney",266.45,243.58]
[null,null,null,null,null,3,"Mike",62,"Douglas Barry",701.71,701.71]
[null,null,null,null,null,4,"Papa",78,"Enrique Lambert",733.71,733.71]
[null,null,null,null,null,3,"Papa",79,"Kiley Rollins",964.13,483.82]
[null,null,null,null,null,4,"Romeo",86,"Porter Leach",250.23,250.23]
[null,null,null,null,null,2,"X-Ray",116,"Tyler Lynch",578.23,578.23]
[null,null,null,null,null,2,"Sierra",91,"Miya Miranda",770.94,151.41999999999999]
[null,null,null,null,null,3,"India",43,"Maren Sweeney",693.66,693.66]
[null,null,null,null,null,3,"Yankee",125,"Morgan Rose",883.01,844.65]
[null,null,null,null,null,2,"Whisky",113,"Alexander Moses",820.81,550.69000000000005]
[null,null,null,null,null,2,"Romeo",88,"Marley George",185.09,102.85]
[null,null,null,null,null,2,"Romeo",87,"Christopher Bates",165.16,165.16]
[null,null,null,null,null,1,"Bravo",10,"Javier Meyers",853.07,331.97]
[null,null,null,null,null,4,"Juliet",48,"Lizbeth Carrillo",978.19,673.21]
[null,null,null,null,null,1,"Hotel",38,"Emma Mitchell",701.76,322.27]
[null,null,null,null,null,4,"India",42,"Emma Mitchell",743.45,599.29]
[null,null,null,null,null,3,"Hotel",36,"Terrance Sampson",913.44,705.68]
[null,null,null,null,null,1,"Tango",99,"Shaniya Franklin",919.23,510.26]
[null,null,null,null,null,1,"Charlie",14,"Valentina Durham",560.63,560.63]
[null,null,null,null,null,2,"Uniform",101,"Grant Snow",950.77,768.18]
[null,null,null,null,null,1,"Alpha",4,"Karina Cisneros",132.56,112.77]
[null,null,null,null,null,3,"Whisky",114,"Ellie Jensen",791.5,648.49]
[null,null,null,null,null,3,"India",44,"Jasmine Newton",947.58,126.66]
[null,null,null,null,null,2,"Mike",62,"Ingrid Parker",100.5,100.5]
[null,null,null,null,null,4,"Golf",31,"Catalina Richards",230.69,230.69]
[null,null,null,null,null,4,"Kilo",52,"Brooke Ritter",170.45,170.45]
[null,null,null,null,null,2,"Papa",80,"Alondra Long",681.87,681.87]
[null,null,null,null,null,3,"Charlie",14,"Jovan Solomon",816.51,607.98]
[null,null,null,null,null,1,"Golf",34,"Akira Murray",182.58,182.58]
[null,null,null,null,null,1,"Mike",64,"Parker Woods",899.67,899.67]
[null,null,null,null,null,4,"Lima",58,"Payton Horn",210.24,104.63]
[null,null,null,null,null,2,"Bravo",6,"Ashanti Leblanc",647.21,647.21]
[null,null,null,null,null,3,"Foxtrot",30,"Luciano Jackson",409.62,409.62]
[null,null,null,null,null,1,"Charlie",14,"Tyler Lynch",197.8,197.8]
[null,null,null,null,null,1,"Delta",19,"Benjamin Bell",476.37,453.32]
[null,null,null,null,null,3,"Golf",35,"Miya Miranda",485.05,485.05]
[null,null,null,null,null,4,"Yankee",121,"Enrique Lambert",432.13,432.13]
[null,null,null,null,null,3,"Victor",110,"Erin Johns",277.8,132.46]
[null,null,null,null,null,4,"Uniform",104,"Dixie Stanton",242.31,242.31]
[null,null,null,null,null,2,"Zulu",130,"Akira Murray",445.19,297.47000000000003]
[null,null,null,null,null,1,"Yankee",125,"Douglas Barry",102.09,102.09]
[null,null,null,null,null,2,"November",66,"Marley George",424.79,424.79]
[null,null,null,null,null,4,"Delta",20,"Gilberto Yoder",807.57,335.56]
[null,null,null,null,null,3,"Mike",62,"Declan Figueroa",556.55999999999995,161.18]
[null,null,null,null,null,1,"Charlie",13,"Tomas Suarez",421.05,294.56]
[null,null,null,null,null,4,"Romeo",87,"Pierre Cain",478.73,475.12]
[null,null,null,null,null,4,"Alpha",5,"Abdullah Bridges",862.68,318.81]
[null,null,null,null,null,3,"India",41,"Maren Sweeney",804.79,136.09]
[null,null,null,null,null,3,"Foxtrot",28,"Addyson Mccormick",814.92,814.92]
[null,null,null,null,null,1,"Quebec",84,"Emma Mitchell",191.48,153.72]
[null,null,null,null,null,2,"Yankee",123,"Asia Hendricks",483.81,483.81]
[null,null,null,null,null,2,"Echo",23,"Jonathan Paul",719.76,408.04]
[null,null,null,null,null,3,"Charlie",15,"Gilberto Yoder",249.89,249.89]
[null,null,null,null,null,1,"Whisky",111,"Karson Choi",430.31,430.31]
[null,null,null,null,null,1,"Juliet",47,"Scarlett Calhoun",779.96,423.13]
[null,null,null,null,null,3,"Foxtrot",30,"Emmett Esparza",414.47,414.47]
[null,null,null,null,null,2,"Juliet",46,"Christopher Bates",503.15,263.83999999999997]
[null,null,null,null,null,2,"Yankee",124,"Terrance Sampson",109.27,109.27]
[null,null,null,null,null,3,"Bravo",10,"Sadie Pierce",211.07,211.07]
[null,null,null,null,null,3,"Kilo",55,"Jasmine Newton",429.15,429.15]
[null,null,null,null,null,4,"Echo",21,"Stanley Gonzales",461.19,270.60000000000002]
[null,null,null,null,null,2,"Papa",76,"Allie Franklin",131.99,131.99]
[null,null,null,null,null,1,"Foxtrot",27,"Eileen Knox",407.77,291.8]
[null,null,null,null,null,1,"Oscar",75,"Jonathan Paul",553.83000000000004,553.83000000000004]
[null,null,null,null,null,4,"Oscar",72,"Ashanti Leblanc",330.75,330.75]
[null,null,null,null,null,4,"Uniform",104,"Emma Mitchell",240.14,240.14]
[null,null,null,null,null,1,"Charlie",14,"Jaylene Jones",327.06,327.06]
[null,null,null,null,null,4,"Juliet",47,"Sanaa Dunn",926.64,696]
[null,null,null,null,null,3,"Zulu",129,"Carter Obrien",108.57,108.57]
[null,null,null,null,null,4,"Golf",35,"Douglas Barry",140.47,140.47]
[null,null,null,null,null,1,"India",43,"Baron Dougherty",760.81,192.37]
[null,null,null,null,null,3,"Charlie",11,"Asher Dunn",236.56,236.56]
[null,null,null,null,null,1,"Alpha",5,"Everett Gill",681.22,681.22]
[null,null,null,null,null,2,"Kilo",54,"Erin Johns",799.81,348]
[null,null,null,null,null,2,"Tango",97,"Frederick Knapp",107.14,107.14]
[null,null,null,null,null,4,"Bravo",8,"Akira Murray",666.32,666.32]
[null,null,null,null,null,1,"Romeo",88,"Paityn Olson",760.31,126.9]
[null,null,null,null,null,3,"Victor",107,"Trystan Norton",611.59,611.59]
[null,null,null,null,null,2,"Juliet",47,"Ari Hernandez",124.48,124.48]
[null,null,null,null,null,1,"Whisky",112,"Tyree Adkins",407.47,114.37]
[null,null,null,null,null,4,"Oscar",75,"Jaden Davidson",856.44,856.44]
[null,null,null,null,null,3,"Quebec",83,"Gilberto Yoder",660.13,660.13]
[null,null,null,null,null,2,"Alpha",5,"Lizbeth Carrillo",161.72,161.72]
[null,null,null,null,null,1,"Bravo",10,"Douglas Barry",809.49,149.38999999999999]
[null,null,null,null,null,3,"Alpha",4,"Raiden Shelton",595.52,215.46]
[null,null,null,null,null,3,"Mike",61,"Dixie Stanton",954.13,195.64]
[null,null,null,null,null,3,"November",68,"Frederick Knapp",714.39,394.58]
[null,null,null,null,null,1,"Quebec",85,"Asia Hendricks",144.54,140.03]
[null,null,null,null,null,4,"Bravo",8,"Braylon Townsend",967,228.11]
[null,null,null,null,null,3,"Zulu",128,"Emma Mitchell",526.76,121.03]
[null,null,null,null,null,4,"Lima",59,"Rigoberto Bush",738.82,738.82]
[null,null,null,null,null,1,"Bravo",7,"Luciano Jackson",864.39,826.2]
[null,null,null,null,null,1,"Foxtrot",28,"Shaniya Franklin",451.73,431.15]
[null,null,null,null,null,2,"Uniform",104,"Armando Hoover",864.84,864.84]
[null,null,null,null,null,3,"Mike",62,"Baron Dougherty",181.89,181.89]
[null,null,null,null,null,3,"Yankee",125,"Akira Murray",145.19,145.19]
[null,null,null,null,null,3,"Bravo",9,"Douglas Barry",467.99,467.99]
[null,null,null,null,null,3,"Zulu",128,"Arthur Patton",336.92,336.92]
[null,null,null,null,null,1,"India",41,"Carter Obrien",209.9,209.9]
[null,null,null,null,null,4,"Hotel",37,"Savanna Dixon",422.17,422.17]
[null,null,null,null,null,4,"X-Ray",120,"Parker Woods",145.49,145.49]
[null,null,null,null,null,2,"Mike",63,"Savanna Dixon",533.12,436.95]
[null,null,null,null,null,3,"Foxtrot",30,"Erin Johns",544.35,544.35]
[null,null,null,null,null,1,"Lima",57,"Eileen Knox",236.79,236.79]
[null,null,null,null,null,3,"Hotel",37,"Jaden Davidson",241.93,241.93]
[null,null,null,null,null,4,"Sierra",92,"Tyler Lynch",967.07,535.29999999999995]
[null,null,null,null,null,1,"Whisky",114,"Terrance Sampson",925.07,418.95]
[null,null,null,null,null,4,"Victor",110,"Grant Snow",271.05,109.16]
[null,null,null,null,null,3,"Juliet",47,"Paityn Olson",874.83,454.61]
[null,null,null,null,null,1,"Delta",19,"Tomas Suarez",765.39,643.1]
[null,null,null,null,null,3,"Sierra",91,"Jonathan Paul",185.38,185.38]
[null,null,null,null,null,1,"Tango",100,"Emma Mitchell",272.41000000000003,253.68]
[null,null,null,null,null,4,"Papa",77,"Valentina Durham",186.17,186.17]
[null,null,null,null,null,3,"Kilo",51,"Valentina Durham",615.54999999999995,465.27]
[null,null,null,null,null,4,"Victor",106,"Donna Warren",183.58,183.58]
[null,null,null,null,null,4,"Papa",77,"Tyler Lynch",300.76,300.76]
[null,null,null,null,null,1,"X-Ray",118,"Precious Guerrero",147.9,147.9]
[null,null,null,null,null,1,"Whisky",114,"Jasmine Newton",576.54999999999995,406.58]
[null,null,null,null,null,3,"Papa",76,"Everett Gill",444.22,207.65]
[null,null,null,null,null,3,"Sierra",94,"Mariyah Randall",207.51,207.51]
[null,null,null,null,null,1,"Delta",20,"Amber Spence",237.48,237.48]
[null,null,null,null,null,3,"Uniform",104,"Alisha Woodward",511.92,212.18]
[null,null,null,null,null,3,"Oscar",73,"Cruz Short",560.94000000000005,531.41]
[null,null,null,null,null,4,"Tango",97,"Marley George",981.69,557.53]
[null,null,null,null,null,1,"November",68,"Eileen Knox",137.47,137.47]
[null,null,null,null,null,3,"Yankee",122,"Catalina Richards",615.05999999999995,532.71]
[null,null,null,null,null,4,"Alpha",3,"Kamila Waters",793.67,524.80999999999995]
[null,null,null,null,null,4,"Juliet",49,"Akira Murray",933.12,540.51]
[null,null,null,null,null,4,"Hotel",38,"Asia Hendricks",530.79999999999995,530.79999999999995]
[null,null,null,null,null,2,"Foxtrot",29,"Rigoberto Bush",879.7,370.55]
[null,null,null,null,null,3,"Sierra",93,"Alisha Woodward",476.94,476.94]
[null,null,null,null,null,1,"Uniform",105,"Karina Cisneros",230.14,230.14]
[null,null,null,null,null,2,"Bravo",6,"Sadie Pierce",279.33999999999997,279.33999999999997]
[null,null,null,null,null,2,"Delta",20,"Emma Mitchell",618.16,394.88]
[null,null,null,null,null,4,"Mike",64,"Emma Mitchell",673.68,667.51]
[null,null,null,null,null,1,"Papa",76,"Karina Cisneros",925.52,925.52]
[null,null,null,null,null,1,"Zulu",126,"Ellie Jensen",613.78,154.87]
[null,null,null,null,null,2,"Lima",57,"Heidy White",960.26,706.65]
[null,null,null,null,null,2,"Juliet",47,"Precious Guerrero",560.83000000000004,560.83000000000004]
[null,null,null,null,null,4,"Uniform",104,"Terrance Sampson",203.57,203.57]
[null,null,null,null,null,1,"Uniform",102,"Morgan Rose",373.47,373.47]
[null,null,null,null,null,2,"Quebec",85,"Laura Barrett",339.41,339.41]
[null,null,null,null,null,3,"Juliet",46,"Jonathan Paul",910.55,779.81]
[null,null,null,null,null,1,"Romeo",88,"Paityn Olson",325.51,149.28]
[null,null,null,null,null,4,"Alpha",1,"Shaniya Franklin",410.81,396.14]
[null,null,null,null,null,4,"Quebec",81,"Tyree Adkins",181.37,181.37]
[null,null,null,null,null,4,"India",43,"Cruz Short",146.03,146.03]
[null,null,null,null,null,1,"Mike",65,"Erin Johns",288.37,288.37]
[null,null,null,null,null,4,"Foxtrot",30,"Cristal York",431.57,215.55]
[null,null,null,null,null,1,"Uniform",102,"Armando Hoover",311.32,151.13999999999999]
[null,null,null,null,null,1,"Victor",107,"Dane Patton",809.41,115.92]
[null,null,null,null,null,1,"Delta",19,"Ricardo Jacobs",545.95000000000005,545.95000000000005]
[null,null,null,null,null,3,"Kilo",55,"Christopher Bates",438.51,438.51]
[null,null,null,null,null,1,"Bravo",6,"Terrance Sampson",463.22,463.22]
[null,null,null,null,null,3,"November",69,"Gilberto Yoder",540.9,179.58]
[null,null,null,null,null,2,"Hotel",38,"Grant Snow",510.22,510.22]
[null,null,null,null,null,4,"November",70,"Kolton Elliott",520.6,520.6]
[null,null,null,null,null,1,"November",66,"Kolton Elliott",224.64,188.57]
[null,null,null,null,null,3,"Lima",57,"Jaylene Jones",354.9,354.9]
[null,null,null,null,null,3,"Victor",110,"Luciano Jackson",676.17,676.17]
[null,null,null,null,null,3,"Hotel",36,"Ari Hernandez",518.30999999999995,518.30999999999995]
[null,null,null,null,null,3,"Whisky",113,"Jovan Solomon",441.03,441.03]
[null,null,null,null,null,3,"Delta",19,"Donald Mcfarland",692.17,114.17]
[null,null,null,null,null,2,"Whisky",111,"Dane Patton",412.71,412.71]
[null,null,null,null,null,1,"Tango",99,"Jamarion Kelly",561.61,238.6]
[null,null,null,null,null,1,"Zulu",129,"Stanley Gonzales",190.29,190.29]
[null,null,null,null,null,2,"Alpha",3,"Asia Hendricks",780,404.15]
[null,null,null,null,null,4,"Whisky",114,"Baron Dougherty",550.09,550.09]
[null,null,null,null,null,1,"Victor",106,"Paityn Olson",460.41,460.41]
[null,null,null,null,null,1,"Hotel",39,"Markus Benson",322.70999999999998,270.19]
[null,null,null,null,null,1,"Tango",99,"Jonathan Paul",185.75,185.75]
[null,null,null,null,null,1,"Juliet",48,"Ingrid Parker",726.12,552.17999999999995]
[null,null,null,null,null,1,"Romeo",88,"Parker Woods",915.88,852.4]
[null,null,null,null,null,1,"Hotel",36,"Arthur Patton",319.74,226.25]
[null,null,null,null,null,2,"India",44,"Tyler Lynch",972.35,465.81]
[null,null,null,null,null,1,"Hotel",38,"Tyler Lynch",934.35,406]
[null,null,null,null,null,1,"November",70,"Christopher Bates",578.91,116.54]
[null,null,null,null,null,3,"Uniform",105,"Asher Dunn",594.22,594.22]
[null,null,null,null,null,2,"Alpha",1,"Asia Hendricks",129.22999999999999,129.22999999999999]
[null,null,null,null,null,4,"November",67,"Payton Horn",582.28,150.16]
[null,null,null,null,null,3,"Sierra",93,"Dane Patton",184.49,184.49]
[null,null,null,null,null,3,"Charlie",12,"Tyler Lynch",283.86,283.86]
[null,null,null,null,null,3,"Delta",18,"Sarai Kemp",400.65,255.54]
[null,null,null,null,null,4,"Juliet",47,"Jamarion Kelly",444.27,444.27]
[null,null,null,null,null,3,"Lima",60,"Grant Snow",726.28,319.45]
[null,null,null,null,null,2,"Mike",61,"Alisha Woodward",599.4,599.4]
[null,null,null,null,null,4,"Sierra",91,"Rigoberto Bush",679.69,331.33]
[null,null,null,null,null,3,"Romeo",88,"Julianna Knox",394.26,257.45]
[null,null,null,null,null,2,"Delta",18,"Catalina Richards",846.66,420.33]
[null,null,null,null,null,3,"November",67,"Francisco Stevenson",743.79,655.55]
[null,null,null,null,null,3,"Lima",60,"Benjamin Bell",159.41,159.41]
[null,null,null,null,null,2,"Sierra",93,"Morgan Rose",886.67,418.21]
[null,null,null,null,null,2,"Hotel",40,"Alisha Woodward",391.37,391.37]
[null,null,null,null,null,1,"Uniform",101,"Arthur Patton",974.61,763.7]
[null,null,null,null,null,2,"Papa",76,"Catalina Richards",765.21,240.47]
[null,null,null,null,null,3,"X-Ray",119,"Jamarion Kelly",284.55,284.55]
[null,null,null,null,null,1,"November",69,"Leonard Monroe",781.31,463.84]
[null,null,null,null,null,2,"Mike",62,"Everett Gill",644.21,395.12]
[null,null,null,null,null,3,"Zulu",127,"Gilberto Yoder",183.02,183.02]
[null,null,null,null,null,1,"Golf",35,"Sadie Pierce",211.28,211.28]
[null,null,null,null,null,2,"Romeo",87,"Laura Barrett",555.96,150.41]
[null,null,null,null,null,1,"Delta",18,"Francisco Stevenson",106.94,106.94]
[null,null,null,null,null,4,"Quebec",85,"Dixie Stanton",268.11,268.11]
[null,null,null,null,null,4,"Uniform",105,"Ari Hernandez",862.61,642]
[null,null,null,null,null,4,"Golf",35,"Francisco Stevenson",588.77,553.48]
[null,null,null,null,null,2,"Echo",22,"Emery Estes",154.29,154.29]
[null,null,null,null,null,3,"Sierra",91,"Morgan Rose",526.34,526.34]
[null,null,null,null,null,3,"Romeo",90,"Miya Miranda",281.20999999999998,281.20999999999998]
[null,null,null,null,null,3,"Zulu",129,"Cristal York",485.36,485.36]
[null,null,null,null,null,1,"Golf",32,"Asia Hendricks",636.12,636.12]
[null,null,null,null,null,4,"India",43,"Baron Dougherty",120.93,120.93]
[null,null,null,null,null,3,"X-Ray",117,"Ellie Jensen",614.05999999999995,335.56]
[null,null,null,null,null,2,"Sierra",94,"Leonard Monroe",117.35,117.35]
[null,null,null,null,null,4,"Whisky",114,"Precious Guerrero",179.35,179.35]
[null,null,null,null,null,3,"November",68,"Karson Choi",359.14,359.14]
[null,null,null,null,null,3,"Whisky",114,"Amber Spence",904.75,219.37]
[null,null,null,null,null,1,"X-Ray",119,"Dixie Stanton",736.83,736.83]
[null,null,null,null,null,4,"Lima",56,"Grant Snow",329.77,329.77]
[null,null,null,null,null,2,"Papa",79,"Armando Hoover",802.98,760.48]
[null,null,null,null,null,1,"November",70,"Kolton Elliott",446.52,446.52]
[null,null,null,null,null,4,"Oscar",73,"Jonathan Paul",344.95,196.78]
[null,null,null,null,null,1,"Zulu",129,"Everett Gill",222.31,210.66]
[null,null,null,null,null,4,"Alpha",3,"Jasmine Newton",851.95,348.97]
[null,null,null,null,null,1,"India",45,"Alondra Long",236.58,236.58]
[null,null,null,null,null,3,"Juliet",49,"Regina Freeman",787.01,277.58]
[null,null,null,null,null,2,"Romeo",88,"Declan Figueroa",407.56,407.56]
[null,null,null,null,null,4,"Hotel",36,"Julianna Knox",817.77,503.76]
[null,null,null,null,null,2,"Tango",100,"Alejandra Clements",171.66,171.66]
[null,null,null,null,null,4,"Foxtrot",28,"Asher Dunn",712.86,115.94]
[null,null,null,null,null,1,"Tango",96,"Terrance Sampson",740.61,680.82]
[null,null,null,null,null,1,"Foxtrot",28,"Cristal York",663.87,663.87]
[null,null,null,null,null,2,"Delta",19,"Tomas Suarez",144.16,144.16]
[null,null,null,null,null,1,"Juliet",49,"Emma Mitchell",437.6,437.6]
[null,null,null,null,null,1,"Mike",65,"Jacob Howell",327.04000000000002,270.89]
[null,null,null,null,null,2,"Papa",79,"Javier Meyers",279.05,279.05]
[null,null,null,null,null,4,"Lima",56,"Grant Snow",597.19000000000005,348.45]
[null,null,null,null,null,1,"India",42,"Alondra Long",973.8,178.35]
[null,null,null,null,null,4,"Uniform",104,"Leonard Monroe",352.01,125.4]
[null,null,null,null,null,3,"Kilo",52,"Brooke Ritter",973.09,395.1]
[null,null,null,null,null,2,"Charlie",13,"Grant Snow",955.93,118.85]
[null,null,null,null,null,3,"Charlie",13,"Benjamin Bell",128.9,128.9]
[null,null,null,null,null,1,"Sierra",93,"Cruz Short",737.67,558.01]
[null,null,null,null,null,2,"Foxtrot",26,"Lorelei Mccoy",417.27,417.27]
[null,null,null,null,null,1,"X-Ray",118,"Ingrid Parker",509.18,509.18]
[null,null,null,null,null,1,"Zulu",128,"Tyler Lynch",237.9,153.6]
[null,null,null,null,null,2,"Charlie",12,"Stephen Booth",414.51,414.51]
[null,null,null,null,null,2,"Zulu",126,"Eileen Knox",706.88,474.18]
[null,null,null,null,null,1,"Alpha",3,"Jovan Solomon",161.59,161.59]
[null,null,null,null,null,4,"Oscar",72,"Cruz Short",489.5,333.95]
[null,null,null,null,null,3,"Zulu",126,"Scarlett Calhoun",700.73,700.73]
[null,null,null,null,null,2,"Mike",65,"Ari Hernandez",834.07,834.07]
[null,null,null,null,null,2,"Uniform",101,"Ishaan Hardy",684.95,189.72]
[null,null,null,null,null,1,"India",42,"Benjamin Bell",721.03,192.4]
[null,null,null,null,null,2,"Alpha",2,"Regina Freeman",518.49,359.07]
[null,null,null,null,null,3,"X-Ray",118,"Karson Choi",756.23,171.69]
[null,null,null,null,null,2,"Victor",110,"America Choi",205.2,205.2]
[null,null,null,null,null,4,"Foxtrot",29,"Allie Franklin",477.74,477.74]
[null,null,null,null,null,2,"Delta",16,"Emmett Esparza",195.19,195.19]
[null,null,null,null,null,3,"Juliet",49,"Enrique Lambert",386.31,386.31]
[null,null,null,null,null,2,"X-Ray",117,"Akira Murray",719.97,378.52]
[null,null,null,null,null,4,"November",69,"Zayne Dunn",506.96,506.96]
[null,null,null,null,null,2,"India",43,"Kamila Waters",777.68,496.7]
[null,null,null,null,null,4,"Romeo",89,"Everett Gill",875.65,709.1]
[null,null,null,null,null,1,"Golf",32,"Braylon Townsend",495.33,495.33]
[null,null,null,null,null,3,"Tango",100,"Stephen Booth",672.43,344.59]
[null,null,null,null,null,1,"Alpha",4,"Alejandra Clements",306.16000000000003,242.49]
[null,null,null,null,null,4,"Tango",98,"Marley George",688.94,422.87]
[null,null,null,null,null,4,"India",44,"Keenan Sawyer",287.06,287.06]
[null,null,null,null,null,2,"Mike",62,"Ari Hernandez",505.26,505.26]
[null,null,null,null,null,2,"Alpha",5,"Shaniya Franklin",371.48,291.70999999999998]
[null,null,null,null,null,4,"Tango",98,"Kennedy Christian",446.76,446.76]
[null,null,null,null,null,3,"India",44,"Sadie Pierce",369.95,369.95]
[null,null,null,null,null,1,"Kilo",53,"Ingrid Parker",702.64,702.64]
[null,null,null,null,null,4,"Mike",63,"Amber Spence",741.57,159.62]
[null,null,null,null,null,1,"Hotel",36,"Declan Figueroa",939.44,339.87]
[null,null,null,null,null,1,"Papa",80,"Jasmine Newton",802.93,643.45000000000005]
[null,null,null,null,null,1,"Echo",23,"Zayne Dunn",539.63,539.63]
[null,null,null,null,null,4,"Zulu",126,"Julianna Knox",701.15,701.15]
[null,null,null,null,null,2,"Quebec",83,"Ellie Jensen",152.47,152.47]
[null,null,null,null,null,1,"Bravo",10,"Morgan Rose",474.37,474.37]
[null,null,null,null,null,3,"Mike",65,"Amber Spence",745.26,229.88]
[null,null,null,null,null,2,"Zulu",128,"Keenan Sawyer",441.26,441.26]
[null,null,null,null,null,3,"Papa",78,"Donna Warren",888.61,504.08]
[null,null,null,null,null,3,"Echo",21,"Paityn Olson",148.66999999999999,148.66999999999999]
[null,null,null,null,null,3,"Hotel",37,"Paityn Olson",931.97,666.38]
[null,null,null,null,null,4,"Victor",108,"Alisha Woodward",810.78,810.78]
[null,null,null,null,null,3,"Whisky",114,"Rigoberto Bush",295.99,295.99]
[null,null,null,null,null,2,"Foxtrot",28,"Ishaan Hardy",899.12,481.68]
[null,null,null,null,null,1,"Quebec",81,"Khloe Michael",666.69,171.5]
[null,null,null,null,null,3,"Foxtrot",26,"Jovan Solomon",932.15,610.82000000000005]
[null,null,null,null,null,2,"Quebec",83,"Allie Franklin",152,152]
[null,null,null,null,null,4,"Sierra",94,"Lizbeth Carrillo",735.19,107.81]
[null,null,null,null,null,1,"Sierra",91,"Akira Murray",712.4,409.57]
[null,null,null,null,null,1,"Oscar",73,"Jaden Davidson",543.54,543.54]
[null,null,null,null,null,3,"Echo",21,"Shaniya Franklin",403.53,403.53]
[null,null,null,null,null,2,"Juliet",48,"Braylon Townsend",113.62,113.62]
[null,null,null,null,null,2,"Juliet",48,"Shaniya Franklin",737.68,737.68]
[null,null,null,null,null,2,"Uniform",102,"Raiden Shelton",917.99,119.67]
[null,null,null,null,null,4,"Delta",20,"Abdullah Bridges",911,510.36]
[null,null,null,null,null,2,"Tango",100,"Benjamin Bell",287.10000000000002,287.10000000000002]
[null,null,null,null,null,3,"Kilo",55,"Shaniya Franklin",439.21,439.21]
[null,null,null,null,null,2,"Bravo",8,"Alisha Woodward",573.75,573.75]
[null,null,null,null,null,2,"Oscar",74,"Regina Freeman",937.73,511.71]
[null,null,null,null,null,3,"Golf",33,"Donald Mcfarland",573.64,573.64]
[null,null,null,null,null,4,"Tango",97,"Lizbeth Carrillo",763.24,763.24]
[null,null,null,null,null,1,"Yankee",123,"Enrique Lambert",257.52,257.52]
[null,null,null,null,null,3,"X-Ray",117,"Donna Warren",772.47,187.17]
[null,null,null,null,null,4,"Oscar",73,"Gilberto Yoder",693.78,633.78]
[null,null,null,null,null,1,"Echo",22,"Lizbeth Carrillo",269.27999999999997,269.27999999999997]
[null,null,null,null,null,1,"Foxtrot",27,"Marley George",274.07,274.07]
[null,null,null,null,null,4,"Hotel",38,"Luciano Jackson",562.23,122.21]
[null,null,null,null,null,2,"Foxtrot",30,"Jaden Davidson",763.71,650.95000000000005]
[null,null,null,null,null,1,"Zulu",128,"Francisco Stevenson",837.42,837.42]
[null,null,null,null,null,3,"Golf",34,"Alejandra Clements",568.52,338.8]
[null,null,null,null,null,4,"Kilo",53,"Donna Warren",227.02,227.02]
[null,null,null,null,null,1,"Quebec",81,"Miya Miranda",720.5,720.5]
[null,null,null,null,null,3,"Romeo",86,"Ellie Jensen",637.16999999999996,637.16999999999996]
[null,null,null,null,null,4,"X-Ray",119,"Douglas Barry",620.9,479.67]
[null,null,null,null,null,3,"Echo",22,"Addyson Mccormick",419.12,419.12]
[null,null,null,null,null,1,"Whisky",115,"Grant Snow",319,319]
[null,null,null,null,null,3,"Echo",22,"Benjamin Bell",913.66,834.73]
[null,null,null,null,null,3,"Whisky",112,"Marley George",674.52,674.52]
[null,null,null,null,null,1,"Tango",100,"Javier Meyers",123.39,123.39]
[null,null,null,null,null,4,"Uniform",101,"Kolton Elliott",292.69,292.69]
[null,null,null,null,null,2,"Foxtrot",29,"Brennan Campos",433.46,433.46]
[null,null,null,null,null,2,"Hotel",36,"Luciano Jackson",191.8,191.8]
[null,null,null,null,null,4,"Whisky",114,"Ingrid Parker",570.76,101.07]
[null,null,null,null,null,1,"Mike",64,"Emmett Esparza",246.74,246.74]
[null,null,null,null,null,3,"Oscar",73,"Ellie Jensen",282.14999999999998,282.14999999999998]
[null,null,null,null,null,2,"Mike",62,"Jaylene Jones",734.92,494.74]
[null,null,null,null,null,4,"Delta",20,"Markus Benson",155.54,155.54]
[null,null,null,null,null,2,"Uniform",101,"Stephen Booth",208.29,208.29]
[null,null,null,null,null,2,"Delta",16,"Emery Estes",718.07,675.01]
[null,null,null,null,null,3,"Yankee",124,"Zayne Dunn",730.7,208.01]
[null,null,null,null,null,1,"Uniform",104,"Jovan Solomon",599.4,599.4]
[null,null,null,null,null,4,"Golf",31,"Stanley Gonzales",155.94999999999999,155.94999999999999]
[null,null,null,null,null,2,"Uniform",101,"Mariyah Randall",896.69,227.68]
[null,null,null,null,null,1,"Papa",77,"Enrique Lambert",857.59,450.86]
[null,null,null,null,null,3,"Hotel",40,"Enrique Lambert",169.13,169.13]
[null,null,null,null,null,3,"Victor",110,"America Choi",496.58,496.58]
[null,null,null,null,null,1,"Tango",96,"Alisha Woodward",563.45000000000005,563.45000000000005]
[null,null,null,null,null,1,"Juliet",48,"Catalina Richards",133.88,133.88]
[null,null,null,null,null,4,"Alpha",4,"Julianna Knox",284.42,284.42]
[null,null,null,null,null,3,"Yankee",122,"Jamarion Kelly",127.58,127.58]
[null,null,null,null,null,2,"Papa",76,"Keenan Sawyer",987.23,234.36]
[null,null,null,null,null,2,"Victor",107,"Everett Gill",950.28,320.01]
[null,null,null,null,null,1,"Oscar",74,"Emma Mitchell",329.48,329.48]
[null,null,null,null,null,1,"Bravo",8,"Jamarion Kelly",133.66999999999999,133.66999999999999]
[null,null,null,null,null,1,"Echo",21,"Kennedy Christian",807.47,392.23]
[null,null,null,null,null,4,"Quebec",82,"Emmett Esparza",436.48,411.95]
[null,null,null,null,null,4,"Oscar",74,"Payton Horn",304.14999999999998,304.14999999999998]
[null,null,null,null,null,2,"Tango",99,"Allie Franklin",710.93,121.18]
[null,null,null,null,null,3,"Golf",35,"Jasmine Newton",641.17999999999995,641.17999999999995]
[null,null,null,null,null,1,"Zulu",126,"Paityn Olson",954.4,489.29]
[null,null,null,null,null,3,"Quebec",85,"Miya Miranda",949.72,340.7]
[null,null,null,null,null,4,"Golf",32,"Jamarion Kelly",233.22,233.22]
[null,null,null,null,null,1,"Papa",76,"Alisha Woodward",620.75,155.04]
[null,null,null,null,null,3,"Kilo",55,"Ishaan Hardy",901,901]
[null,null,null,null,null,2,"Yankee",121,"Christopher Bates",114.01,114.01]
[null,null,null,null,null,1,"Mike",63,"Karson Choi",545.38,545.38]
[null,null,null,null,null,4,"Oscar",74,"Marley George",538.37,538.37]
[null,null,null,null,null,2,"Papa",77,"Sanaa Dunn",808.22,443.57]
[null,null,null,null,null,4,"November",70,"Jovan Solomon",621.27,243.07]
[null,null,null,null,null,2,"X-Ray",117,"Lizbeth Carrillo",599.45000000000005,184.32]
[null,null,null,null,null,3,"Zulu",126,"Ishaan Hardy",598.36,598.36]
[null,null,null,null,null,4,"Yankee",124,"Maren Sweeney",278.27999999999997,278.27999999999997]
[null,null,null,null,null,2,"Zulu",126,"Valentina Durham",743.1,743.1]
[null,null,null,null,null,1,"X-Ray",116,"Payton Horn",759.41,759.41]
[null,null,null,null,null,3,"Foxtrot",30,"Alejandra Clements",669.04,279.76]
[null,null,null,null,null,4,"Mike",63,"Kolton Elliott",160.13999999999999,160.13999999999999]
[null,null,null,null,null,4,"Echo",25,"Pierre Cain",626.95000000000005,626.95000000000005]
[null,null,null,null,null,4,"Hotel",39,"Dane Patton",150.05000000000001,122.55]
[null,null,null,null,null,1,"Charlie",13,"Everett Gill",902.07,392.86]
[null,null,null,null,null,1,"Whisky",115,"Enrique Lambert",806.65,688.17]
[null,null,null,null,null,3,"Echo",24,"Jasmine Newton",592.36,233.74]
[null,null,null,null,null,4,"Foxtrot",30,"Addyson Mccormick",559.23,470.97]
[null,null,null,null,null,1,"Zulu",129,"Pierre Cain",349.53,349.53]
[null,null,null,null,null,4,"Bravo",9,"Christopher Bates",912.25,761.62]
[null,null,null,null,null,2,"November",68,"Jacob Howell",597.82000000000005,597.82000000000005]
[null,null,null,null,null,2,"Lima",60,"Abdullah Bridges",413.86,413.86]
[null,null,null,null,null,2,"Oscar",75,"Jacob Howell",567.22,216.39]
[null,null,null,null,null,2,"Kilo",53,"Tyree Adkins",764.86,307.07]
[null,null,null,null,null,4,"X-Ray",119,"Brooke Ritter",386.9,386.9]
[null,null,null,null,null,4,"Alpha",5,"Christopher Bates",626.89,223.85]
[null,null,null,null,null,2,"Yankee",122,"Rigoberto Bush",581.92999999999995,581.92999999999995]
[null,null,null,null,null,2,"Yankee",125,"Payton Horn",791.51,715.15]
[null,null,null,null,null,2,"Lima",60,"Alisha Woodward",797,797]
[null,null,null,null,null,2,"Kilo",54,"Donna Warren",179.13,179.13]
[null,null,null,null,null,3,"Papa",79,"Luciano Jackson",677.31,677.31]
[null,null,null,null,null,2,"Tango",98,"Sadie Pierce",153.93,153.93]
[null,null,null,null,null,1,"November",70,"Porter Leach",253.39,253.39]
[null,null,null,null,null,1,"Lima",60,"Erin Johns",258.24,258.24]
[null,null,null,null,null,1,"Mike",61,"Akira Murray",408.49,408.49]
[null,null,null,null,null,1,"Oscar",72,"Ishaan Hardy",855.19,293.54000000000002]
[null,null,null,null,null,2,"Oscar",72,"Alondra Long",906.52,681.02]
[null,null,null,null,null,2,"Uniform",105,"Leonard Monroe",412.68,412.68]
[null,null,null,null,null,4,"X-Ray",120,"Donald Mcfarland",971.25,815.77]
[null,null,null,null,null,1,"Golf",33,"Lizbeth Carrillo",516.95000000000005,516.95000000000005]
[null,null,null,null,null,2,"Mike",64,"Asia Hendricks",758.74,758.74]
[null,null,null,null,null,1,"Victor",110,"Dixie Stanton",944.51,466.46]
[null,null,null,null,null,4,"X-Ray",116,"Donna Warren",101.05,101.05]
[null,null,null,null,null,1,"Tango",97,"America Choi",150.33000000000001,150.33000000000001]
[null,null,null,null,null,3,"November",67,"Tyler Lynch",316,316]
[null,null,null,null,null,3,"Sierra",91,"Markus Benson",688.13,350.47]
[null,null,null,null,null,3,"Golf",32,"Luciano Jackson",494.35,257.7]
[null,null,null,null,null,4,"Romeo",86,"Jaylene Jones",236.56,236.56]
[null,null,null,null,null,4,"Lima",58,"Armando Hoover",911.7,566.72]
[null,null,null,null,null,2,"Bravo",6,"Miya Miranda",932.81,130.9]
[null,null,null,null,null,1,"Foxtrot",27,"Emmett Esparza",797.37,306.05]
[null,null,null,null,null,4,"Delta",16,"Braylon Townsend",461.12,284.77]
[null,null,null,null,null,3,"Zulu",128,"Karson Choi",247.27,247.27]
[null,null,null,null,null,2,"Alpha",5,"Lizbeth Carrillo",124.17,124.17]
[null,null,null,null,null,3,"Juliet",49,"Asher Dunn",665.78,665.78]
[null,null,null,null,null,1,"Romeo",90,"Ishaan Hardy",754.35,754.35]
[null,null,null,null,null,4,"Whisky",112,"Jaylene Jones",823.65,255.34]
[null,null,null,null,null,3,"Tango",100,"Terrance Sampson",893.28,403.6]
[null,null,null,null,null,4,"Sierra",91,"Karina Cisneros",610.66999999999996,123.43]
[null,null,null,null,null,4,"Tango",96,"Jasmine Newton",735.81,305.86]
[null,null,null,null,null,2,"Romeo",90,"Luciano Jackson",532.54999999999995,532.54999999999995]
[null,null,null,null,null,4,"Papa",77,"Donna Warren",654.89,304.14]
[null,null,null,null,null,3,"Papa",78,"Lizbeth Carrillo",843.31,380.11]
[null,null,null,null,null,2,"Lima",60,"Enrique Lambert",850.92,407.44]
[null,null,null,null,null,1,"Charlie",13,"Arthur Patton",104.95,104.95]
[null,null,null,null,null,2,"Papa",76,"Douglas Barry",120.23,120.23]
[null,null,null,null,null,2,"Victor",109,"Keenan Sawyer",755.21,412.74]
[null,null,null,null,null,2,"November",70,"Cristal York",928.76,535.83000000000004]
[null,null,null,null,null,2,"Tango",97,"Scarlett Calhoun",760.17,446.58]
[null,null,null,null,null,2,"Uniform",101,"Emma Mitchell",939.2,310.73]
[null,null,null,null,null,1,"Papa",79,"Raiden Shelton",606.73,606.73]
[null,null,null,null,null,3,"X-Ray",116,"Donald Mcfarland",854.23,451.17]
[null,null,null,null,null,1,"Uniform",105,"Savanna Dixon",124.32,124.32]
[null,null,null,null,null,4,"X-Ray",117,"Braylon Townsend",142.96,142.96]
[null,null,null,null,null,2,"X-Ray",120,"Savanna Dixon",610.45000000000005,610.45000000000005]
[null,null,null,null,null,4,"Whisky",112,"Ashanti Leblanc",112.83,112.83]
[null,null,null,null,null,1,"Oscar",75,"Baron Dougherty",116.65,116.65]
[null,null,null,null,null,1,"Kilo",51,"Eileen Knox",544.75,358.77]
[null,null,null,null,null,3,"Yankee",125,"Eileen Knox",859.76,524.44000000000005]
[null,null,null,null,null,1,"Hotel",37,"Amber Spence",594.71,172.22]
[null,null,null,null,null,2,"Quebec",82,"Jacob Howell",298.82,298.82]
[null,null,null,null,null,3,"Hotel",37,"Sarai Kemp",707.26,172.74]
[null,null,null,null,null,3,"Yankee",123,"Precious Guerrero",928.58,679.92]
[null,null,null,null,null,1,"Delta",20,"Jonathan Paul",872.97,526.12]
[null,null,null,null,null,1,"Foxtrot",27,"Cristal York",569.63,225.01]
[null,null,null,null,null,4,"Echo",22,"Parker Woods",455.81,455.81]
[null,null,null,null,null,2,"Foxtrot",26,"Maren Sweeney",195.4,195.4]
[null,null,null,null,null,4,"Sierra",93,"Savanna Dixon",427.88,427.88]
[null,null,null,null,null,3,"Foxtrot",26,"Zayne Dunn",386.46,386.46]
[null,null,null,null,null,1,"Sierra",95,"Asher Dunn",305.62,305.62]
[null,null,null,null,null,1,"Quebec",84,"Emmett Esparza",936.63,514.82000000000005]
[null,null,null,null,null,1,"Juliet",49,"Frederick Knapp",635.23,503.7]
[null,null,null,null,null,2,"India",42,"Catalina Richards",834.77,228.63]
[null,null,null,null,null,1,"Hotel",37,"Rigoberto Bush",309.81,309.81]
[null,null,null,null,null,1,"Zulu",127,"Laura Barrett",427.05,427.05]
[null,null,null,null,null,4,"Bravo",8,"Raiden Shelton",830.27,323.77]
[null,null,null,null,null,4,"Juliet",48,"Kiley Rollins",973.49,641.52]
[null,null,null,null,null,3,"Oscar",75,"Emmett Esparza",594.46,574.41999999999996]
[null,null,null,null,null,3,"Juliet",46,"Erin Johns",127.1,127.1]
[null,null,null,null,null,2,"Whisky",111,"Marley George",964.21,132.57]
[null,null,null,null,null,2,"Papa",80,"Christopher Bates",802.72,802.72]
[null,null,null,null,null,1,"Mike",61,"Alondra Long",485.5,244.4]
[null,null,null,null,null,2,"India",44,"Kennedy Christian",809.46,510.62]
[null,null,null,null,null,1,"India",42,"Trystan Norton",141.32,141.32]
[null,null,null,null,null,2,"X-Ray",117,"Dane Patton",103.82,103.82]
[null,null,null,null,null,3,"Echo",25,"Ricardo Jacobs",437.34,437.34]
[null,null,null,null,null,4,"X-Ray",117,"Raiden Shelton",874.89,874.89]
[null,null,null,null,null,1,"Whisky",112,"Stanley Gonzales",909.92,624.84]
[null,null,null,null,null,4,"Tango",97,"Jacob Howell",534.86,534.86]
[null,null,null,null,null,2,"Alpha",2,"Marley George",522.36,381.06]
[null,null,null,null,null,1,"Kilo",53,"Jovan Solomon",584.54,194.42]
[null,null,null,null,null,4,"Whisky",113,"Alisha Woodward",565.09,509.87]
[null,null,null,null,null,2,"Yankee",125,"Emma Mitchell",150.29,150.29]
[null,null,null,null,null,2,"Romeo",86,"Jaylene Jones",537.5,255.57]
[null,null,null,null,null,4,"Foxtrot",26,"Akira Murray",878.63,601.34]
[null,null,null,null,null,4,"Victor",106,"Mariyah Randall",452.71,147.1]
[null,null,null,null,null,4,"Quebec",83,"Pierre Cain",859.32,573.82000000000005]
[null,null,null,null,null,3,"Sierra",93,"Declan Figueroa",604.38,604.38]
[null,null,null,null,null,2,"Hotel",38,"Amber Spence",833.27,469.54]
[null,null,null,null,null,2,"Golf",31,"Kiley Rollins",767.57,767.57]
[null,null,null,null,null,4,"Alpha",5,"Douglas Barry",604.20000000000005,471.27]
[null,null,null,null,null,3,"Bravo",6,"Ellie Jensen",561.57000000000005,561.57000000000005]
[null,null,null,null,null,3,"Charlie",14,"Catalina Richards",861.36,808.47]
[null,null,null,null,null,4,"Zulu",127,"Payton Horn",615.16,272.81]
[null,null,null,null,null,3,"Romeo",89,"Lorelei Mccoy",305.41000000000003,159.19999999999999]
[null,null,null,null,null,1,"Sierra",95,"Allie Franklin",132.77000000000001,132.77000000000001]
[null,null,null,null,null,2,"Bravo",8,"Everett Gill",565.47,565.47]
[null,null,null,null,null,1,"Uniform",104,"Braylon Townsend",547.01,506.59]
[null,null,null,null,null,2,"Lima",57,"Akira Murray",209.13,209.13]
[null,null,null,null,null,3,"Juliet",49,"Jamarion Kelly",765.6,652.94000000000005]
[null,null,null,null,null,3,"Golf",32,"Julianna Knox",997.3,100.66]
[null,null,null,null,null,4,"X-Ray",120,"Kolton Elliott",101.29,101.29]
[null,null,null,null,null,4,"Foxtrot",28,"Pierre Cain",504.8,504.8]
[null,null,null,null,null,3,"Alpha",3,"Emmett Esparza",184.97,184.97]
[null,null,null,null,null,2,"Sierra",94,"Scarlett Calhoun",857.89,519.76]
[null,null,null,null,null,2,"Golf",31,"Christopher Bates",181.18,181.18]
[null,null,null,null,null,2,"Mike",62,"Declan Figueroa",729.82,729.82]
[null,null,null,null,null,4,"Hotel",36,"Mariyah Randall",758.54,564.63]
[null,null,null,null,null,3,"Foxtrot",26,"Kamila Waters",306.33,243.27]
[null,null,null,null,null,1,"Foxtrot",30,"Allie Franklin",740.63,153.82]
[null,null,null,null,null,1,"Juliet",50,"Brooke Ritter",755.51,196.42]
[null,null,null,null,null,2,"Lima",59,"Declan Figueroa",192.11,192.11]
[null,null,null,null,null,1,"Yankee",123,"Emma Mitchell",998.11,487.57]
[null,null,null,null,null,4,"Tango",99,"Lizbeth Carrillo",871.23,871.23]
[null,null,null,null,null,3,"Mike",63,"Raiden Shelton",910.81,468.94]
[null,null,null,null,null,4,"Delta",20,"Emery Estes",100.7,100.7]
[null,null,null,null,null,1,"Echo",25,"Declan Figueroa",226.57,226.57]
[null,null,null,null,null,1,"Quebec",83,"Heidy White",260.44,260.44]
[null,null,null,null,null,1,"Tango",100,"Kamila Waters",235.21,235.21]
[null,null,null,null,null,4,"November",69,"Dixie Stanton",868.01,450.39]
[null,null,null,null,null,2,"Kilo",53,"Terrance Sampson",624.26,572.5]
[null,null,null,null,null,1,"Kilo",51,"Precious Guerrero",246.12,246.12]
[null,null,null,null,null,3,"Zulu",126,"Brooke Ritter",995.82,177.3]
[null,null,null,null,null,4,"Juliet",49,"Marley George",494.34,494.34]
[null,null,null,null,null,4,"Mike",65,"Lizbeth Carrillo",382.47,382.47]
[null,null,null,null,null,4,"Papa",77,"Donna Warren",363.85,356]
[null,null,null,null,null,1,"Romeo",90,"Braylon Townsend",240.88,240.88]
[null,null,null,null,null,1,"Zulu",127,"Jonathan Paul",943.34,582.94000000000005]
[null,null,null,null,null,2,"Oscar",75,"Ashanti Leblanc",619.86,265.58999999999997]
[null,null,null,null,null,1,"Uniform",104,"Everett Gill",102.51,102.51]
[null,null,null,null,null,3,"Alpha",4,"Grant Snow",646.46,516.15]
[null,null,null,null,null,1,"Romeo",90,"Arthur Patton",464.33,464.33]
[null,null,null,null,null,1,"Quebec",85,"Asia Hendricks",576.99,576.99]
[null,null,null,null,null,4,"Oscar",72,"Terrance Sampson",504.84,336.82]
[null,null,null,null,null,2,"Tango",96,"Terrance Sampson",807.45,332.57]
[null,null,null,null,null,3,"Charlie",15,"Maren Sweeney",840.14,272.41000000000003]
[null,null,null,null,null,2,"Romeo",90,"Laura Barrett",114.71,114.71]
[null,null,null,null,null,4,"Uniform",104,"Christopher Bates",474.12,187.63]
[null,null,null,null,null,3,"Victor",109,"Grant Snow",209.31,209.31]
[null,null,null,null,null,1,"Golf",34,"Abdullah Bridges",578.11,513.44000000000005]
[null,null,null,null,null,3,"November",70,"Donald Mcfarland",542.17999999999995,542.17999999999995]
[null,null,null,null,null,2,"Alpha",3,"Jovan Solomon",607.33000000000004,588.23]
[null,null,null,null,null,4,"Bravo",9,"Savanna Dixon",975.08,130.41999999999999]
[null,null,null,null,null,3,"Hotel",40,"Heidy White",547.04,282.52999999999997]
[null,null,null,null,null,4,"Papa",76,"Jonathan Paul",622.65,622.65]
[null,null,null,null,null,3,"Yankee",122,"Declan Figueroa",537.32000000000005,537.32000000000005]
[null,null,null,null,null,3,"Charlie",13,"Dixie Stanton",370.9,368]
[null,null,null,null,null,4,"India",41,"Dixie Stanton",266.2,266.2]
[null,null,null,null,null,4,"Lima",56,"Braylon Townsend",101.02,101.02]
[null,null,null,null,null,4,"Charlie",15,"Cruz Short",187.84,187.84]
[null,null,null,null,null,1,"Papa",76,"Jovan Solomon",918.97,822.89]
[null,null,null,null,null,4,"Oscar",74,"Tomas Suarez",987.83,596.20000000000005]
[null,null,null,null,null,2,"India",45,"Dixie Stanton",471.95,471.95]
[null,null,null,null,null,4,"Papa",80,"Alejandra Clements",897.09,200.27]
[null,null,null,null,null,4,"Whisky",115,"Catalina Richards",862.87,862.05]
[null,null,null,null,null,1,"Juliet",49,"Brennan Campos",519.04999999999995,519.04999999999995]
[null,null,null,null,null,1,"Mike",61,"Akira Murray",609.98,584.29999999999995]
[null,null,null,null,null,4,"Golf",31,"Valentina Durham",590.58000000000004,526.35]
[null,null,null,null,null,3,"Papa",76,"Tyler Lynch",678.58,557.23]
[null,null,null,null,null,4,"Zulu",127,"Gilberto Yoder",671.79,671.79]
[null,null,null,null,null,2,"Lima",59,"Grant Snow",957.73,957.73]
[null,null,null,null,null,2,"Alpha",4,"Asher Dunn",936,806.87]
[null,null,null,null,null,3,"X-Ray",116,"Carter Obrien",360.25,360.25]
[null,null,null,null,null,2,"Victor",106,"Porter Leach",406.15,157.66999999999999]
[null,null,null,null,null,2,"Juliet",48,"Enrique Lambert",924.08,483.82]
[null,null,null,null,null,1,"Charlie",14,"Christopher Bates",917.39,499.74]
[null,null,null,null,null,3,"Tango",99,"Armando Hoover",835.39,834.86]
[null,null,null,null,null,2,"Zulu",129,"Jaden Davidson",436.54,105.93]
[null,null,null,null,null,1,"Delta",17,"Alexander Moses",625.79999999999995,150.82]
[null,null,null,null,null,1,"Quebec",85,"Benjamin Bell",581.16,581.16]
[null,null,null,null,null,4,"Echo",21,"Emmett Esparza",734.65,618.80999999999995]
[null,null,null,null,null,4,"Tango",96,"Ricardo Jacobs",542.37,542.37]
[null,null,null,null,null,1,"Bravo",8,"Allie Franklin",131.78,131.78]
[null,null,null,null,null,3,"Alpha",5,"Asher Dunn",280.18,280.18]
[null,null,null,null,null,4,"Yankee",124,"Ashanti Leblanc",841.96,328.69]
[null,null,null,null,null,3,"Mike",61,"Julianna Knox",728.71,148.82]
[null,null,null,null,null,4,"Tango",96,"Scarlett Calhoun",375.37,375.37]
[null,null,null,null,null,2,"India",42,"Morgan Rose",268.08,148.38999999999999]
[null,null,null,null,null,4,"X-Ray",116,"Asia Hendricks",191.07,191.07]
[null,null,null,null,null,3,"November",69,"Akira Murray",732.49,488.39]
[null,null,null,null,null,4,"Mike",64,"Valentina Durham",903.43,589.33000000000004]
[null,null,null,null,null,3,"Mike",63,"Alisha Woodward",837.17,258.27999999999997]
[null,null,null,null,null,2,"Juliet",49,"Addyson Mccormick",955.69,274.42]
[null,null,null,null,null,3,"November",67,"Tomas Suarez",870.54,870.54]
[null,null,null,null,null,2,"Victor",110,"Douglas Barry",609.37,597.30999999999995]
[null,null,null,null,null,3,"Victor",107,"Karina Cisneros",145.02000000000001,145.02000000000001]
[null,null,null,null,null,4,"Oscar",71,"Valentina Durham",164.23,164.23]
[null,null,null,null,null,1,"Foxtrot",26,"Mariyah Randall",462.17,453.93]
[null,null,null,null,null,2,"Charlie",13,"Tyler Lynch",443.07,443.07]
[null,null,null,null,null,3,"Echo",21,"Precious Guerrero",375.29,375.29]
[null,null,null,null,null,3,"Sierra",94,"Ricardo Jacobs",486.1,395.98]
[null,null,null,null,null,2,"Papa",80,"Heidy White",497.51,127.25]
[null,null,null,null,null,2,"Delta",20,"Cristal York",923.17,893.88]
[null,null,null,null,null,1,"Zulu",126,"Raiden Shelton",579.86,416.65]
[null,null,null,null,null,4,"November",70,"America Choi",798.56,798.56]
[null,null,null,null,null,4,"Alpha",5,"Javier Meyers",751.92,105.81]
[null,null,null,null,null,3,"Yankee",123,"Jasmine Newton",620.38,215.25]
[null,null,null,null,null,4,"Bravo",9,"Tyree Adkins",905.88,458.44]
[null,null,null,null,null,1,"Zulu",127,"Trystan Norton",270.33999999999997,270.33999999999997]
[null,null,null,null,null,2,"Lima",58,"Ellie Jensen",565.83000000000004,494.69]
[null,null,null,null,null,1,"Echo",22,"Addyson Mccormick",631.39,631.39]
[null,null,null,null,null,4,"X-Ray",120,"Ari Hernandez",409.6,409.6]
[null,null,null,null,null,3,"Quebec",82,"Alexander Moses",997.45,886.75]
[null,null,null,null,null,3,"Victor",106,"Julianna Knox",872.84,221.24]
[null,null,null,null,null,4,"Lima",56,"Sarai Kemp",547.29,547.29]
[null,null,null,null,null,3,"Juliet",49,"Tyree Adkins",640.21,640.21]
[null,null,null,null,null,4,"Golf",33,"Julianna Knox",312.19,312.19]
[null,null,null,null,null,1,"Victor",107,"Allie Franklin",666.51,560.17999999999995]
[null,null,null,null,null,4,"Yankee",121,"Keenan Sawyer",236.29,236.29]
[null,null,null,null,null,4,"Sierra",91,"Zayne Dunn",483.62,314.05]
[null,null,null,null,null,1,"Lima",57,"Gilberto Yoder",707.49,409.53]
[null,null,null,null,null,3,"Lima",57,"Raiden Shelton",169.3,169.3]
[null,null,null,null,null,3,"Delta",17,"Cristal York",866.53,514.83000000000004]
[null,null,null,null,null,3,"Kilo",55,"Dixie Stanton",337.04,337.04]
[null,null,null,null,null,3,"Bravo",8,"Arthur Patton",481.72,481.72]
[null,null,null,null,null,2,"India",42,"Eileen Knox",888.46,193.21]
[null,null,null,null,null,1,"Lima",56,"Zayne Dunn",688.82,688.82]
[null,null,null,null,null,2,"Golf",34,"America Choi",623.63,532.74]
[null,null,null,null,null,2,"Hotel",37,"Baron Dougherty",994.92,960.75]
[null,null,null,null,null,1,"Whisky",113,"Jacob Howell",899.6,413.04]
[null,null,null,null,null,2,"Whisky",115,"Parker Woods",285.92,285.92]
[null,null,null,null,null,3,"Oscar",72,"Dixie Stanton",883.2,266.45]
[null,null,null,null,null,1,"Hotel",38,"Emma Mitchell",119.15,119.15]
[null,null,null,null,null,4,"Alpha",1,"Kamila Waters",475.47,475.47]
[null,null,null,null,null,4,"Echo",21,"Laura Barrett",456.39,456.39]
[null,null,null,null,null,4,"Whisky",113,"Jasmine Newton",714.83,312.83999999999997]
[null,null,null,null,null,3,"Bravo",9,"Shaniya Franklin",914.09,905.63]
[null,null,null,null,null,1,"Romeo",88,"Jaden Davidson",751.1,751.1]
[null,null,null,null,null,1,"Sierra",91,"Stanley Gonzales",112.58,112.58]
[null,null,null,null,null,3,"Foxtrot",28,"Savanna Dixon",533.1,143.59]
[null,null,null,null,null,4,"Delta",16,"Dixie Stanton",660.09,395.43]
[null,null,null,null,null,2,"Foxtrot",29,"Christopher Bates",709.03,272.26]
[null,null,null,null,null,1,"November",67,"Carter Obrien",502.2,338.75]
[null,null,null,null,null,2,"Echo",22,"Regina Freeman",645.95000000000005,645.95000000000005]
[null,null,null,null,null,2,"Juliet",48,"Baron Dougherty",688.58,591.13]
[null,null,null,null,null,3,"Romeo",89,"Brooke Ritter",628.07000000000005,628.07000000000005]
[null,null,null,null,null,2,"Lima",59,"Cruz Short",187.72,119.76]
[null,null,null,null,null,3,"Yankee",124,"Abdullah Bridges",747.97,613.72]
[null,null,null,null,null,4,"Victor",109,"Paityn Olson",268.23,268.23]
[null,null,null,null,null,2,"Tango",96,"Emma Mitchell",959.78,169.17]
[null,null,null,null,null,2,"Whisky",113,"Valentina Durham",230.59,230.59]
[null,null,null,null,null,1,"Juliet",48,"Alisha Woodward",710.72,710.72]
[null,null,null,null,null,1,"Sierra",92,"Abdullah Bridges",277.79000000000002,277.79000000000002]
[null,null,null,null,null,1,"Whisky",113,"Markus Benson",722.26,562.49]
[null,null,null,null,null,3,"Foxtrot",27,"Ari Hernandez",585.48,585.48]
[null,null,null,null,null,3,"India",43,"Lorelei Mccoy",827.71,455.62]
[null,null,null,null,null,4,"Oscar",73,"Ricardo Jacobs",968.58,398.04]
[null,null,null,null,null,1,"November",66,"Dane Patton",239.11,239.11]
[null,null,null,null,null,2,"November",69,"Brooke Ritter",305.73,305.73]
[null,null,null,null,null,2,"Romeo",86,"Mariyah Randall",227.25,227.25]
[null,null,null,null,null,2,"Victor",108,"Jasmine Newton",894.01,521.57000000000005]
[null,null,null,null,null,2,"Alpha",2,"Amber Spence",782.09,345.79]
[null,null,null,null,null,4,"Charlie",11,"Gilberto Yoder",653.29999999999995,653.29999999999995]
[null,null,null,null,null,3,"Juliet",47,"Francisco Stevenson",415.3,415.3]
[null,null,null,null,null,3,"Whisky",115,"Heidy White",120.54,120.54]
[null,null,null,null,null,2,"India",45,"Tomas Suarez",452.97,452.97]
[null,null,null,null,null,4,"Juliet",50,"Sadie Pierce",620.05999999999995,362.28]
[null,null,null,null,null,3,"Romeo",88,"Dixie Stanton",118.5,118.5]
[null,null,null,null,null,3,"Victor",107,"Jaylene Jones",365.87,365.87]
[null,null,null,null,null,3,"X-Ray",116,"Karson Choi",915.15,230.65]
[null,null,null,null,null,1,"Alpha",4,"Alejandra Clements",393.03,393.03]
[null,null,null,null,null,1,"Zulu",128,"Khloe Michael",474.1,474.1]
[null,null,null,null,null,2,"Romeo",90,"Alisha Woodward",179.52,179.52]
[null,null,null,null,null,1,"November",69,"Leonard Monroe",905.36,620.75]
[null,null,null,null,null,4,"Zulu",129,"Shaniya Franklin",339.86,339.86]
[null,null,null,null,null,1,"Bravo",6,"Braylon Townsend",871.19,314.63]
[null,null,null,null,null,4,"Delta",19,"America Choi",853.93,308.01]
[null,null,null,null,null,4,"Oscar",74,"Scarlett Calhoun",607.57000000000005,320.89]
[null,null,null,null,null,3,"November",70,"Leonard Monroe",675.62,675.62]
[null,null,null,null,null,1,"Quebec",84,"Ishaan Hardy",337.98,271.26]
[null,null,null,null,null,3,"Juliet",50,"Valentina Durham",587.28,587.28]
[null,null,null,null,null,1,"Hotel",37,"Alondra Long",230.31,230.31]
[null,null,null,null,null,4,"Oscar",73,"Mariyah Randall",807.59,807.59]
[null,null,null,null,null,4,"Bravo",6,"Parker Woods",156.62,156.62]
[null,null,null,null,null,2,"Quebec",82,"Ashanti Leblanc",465.75,177.01]
[null,null,null,null,null,4,"Papa",79,"Douglas Barry",536.58000000000004,379.68]
[null,null,null,null,null,4,"Sierra",94,"Parker Woods",724.03,436.44]
[null,null,null,null,null,2,"Tango",99,"Jovan Solomon",751.65,311.85000000000002]
[null,null,null,null,null,2,"Juliet",50,"Tyree Adkins",767.66,171.64]
[null,null,null,null,null,2,"Quebec",84,"Miya Miranda",335.13,335.13]
[null,null,null,null,null,1,"Alpha",1,"Trystan Norton",851.98,819.33]
[null,null,null,null,null,3,"Whisky",114,"Ishaan Hardy",677.54,456.14]
[null,null,null,null,null,2,"Charlie",15,"Shaniya Franklin",852.71,690.06]
[null,null,null,null,null,2,"Victor",110,"Brooke Ritter",885.18,368.99]
[null,null,null,null,null,1,"Uniform",102,"Everett Gill",227.99,227.99]
[null,null,null,null,null,2,"Golf",31,"Parker Woods",809.5,809.5]
[null,null,null,null,null,3,"Delta",17,"Stephen Booth",117.49,117.49]
[null,null,null,null,null,4,"Quebec",81,"Jovan Solomon",235.01,235.01]
[null,null,null,null,null,3,"Tango",98,"Donna Warren",553.54999999999995,505.73]
[null,null,null,null,null,4,"Papa",79,"Declan Figueroa",968.21,191.52]
[null,null,null,null,null,1,"Delta",19,"Marley George",445.58,114.01]
[null,null,null,null,null,2,"Foxtrot",27,"Heidy White",428.6,363.89]
[null,null,null,null,null,1,"Quebec",84,"Christopher Bates",460.6,460.6]
[null,null,null,null,null,4,"Kilo",51,"Ashanti Leblanc",260.8,260.8]
[null,null,null,null,null,3,"Yankee",121,"Valentina Durham",429.88,115.2]
[null,null,null,null,null,1,"Golf",32,"Keenan Sawyer",706.95,561.55999999999995]
[null,null,null,null,null,3,"Whisky",115,"Kiley Rollins",722.03,288.93]
[null,null,null,null,null,2,"Foxtrot",26,"Alisha Woodward",328.03,328.03]
[null,null,null,null,null,4,"Echo",23,"Erin Johns",467.96,467.96]
[null,null,null,null,null,1,"Hotel",37,"America Choi",338.32,338.32]
[null,null,null,null,null,2,"Oscar",73,"Morgan Rose",470.79,215.49]
[null,null,null,null,null,2,"Juliet",47,"Carter Obrien",813.79,657.39]
[null,null,null,null,null,3,"Kilo",51,"Stanley Gonzales",971.53,742.89]
[null,null,null,null,null,1,"Yankee",122,"Emma Mitchell",594.72,425.6]
[null,null,null,null,null,4,"Alpha",2,"Savanna Dixon",301.45,149.49]
[null,null,null,null,null,4,"Lima",59,"Donna Warren",241.57,241.57]
[null,null,null,null,null,2,"X-Ray",118,"Donald Mcfarland",739.42,660.94]
[null,null,null,null,null,1,"Tango",97,"Marley George",542.12,542.12]
[null,null,null,null,null,4,"Golf",34,"Luciano Jackson",118.03,118.03]
[null,null,null,null,null,2,"India",44,"Alejandra Clements",117.57,117.57]
[null,null,null,null,null,4,"Alpha",4,"Ellie Jensen",701.3,408.02]
[null,null,null,null,null,4,"Kilo",54,"Jasmine Newton",596.74,308.5]
[null,null,null,null,null,1,"Echo",22,"Addyson Mccormick",999.45,147.63]
[null,null,null,null,null,4,"Romeo",88,"Emery Estes",590.1,397.13]
[null,null,null,null,null,4,"Delta",19,"Eileen Knox",147.16,147.16]
[null,null,null,null,null,3,"Kilo",51,"Allie Franklin",410.22,410.22]
[null,null,null,null,null,4,"Alpha",3,"Sarai Kemp",102.27,102.27]
[null,null,null,null,null,4,"Zulu",130,"Sadie Pierce",105.34,105.34]
[null,null,null,null,null,3,"Sierra",91,"Declan Figueroa",398.74,149.28]
[null,null,null,null,null,2,"Yankee",125,"Carter Obrien",193.06,193.06]
[null,null,null,null,null,2,"Juliet",47,"Maren Sweeney",916.62,910.12]
[null,null,null,null,null,3,"Hotel",37,"Jaylene Jones",289.02999999999997,289.02999999999997]
[null,null,null,null,null,3,"Uniform",105,"Julianna Knox",634.22,240.48]
[null,null,null,null,null,4,"Lima",57,"Leonard Monroe",780.47,513.65]
[null,null,null,null,null,1,"Oscar",72,"Paityn Olson",492.81,492.81]
[null,null,null,null,null,4,"X-Ray",116,"Donna Warren",834.49,526.22]
[null,null,null,null,null,3,"Foxtrot",28,"Douglas Barry",670.09,478.97]
[null,null,null,null,null,1,"Victor",106,"Alexander Moses",858.02,858.02]
[null,null,null,null,null,1,"Foxtrot",28,"Alondra Long",741.29,463.59]
[null,null,null,null,null,4,"Charlie",13,"Stanley Gonzales",587.62,587.62]
[null,null,null,null,null,3,"Uniform",105,"Arthur Patton",618.76,618.76]
[null,null,null,null,null,1,"Quebec",85,"Regina Freeman",911.23,463.15]
[null,null,null,null,null,1,"Romeo",89,"Trystan Norton",250.16,250.16]
[null,null,null,null,null,1,"Alpha",3,"Asia Hendricks",526.47,526.47]
[null,null,null,null,null,2,"Echo",22,"Gilberto Yoder",899.98,755.22]
[null,null,null,null,null,1,"Bravo",9,"Kiley Rollins",739.65,263.57]
[null,null,null,null,null,3,"Lima",56,"Precious Guerrero",346.79,346.79]
[null,null,null,null,null,3,"Tango",97,"Francisco Stevenson",168.76,168.76]
[null,null,null,null,null,4,"Foxtrot",26,"Mariyah Randall",201.99,201.99]
[null,null,null,null,null,3,"Papa",78,"Scarlett Calhoun",976.33,487.56]
[null,null,null,null,null,3,"Romeo",87,"Ingrid Parker",670.02,611.01]
[null,null,null,null,null,2,"Papa",76,"Asia Hendricks",765.02,619.69000000000005]
[null,null,null,null,null,1,"Romeo",88,"Jovan Solomon",372,372]
[null,null,null,null,null,4,"Tango",98,"Brooke Ritter",907.54,760.7]
[null,null,null,null,null,4,"Quebec",83,"Terrance Sampson",670.5,505.98]
[null,null,null,null,null,3,"Delta",19,"Terrance Sampson",531.44000000000005,531.44000000000005]
[null,null,null,null,null,4,"Echo",24,"America Choi",783.67,388.84]
[null,null,null,null,null,1,"Bravo",8,"Arthur Patton",492.73,272.77]
[null,null,null,null,null,4,"Bravo",9,"Karson Choi",852.67,156.68]
[null,null,null,null,null,3,"Kilo",51,"Sanaa Dunn",820.5,394.2]
[null,null,null,null,null,2,"Lima",58,"Alejandra Clements",514.4,425.87]
[null,null,null,null,null,1,"Bravo",7,"Braylon Townsend",777.54,614.89]
[null,null,null,null,null,3,"Yankee",125,"Terrance Sampson",827.3,221.36]
[null,null,null,null,null,3,"X-Ray",120,"Dixie Stanton",863.65,119.98]
[null,null,null,null,null,1,"X-Ray",117,"Jonathan Paul",877.3,785.44]
[null,null,null,null,null,2,"Kilo",54,"Jamarion Kelly",419.52,419.52]
[null,null,null,null,null,2,"Hotel",37,"Francisco Stevenson",696.1,696.1]
[null,null,null,null,null,1,"Mike",61,"Alexander Moses",995.56,830.41]
[null,null,null,null,null,4,"X-Ray",119,"Heidy White",625.78,625.78]
[null,null,null,null,null,2,"Oscar",73,"Donald Mcfarland",445.66,445.66]
[null,null,null,null,null,1,"Hotel",38,"Lizbeth Carrillo",379.87,379.87]
[null,null,null,null,null,4,"Uniform",104,"Ishaan Hardy",254.68,234.39]
[null,null,null,null,null,3,"November",66,"Ari Hernandez",410.73,410.73]
[null,null,null,null,null,1,"Oscar",71,"Tomas Suarez",910.69,651.92999999999995]
[null,null,null,null,null,1,"Whisky",114,"Ashanti Leblanc",588.39,588.39]
[null,null,null,null,null,2,"Quebec",84,"Braylon Townsend",391.5,249.66]
[null,null,null,null,null,4,"Oscar",72,"Javier Meyers",509.15,367.59]
[null,null,null,null,null,3,"Sierra",93,"Alexander Moses",882.92,882.92]
[null,null,null,null,null,3,"Zulu",126,"Frederick Knapp",823.73,807.13]
[null,null,null,null,null,2,"November",68,"Rigoberto Bush",209.78,209.78]
[null,null,null,null,null,2,"Whisky",115,"Trystan Norton",168.57,168.57]
[null,null,null,null,null,4,"Alpha",5,"Julianna Knox",163.47,163.47]
[null,null,null,null,null,1,"Kilo",51,"Brooke Ritter",414.98,414.98]
[null,null,null,null,null,1,"Bravo",6,"Lorelei Mccoy",460.57,195.69]
[null,null,null,null,null,4,"Papa",79,"Erin Johns",919.17,369.03]
[null,null,null,null,null,1,"Sierra",93,"Kolton Elliott",536.04,166.57]
[null,null,null,null,null,3,"Juliet",46,"Markus Benson",938.72,775.16]
[null,null,null,null,null,1,"X-Ray",117,"Gilberto Yoder",713.51,154.19999999999999]
[null,null,null,null,null,4,"Lima",59,"Kennedy Christian",925.09,925.09]
[null,null,null,null,null,4,"Bravo",6,"Jasmine Newton",740.5,680.58]
[null,null,null,null,null,3,"Echo",22,"Kamila Waters",286.19,286.19]
[null,null,null,null,null,4,"Hotel",36,"Sadie Pierce",909.85,281.12]
[null,null,null,null,null,2,"Golf",35,"Terrance Sampson",238.08,115.36]
[null,null,null,null,null,3,"India",42,"Carter Obrien",711.43,637.53]
[null,null,null,null,null,4,"X-Ray",118,"Gilberto Yoder",487.65,487.65]
[null,null,null,null,null,3,"Victor",109,"Ishaan Hardy",622.80999999999995,563.11]
[null,null,null,null,null,4,"Kilo",53,"Jacob Howell",206.83,206.83]
[null,null,null,null,null,3,"Kilo",53,"Marley George",359.45,359.45]
[null,null,null,null,null,1,"India",45,"Trystan Norton",371.66,371.66]
[null,null,null,null,null,2,"Zulu",129,"Cruz Short",741.01,513.79999999999995]
[null,null,null,null,null,2,"Papa",79,"Catalina Richards",403.18,403.18]
[null,null,null,null,null,4,"Mike",65,"Paityn Olson",786.94,780.23]
[null,null,null,null,null,1,"Papa",78,"Savanna Dixon",588.24,588.24]
[null,null,null,null,null,1,"Romeo",89,"Jamarion Kelly",172.87,172.87]

{"sheet":"Quarter Data Validation","index":7,"n_rows":22,"n_cols":9,"rows_kept":22,"cut":false,"hidden":false,"merged":[[2,0,2,4]]}
[{"$f":"IF(ISERROR(RIGHT(CELL(\"filename\",A1),LEN(CELL(\"filename\",A1))-FIND(\"]\",CELL(\"filename\",A1)))),\n\"\",\nRIGHT(CELL(\"filename\",A1),LEN(CELL(\"filename\",A1))-FIND(\"]\",CELL(\"filename\",A1))))","v":"Quarter Data Validation"}]
[{"$f":"Model_Name","v":"SP Examples of Dependent Data Validation.xlsm"}]
["Navigator"]
[null,null,null,null,"Error Checks:",null,null,null,{"$f":"Overall_Error_Check","v":0}]
[]
[null,{"$f":"MAX($B$5:$B5)+1","v":1},"Workings"]
[]
[null,null,"For Calculation"]
[]
[null,null,null,{"$f":"A1","v":"Quarter Data Validation"}]
[]
[null,null,null,null,"#"]
[null,null,null,null,{"$f":"N($E12)+1","v":1},{"$f":"TRANSPOSE(_xlfn._xlws.SORT(_xlfn.UNIQUE(_xlfn._xlws.FILTER(Data[Quarter],\nIF(ISBLANK('Interdependent Data Validation'!$G13),1,(Data[Division]='Interdependent Data Validation'!$G13)*1)\n*IF(ISBLANK('Interdependent Data Validation'!$H13),1,(Data[Unit No]='Interdependent Data Validation'!$H13)*1)\n*IF(ISBLANK('Interdependent Data Validation'!$I13),1,(Data[Manager]='Interdependent Data Validation'!$I13)*1)))))","v":1}]
[null,null,null,null,{"$f":"N($E13)+1","v":2},{"$f":"TRANSPOSE(_xlfn._xlws.SORT(_xlfn.UNIQUE(_xlfn._xlws.FILTER(Data[Quarter],\nIF(ISBLANK('Interdependent Data Validation'!$G14),1,(Data[Division]='Interdependent Data Validation'!$G14)*1)\n*IF(ISBLANK('Interdependent Data Validation'!$H14),1,(Data[Unit No]='Interdependent Data Validation'!$H14)*1)\n*IF(ISBLANK('Interdependent Data Validation'!$I14),1,(Data[Manager]='Interdependent Data Validation'!$I14)*1)))))","v":3}]
[null,null,null,null,3,{"$f":"TRANSPOSE(_xlfn._xlws.SORT(_xlfn.UNIQUE(_xlfn._xlws.FILTER(Data[Quarter],\nIF(ISBLANK('Interdependent Data Validation'!$G15),1,(Data[Division]='Interdependent Data Validation'!$G15)*1)\n*IF(ISBLANK('Interdependent Data Validation'!$H15),1,(Data[Unit No]='Interdependent Data Validation'!$H15)*1)\n*IF(ISBLANK('Interdependent Data Validation'!$I15),1,(Data[Manager]='Interdependent Data Validation'!$I15)*1)))))","v":3}]
[null,null,null,null,4,{"$f":"TRANSPOSE(_xlfn._xlws.SORT(_xlfn.UNIQUE(_xlfn._xlws.FILTER(Data[Quarter],\nIF(ISBLANK('Interdependent Data Validation'!$G16),1,(Data[Division]='Interdependent Data Validation'!$G16)*1)\n*IF(ISBLANK('Interdependent Data Validation'!$H16),1,(Data[Unit No]='Interdependent Data Validation'!$H16)*1)\n*IF(ISBLANK('Interdependent Data Validation'!$I16),1,(Data[Manager]='Interdependent Data Validation'!$I16)*1)))))","v":1},2,3,4]
[null,null,null,null,5,{"$f":"TRANSPOSE(_xlfn._xlws.SORT(_xlfn.UNIQUE(_xlfn._xlws.FILTER(Data[Quarter],\nIF(ISBLANK('Interdependent Data Validation'!$G17),1,(Data[Division]='Interdependent Data Validation'!$G17)*1)\n*IF(ISBLANK('Interdependent Data Validation'!$H17),1,(Data[Unit No]='Interdependent Data Validation'!$H17)*1)\n*IF(ISBLANK('Interdependent Data Validation'!$I17),1,(Data[Manager]='Interdependent Data Validation'!$I17)*1)))))","v":1},2,3,4]
[null,null,null,null,6,{"$f":"TRANSPOSE(_xlfn._xlws.SORT(_xlfn.UNIQUE(_xlfn._xlws.FILTER(Data[Quarter],\nIF(ISBLANK('Interdependent Data Validation'!$G18),1,(Data[Division]='Interdependent Data Validation'!$G18)*1)\n*IF(ISBLANK('Interdependent Data Validation'!$H18),1,(Data[Unit No]='Interdependent Data Validation'!$H18)*1)\n*IF(ISBLANK('Interdependent Data Validation'!$I18),1,(Data[Manager]='Interdependent Data Validation'!$I18)*1)))))","v":1},2,3,4]
[null,null,null,null,7,{"$f":"TRANSPOSE(_xlfn._xlws.SORT(_xlfn.UNIQUE(_xlfn._xlws.FILTER(Data[Quarter],\nIF(ISBLANK('Interdependent Data Validation'!$G19),1,(Data[Division]='Interdependent Data Validation'!$G19)*1)\n*IF(ISBLANK('Interdependent Data Validation'!$H19),1,(Data[Unit No]='Interdependent Data Validation'!$H19)*1)\n*IF(ISBLANK('Interdependent Data Validation'!$I19),1,(Data[Manager]='Interdependent Data Validation'!$I19)*1)))))","v":1},2,3,4]
[null,null,null,null,8,{"$f":"TRANSPOSE(_xlfn._xlws.SORT(_xlfn.UNIQUE(_xlfn._xlws.FILTER(Data[Quarter],\nIF(ISBLANK('Interdependent Data Validation'!$G20),1,(Data[Division]='Interdependent Data Validation'!$G20)*1)\n*IF(ISBLANK('Interdependent Data Validation'!$H20),1,(Data[Unit No]='Interdependent Data Validation'!$H20)*1)\n*IF(ISBLANK('Interdependent Data Validation'!$I20),1,(Data[Manager]='Interdependent Data Validation'!$I20)*1)))))","v":1},2,3,4]
[null,null,null,null,9,{"$f":"TRANSPOSE(_xlfn._xlws.SORT(_xlfn.UNIQUE(_xlfn._xlws.FILTER(Data[Quarter],\nIF(ISBLANK('Interdependent Data Validation'!$G21),1,(Data[Division]='Interdependent Data Validation'!$G21)*1)\n*IF(ISBLANK('Interdependent Data Validation'!$H21),1,(Data[Unit No]='Interdependent Data Validation'!$H21)*1)\n*IF(ISBLANK('Interdependent Data Validation'!$I21),1,(Data[Manager]='Interdependent Data Validation'!$I21)*1)))))","v":1},2,3,4]
[null,null,null,null,10,{"$f":"TRANSPOSE(_xlfn._xlws.SORT(_xlfn.UNIQUE(_xlfn._xlws.FILTER(Data[Quarter],\nIF(ISBLANK('Interdependent Data Validation'!$G22),1,(Data[Division]='Interdependent Data Validation'!$G22)*1)\n*IF(ISBLANK('Interdependent Data Validation'!$H22),1,(Data[Unit No]='Interdependent Data Validation'!$H22)*1)\n*IF(ISBLANK('Interdependent Data Validation'!$I22),1,(Data[Manager]='Interdependent Data Validation'!$I22)*1)))))","v":1},2,3,4]

{"sheet":"Division Data Validation","index":8,"n_rows":22,"n_cols":31,"rows_kept":22,"cut":false,"hidden":false,"merged":[[2,0,2,4]]}
[{"$f":"IF(ISERROR(RIGHT(CELL(\"filename\",A1),LEN(CELL(\"filename\",A1))-FIND(\"]\",CELL(\"filename\",A1)))),\n\"\",\nRIGHT(CELL(\"filename\",A1),LEN(CELL(\"filename\",A1))-FIND(\"]\",CELL(\"filename\",A1))))","v":"Division Data Validation"}]
[{"$f":"Model_Name","v":"SP Examples of Dependent Data Validation.xlsm"}]
["Navigator"]
[null,null,null,null,"Error Checks:",null,null,null,{"$f":"Overall_Error_Check","v":0}]
[]
[null,{"$f":"MAX($B$5:$B5)+1","v":1},"Workings"]
[]
[null,null,"For Calculation"]
[]
[null,null,null,{"$f":"A1","v":"Division Data Validation"}]
[]
[null,null,null,null,"#"]
[null,null,null,null,{"$f":"N($E12)+1","v":1},{"$f":"TRANSPOSE(_xlfn._xlws.SORT(_xlfn.UNIQUE(_xlfn._xlws.FILTER(Data[Division],\nIF(ISBLANK('Interdependent Data Validation'!$F13),1,(Data[Quarter]='Interdependent Data Validation'!$F13)*1)\n*IF(ISBLANK('Interdependent Data Validation'!$H13),1,(Data[Unit No]='Interdependent Data Validation'!$H13)*1)\n*IF(ISBLANK('Interdependent Data Validation'!$I13),1,(Data[Manager]='Interdependent Data Validation'!$I13)*1)))))","v":"Alpha"}]
[null,null,null,null,{"$f":"N($E13)+1","v":2},{"$f":"TRANSPOSE(_xlfn._xlws.SORT(_xlfn.UNIQUE(_xlfn._xlws.FILTER(Data[Division],\nIF(ISBLANK('Interdependent Data Validation'!$F14),1,(Data[Quarter]='Interdependent Data Validation'!$F14)*1)\n*IF(ISBLANK('Interdependent Data Validation'!$H14),1,(Data[Unit No]='Interdependent Data Validation'!$H14)*1)\n*IF(ISBLANK('Interdependent Data Validation'!$I14),1,(Data[Manager]='Interdependent Data Validation'!$I14)*1)))))","v":"Kilo"}]
[null,null,null,null,3,{"$f":"TRANSPOSE(_xlfn._xlws.SORT(_xlfn.UNIQUE(_xlfn._xlws.FILTER(Data[Division],\nIF(ISBLANK('Interdependent Data Validation'!$F15),1,(Data[Quarter]='Interdependent Data Validation'!$F15)*1)\n*IF(ISBLANK('Interdependent Data Validation'!$H15),1,(Data[Unit No]='Interdependent Data Validation'!$H15)*1)\n*IF(ISBLANK('Interdependent Data Validation'!$I15),1,(Data[Manager]='Interdependent Data Validation'!$I15)*1)))))","v":"Papa"}]
[null,null,null,null,4,{"$f":"TRANSPOSE(_xlfn._xlws.SORT(_xlfn.UNIQUE(_xlfn._xlws.FILTER(Data[Division],\nIF(ISBLANK('Interdependent Data Validation'!$F16),1,(Data[Quarter]='Interdependent Data Validation'!$F16)*1)\n*IF(ISBLANK('Interdependent Data Validation'!$H16),1,(Data[Unit No]='Interdependent Data Validation'!$H16)*1)\n*IF(ISBLANK('Interdependent Data Validation'!$I16),1,(Data[Manager]='Interdependent Data Validation'!$I16)*1)))))","v":"Alpha"},"Bravo","Charlie","Delta","Echo","Foxtrot","Golf","Hotel","India","Juliet","Kilo","Lima","Mike","November","Oscar","Papa","Quebec","Romeo","Sierra","Tango","Uniform","Victor","Whisky","X-Ray","Yankee","Zulu"]
[null,null,null,null,5,{"$f":"TRANSPOSE(_xlfn._xlws.SORT(_xlfn.UNIQUE(_xlfn._xlws.FILTER(Data[Division],\nIF(ISBLANK('Interdependent Data Validation'!$F17),1,(Data[Quarter]='Interdependent Data Validation'!$F17)*1)\n*IF(ISBLANK('Interdependent Data Validation'!$H17),1,(Data[Unit No]='Interdependent Data Validation'!$H17)*1)\n*IF(ISBLANK('Interdependent Data Validation'!$I17),1,(Data[Manager]='Interdependent Data Validation'!$I17)*1)))))","v":"Alpha"},"Bravo","Charlie","Delta","Echo","Foxtrot","Golf","Hotel","India","Juliet","Kilo","Lima","Mike","November","Oscar","Papa","Quebec","Romeo","Sierra","Tango","Uniform","Victor","Whisky","X-Ray","Yankee","Zulu"]
[null,null,null,null,6,{"$f":"TRANSPOSE(_xlfn._xlws.SORT(_xlfn.UNIQUE(_xlfn._xlws.FILTER(Data[Division],\nIF(ISBLANK('Interdependent Data Validation'!$F18),1,(Data[Quarter]='Interdependent Data Validation'!$F18)*1)\n*IF(ISBLANK('Interdependent Data Validation'!$H18),1,(Data[Unit No]='Interdependent Data Validation'!$H18)*1)\n*IF(ISBLANK('Interdependent Data Validation'!$I18),1,(Data[Manager]='Interdependent Data Validation'!$I18)*1)))))","v":"Alpha"},"Bravo","Charlie","Delta","Echo","Foxtrot","Golf","Hotel","India","Juliet","Kilo","Lima","Mike","November","Oscar","Papa","Quebec","Romeo","Sierra","Tango","Uniform","Victor","Whisky","X-Ray","Yankee","Zulu"]
[null,null,null,null,7,{"$f":"TRANSPOSE(_xlfn._xlws.SORT(_xlfn.UNIQUE(_xlfn._xlws.FILTER(Data[Division],\nIF(ISBLANK('Interdependent Data Validation'!$F19),1,(Data[Quarter]='Interdependent Data Validation'!$F19)*1)\n*IF(ISBLANK('Interdependent Data Validation'!$H19),1,(Data[Unit No]='Interdependent Data Validation'!$H19)*1)\n*IF(ISBLANK('Interdependent Data Validation'!$I19),1,(Data[Manager]='Interdependent Data Validation'!$I19)*1)))))","v":"Alpha"},"Bravo","Charlie","Delta","Echo","Foxtrot","Golf","Hotel","India","Juliet","Kilo","Lima","Mike","November","Oscar","Papa","Quebec","Romeo","Sierra","Tango","Uniform","Victor","Whisky","X-Ray","Yankee","Zulu"]
[null,null,null,null,8,{"$f":"TRANSPOSE(_xlfn._xlws.SORT(_xlfn.UNIQUE(_xlfn._xlws.FILTER(Data[Division],\nIF(ISBLANK('Interdependent Data Validation'!$F20),1,(Data[Quarter]='Interdependent Data Validation'!$F20)*1)\n*IF(ISBLANK('Interdependent Data Validation'!$H20),1,(Data[Unit No]='Interdependent Data Validation'!$H20)*1)\n*IF(ISBLANK('Interdependent Data Validation'!$I20),1,(Data[Manager]='Interdependent Data Validation'!$I20)*1)))))","v":"Alpha"},"Bravo","Charlie","Delta","Echo","Foxtrot","Golf","Hotel","India","Juliet","Kilo","Lima","Mike","November","Oscar","Papa","Quebec","Romeo","Sierra","Tango","Uniform","Victor","Whisky","X-Ray","Yankee","Zulu"]
[null,null,null,null,9,{"$f":"TRANSPOSE(_xlfn._xlws.SORT(_xlfn.UNIQUE(_xlfn._xlws.FILTER(Data[Division],\nIF(ISBLANK('Interdependent Data Validation'!$F21),1,(Data[Quarter]='Interdependent Data Validation'!$F21)*1)\n*IF(ISBLANK('Interdependent Data Validation'!$H21),1,(Data[Unit No]='Interdependent Data Validation'!$H21)*1)\n*IF(ISBLANK('Interdependent Data Validation'!$I21),1,(Data[Manager]='Interdependent Data Validation'!$I21)*1)))))","v":"Alpha"},"Bravo","Charlie","Delta","Echo","Foxtrot","Golf","Hotel","India","Juliet","Kilo","Lima","Mike","November","Oscar","Papa","Quebec","Romeo","Sierra","Tango","Uniform","Victor","Whisky","X-Ray","Yankee","Zulu"]
[null,null,null,null,10,{"$f":"TRANSPOSE(_xlfn._xlws.SORT(_xlfn.UNIQUE(_xlfn._xlws.FILTER(Data[Division],\nIF(ISBLANK('Interdependent Data Validation'!$F22),1,(Data[Quarter]='Interdependent Data Validation'!$F22)*1)\n*IF(ISBLANK('Interdependent Data Validation'!$H22),1,(Data[Unit No]='Interdependent Data Validation'!$H22)*1)\n*IF(ISBLANK('Interdependent Data Validation'!$I22),1,(Data[Manager]='Interdependent Data Validation'!$I22)*1)))))","v":"Alpha"},"Bravo","Charlie","Delta","Echo","Foxtrot","Golf","Hotel","India","Juliet","Kilo","Lima","Mike","November","Oscar","Papa","Quebec","Romeo","Sierra","Tango","Uniform","Victor","Whisky","X-Ray","Yankee","Zulu"]

{"sheet":"Unit No Data Validation","index":9,"n_rows":22,"n_cols":135,"rows_kept":22,"cut":false,"hidden":false,"merged":[[2,0,2,4]]}
[{"$f":"IF(ISERROR(RIGHT(CELL(\"filename\",A1),LEN(CELL(\"filename\",A1))-FIND(\"]\",CELL(\"filename\",A1)))),\n\"\",\nRIGHT(CELL(\"filename\",A1),LEN(CELL(\"filename\",A1))-FIND(\"]\",CELL(\"filename\",A1))))","v":"Unit No Data Validation"}]
[{"$f":"Model_Name","v":"SP Examples of Dependent Data Validation.xlsm"}]
["Navigator"]
[null,null,null,null,"Error Checks:",null,null,null,{"$f":"Overall_Error_Check","v":0}]
[]
[null,{"$f":"MAX($B$5:$B5)+1","v":1},"Workings"]
[]
[null,null,"For Calculation"]
[]
[null,null,null,{"$f":"A1","v":"Unit No Data Validation"}]
[]
[null,null,null,null,"#"]
[null,null,null,null,{"$f":"N($E12)+1","v":1},{"$f":"TRANSPOSE(_xlfn._xlws.SORT(_xlfn.UNIQUE(_xlfn._xlws.FILTER(Data[Unit No],\nIF(ISBLANK('Interdependent Data Validation'!$F13),1,(Data[Quarter]='Interdependent Data Validation'!$F13)*1)\n*IF(ISBLANK('Interdependent Data Validation'!$G13),1,(Data[Division]='Interdependent Data Validation'!$G13)*1)\n*IF(ISBLANK('Interdependent Data Validation'!$I13),1,(Data[Manager]='Interdependent Data Validation'!$I13)*1)))))","v":1},5]
[null,null,null,null,{"$f":"N($E13)+1","v":2},{"$f":"TRANSPOSE(_xlfn._xlws.SORT(_xlfn.UNIQUE(_xlfn._xlws.FILTER(Data[Unit No],\nIF(ISBLANK('Interdependent Data Validation'!$F14),1,(Data[Quarter]='Interdependent Data Validation'!$F14)*1)\n*IF(ISBLANK('Interdependent Data Validation'!$G14),1,(Data[Division]='Interdependent Data Validation'!$G14)*1)\n*IF(ISBLANK('Interdependent Data Validation'!$I14),1,(Data[Manager]='Interdependent Data Validation'!$I14)*1)))))","v":55}]
[null,null,null,null,3,{"$f":"TRANSPOSE(_xlfn._xlws.SORT(_xlfn.UNIQUE(_xlfn._xlws.FILTER(Data[Unit No],\nIF(ISBLANK('Interdependent Data Validation'!$F15),1,(Data[Quarter]='Interdependent Data Validation'!$F15)*1)\n*IF(ISBLANK('Interdependent Data Validation'!$G15),1,(Data[Division]='Interdependent Data Validation'!$G15)*1)\n*IF(ISBLANK('Interdependent Data Validation'!$I15),1,(Data[Manager]='Interdependent Data Validation'!$I15)*1)))))","v":76}]
[null,null,null,null,4,{"$f":"TRANSPOSE(_xlfn._xlws.SORT(_xlfn.UNIQUE(_xlfn._xlws.FILTER(Data[Unit No],\nIF(ISBLANK('Interdependent Data Validation'!$F16),1,(Data[Quarter]='Interdependent Data Validation'!$F16)*1)\n*IF(ISBLANK('Interdependent Data Validation'!$G16),1,(Data[Division]='Interdependent Data Validation'!$G16)*1)\n*IF(ISBLANK('Interdependent Data Validation'!$I16),1,(Data[Manager]='Interdependent Data Validation'!$I16)*1)))))","v":1},2,3,4,5,6,7,8,9,10,11,12,13,14,15,16,17,18,19,20,21,22,23,24,25,26,27,28,29,30,31,32,33,34,35,36,37,38,39,40,41,42,43,44,45,46,47,48,49,50,51,52,53,54,55,56,57,58,59,60,61,62,63,64,65,66,67,68,69,70,71,72,73,74,75,76,77,78,79,80,81,82,83,84,85,86,87,88,89,90,91,92,93,94,95,96,97,98,99,100,101,102,103,104,105,106,107,108,109,110,111,112,113,114,115,116,117,118,119,120,121,122,123,124,125,126,127,128,129,130]
[null,null,null,null,5,{"$f":"TRANSPOSE(_xlfn._xlws.SORT(_xlfn.UNIQUE(_xlfn._xlws.FILTER(Data[Unit No],\nIF(ISBLANK('Interdependent Data Validation'!$F17),1,(Data[Quarter]='Interdependent Data Validation'!$F17)*1)\n*IF(ISBLANK('Interdependent Data Validation'!$G17),1,(Data[Division]='Interdependent Data Validation'!$G17)*1)\n*IF(ISBLANK('Interdependent Data Validation'!$I17),1,(Data[Manager]='Interdependent Data Validation'!$I17)*1)))))","v":1},2,3,4,5,6,7,8,9,10,11,12,13,14,15,16,17,18,19,20,21,22,23,24,25,26,27,28,29,30,31,32,33,34,35,36,37,38,39,40,41,42,43,44,45,46,47,48,49,50,51,52,53,54,55,56,57,58,59,60,61,62,63,64,65,66,67,68,69,70,71,72,73,74,75,76,77,78,79,80,81,82,83,84,85,86,87,88,89,90,91,92,93,94,95,96,97,98,99,100,101,102,103,104,105,106,107,108,109,110,111,112,113,114,115,116,117,118,119,120,121,122,123,124,125,126,127,128,129,130]
[null,null,null,null,6,{"$f":"TRANSPOSE(_xlfn._xlws.SORT(_xlfn.UNIQUE(_xlfn._xlws.FILTER(Data[Unit No],\nIF(ISBLANK('Interdependent Data Validation'!$F18),1,(Data[Quarter]='Interdependent Data Validation'!$F18)*1)\n*IF(ISBLANK('Interdependent Data Validation'!$G18),1,(Data[Division]='Interdependent Data Validation'!$G18)*1)\n*IF(ISBLANK('Interdependent Data Validation'!$I18),1,(Data[Manager]='Interdependent Data Validation'!$I18)*1)))))","v":1},2,3,4,5,6,7,8,9,10,11,12,13,14,15,16,17,18,19,20,21,22,23,24,25,26,27,28,29,30,31,32,33,34,35,36,37,38,39,40,41,42,43,44,45,46,47,48,49,50,51,52,53,54,55,56,57,58,59,60,61,62,63,64,65,66,67,68,69,70,71,72,73,74,75,76,77,78,79,80,81,82,83,84,85,86,87,88,89,90,91,92,93,94,95,96,97,98,99,100,101,102,103,104,105,106,107,108,109,110,111,112,113,114,115,116,117,118,119,120,121,122,123,124,125,126,127,128,129,130]
[null,null,null,null,7,{"$f":"TRANSPOSE(_xlfn._xlws.SORT(_xlfn.UNIQUE(_xlfn._xlws.FILTER(Data[Unit No],\nIF(ISBLANK('Interdependent Data Validation'!$F19),1,(Data[Quarter]='Interdependent Data Validation'!$F19)*1)\n*IF(ISBLANK('Interdependent Data Validation'!$G19),1,(Data[Division]='Interdependent Data Validation'!$G19)*1)\n*IF(ISBLANK('Interdependent Data Validation'!$I19),1,(Data[Manager]='Interdependent Data Validation'!$I19)*1)))))","v":1},2,3,4,5,6,7,8,9,10,11,12,13,14,15,16,17,18,19,20,21,22,23,24,25,26,27,28,29,30,31,32,33,34,35,36,37,38,39,40,41,42,43,44,45,46,47,48,49,50,51,52,53,54,55,56,57,58,59,60,61,62,63,64,65,66,67,68,69,70,71,72,73,74,75,76,77,78,79,80,81,82,83,84,85,86,87,88,89,90,91,92,93,94,95,96,97,98,99,100,101,102,103,104,105,106,107,108,109,110,111,112,113,114,115,116,117,118,119,120,121,122,123,124,125,126,127,128,129,130]
[null,null,null,null,8,{"$f":"TRANSPOSE(_xlfn._xlws.SORT(_xlfn.UNIQUE(_xlfn._xlws.FILTER(Data[Unit No],\nIF(ISBLANK('Interdependent Data Validation'!$F20),1,(Data[Quarter]='Interdependent Data Validation'!$F20)*1)\n*IF(ISBLANK('Interdependent Data Validation'!$G20),1,(Data[Division]='Interdependent Data Validation'!$G20)*1)\n*IF(ISBLANK('Interdependent Data Validation'!$I20),1,(Data[Manager]='Interdependent Data Validation'!$I20)*1)))))","v":1},2,3,4,5,6,7,8,9,10,11,12,13,14,15,16,17,18,19,20,21,22,23,24,25,26,27,28,29,30,31,32,33,34,35,36,37,38,39,40,41,42,43,44,45,46,47,48,49,50,51,52,53,54,55,56,57,58,59,60,61,62,63,64,65,66,67,68,69,70,71,72,73,74,75,76,77,78,79,80,81,82,83,84,85,86,87,88,89,90,91,92,93,94,95,96,97,98,99,100,101,102,103,104,105,106,107,108,109,110,111,112,113,114,115,116,117,118,119,120,121,122,123,124,125,126,127,128,129,130]
[null,null,null,null,9,{"$f":"TRANSPOSE(_xlfn._xlws.SORT(_xlfn.UNIQUE(_xlfn._xlws.FILTER(Data[Unit No],\nIF(ISBLANK('Interdependent Data Validation'!$F21),1,(Data[Quarter]='Interdependent Data Validation'!$F21)*1)\n*IF(ISBLANK('Interdependent Data Validation'!$G21),1,(Data[Division]='Interdependent Data Validation'!$G21)*1)\n*IF(ISBLANK('Interdependent Data Validation'!$I21),1,(Data[Manager]='Interdependent Data Validation'!$I21)*1)))))","v":1},2,3,4,5,6,7,8,9,10,11,12,13,14,15,16,17,18,19,20,21,22,23,24,25,26,27,28,29,30,31,32,33,34,35,36,37,38,39,40,41,42,43,44,45,46,47,48,49,50,51,52,53,54,55,56,57,58,59,60,61,62,63,64,65,66,67,68,69,70,71,72,73,74,75,76,77,78,79,80,81,82,83,84,85,86,87,88,89,90,91,92,93,94,95,96,97,98,99,100,101,102,103,104,105,106,107,108,109,110,111,112,113,114,115,116,117,118,119,120,121,122,123,124,125,126,127,128,129,130]
[null,null,null,null,10,{"$f":"TRANSPOSE(_xlfn._xlws.SORT(_xlfn.UNIQUE(_xlfn._xlws.FILTER(Data[Unit No],\nIF(ISBLANK('Interdependent Data Validation'!$F22),1,(Data[Quarter]='Interdependent Data Validation'!$F22)*1)\n*IF(ISBLANK('Interdependent Data Validation'!$G22),1,(Data[Division]='Interdependent Data Validation'!$G22)*1)\n*IF(ISBLANK('Interdependent Data Validation'!$I22),1,(Data[Manager]='Interdependent Data Validation'!$I22)*1)))))","v":1},2,3,4,5,6,7,8,9,10,11,12,13,14,15,16,17,18,19,20,21,22,23,24,25,26,27,28,29,30,31,32,33,34,35,36,37,38,39,40,41,42,43,44,45,46,47,48,49,50,51,52,53,54,55,56,57,58,59,60,61,62,63,64,65,66,67,68,69,70,71,72,73,74,75,76,77,78,79,80,81,82,83,84,85,86,87,88,89,90,91,92,93,94,95,96,97,98,99,100,101,102,103,104,105,106,107,108,109,110,111,112,113,114,115,116,117,118,119,120,121,122,123,124,125,126,127,128,129,130]

{"sheet":"Manager Data Validation","index":10,"n_rows":22,"n_cols":105,"rows_kept":22,"cut":false,"hidden":false,"merged":[[2,0,2,4]]}
[{"$f":"IF(ISERROR(RIGHT(CELL(\"filename\",A1),LEN(CELL(\"filename\",A1))-FIND(\"]\",CELL(\"filename\",A1)))),\n\"\",\nRIGHT(CELL(\"filename\",A1),LEN(CELL(\"filename\",A1))-FIND(\"]\",CELL(\"filename\",A1))))","v":"Manager Data Validation"}]
[{"$f":"Model_Name","v":"SP Examples of Dependent Data Validation.xlsm"}]
["Navigator"]
[null,null,null,null,"Error Checks:",null,null,null,{"$f":"Overall_Error_Check","v":0}]
[]
[null,{"$f":"MAX($B$5:$B5)+1","v":1},"Workings"]
[]
[null,null,"For Calculation"]
[]
[null,null,null,{"$f":"A1","v":"Manager Data Validation"}]
[]
[null,null,null,null,"#"]
[null,null,null,null,{"$f":"N($E12)+1","v":1},{"$f":"TRANSPOSE(_xlfn._xlws.SORT(_xlfn.UNIQUE(_xlfn._xlws.FILTER(Data[Manager],\nIF(ISBLANK('Interdependent Data Validation'!$F13),1,(Data[Quarter]='Interdependent Data Validation'!$F13)*1)\n*IF(ISBLANK('Interdependent Data Validation'!$G13),1,(Data[Division]='Interdependent Data Validation'!$G13)*1)\n*IF(ISBLANK('Interdependent Data Validation'!$H13),1,(Data[Unit No]='Interdependent Data Validation'!$H13)*1)\n))))","v":"Erin Johns"},"Everett Gill"]
[null,null,null,null,{"$f":"N($E13)+1","v":2},{"$f":"TRANSPOSE(_xlfn._xlws.SORT(_xlfn.UNIQUE(_xlfn._xlws.FILTER(Data[Manager],\nIF(ISBLANK('Interdependent Data Validation'!$F14),1,(Data[Quarter]='Interdependent Data Validation'!$F14)*1)\n*IF(ISBLANK('Interdependent Data Validation'!$G14),1,(Data[Division]='Interdependent Data Validation'!$G14)*1)\n*IF(ISBLANK('Interdependent Data Validation'!$H14),1,(Data[Unit No]='Interdependent Data Validation'!$H14)*1)\n))))","v":"Catalina Richards"},"Christopher Bates","Dixie Stanton","Douglas Barry","Ishaan Hardy","Jasmine Newton","Laura Barrett","Maren Sweeney","Savanna Dixon","Shaniya Franklin"]
[null,null,null,null,3,{"$f":"TRANSPOSE(_xlfn._xlws.SORT(_xlfn.UNIQUE(_xlfn._xlws.FILTER(Data[Manager],\nIF(ISBLANK('Interdependent Data Validation'!$F15),1,(Data[Quarter]='Interdependent Data Validation'!$F15)*1)\n*IF(ISBLANK('Interdependent Data Validation'!$G15),1,(Data[Division]='Interdependent Data Validation'!$G15)*1)\n*IF(ISBLANK('Interdependent Data Validation'!$H15),1,(Data[Unit No]='Interdependent Data Validation'!$H15)*1)\n))))","v":"Amber Spence"},"Carter Obrien","Everett Gill","Tyler Lynch"]
[null,null,null,null,4,{"$f":"TRANSPOSE(_xlfn._xlws.SORT(_xlfn.UNIQUE(_xlfn._xlws.FILTER(Data[Manager],\nIF(ISBLANK('Interdependent Data Validation'!$F16),1,(Data[Quarter]='Interdependent Data Validation'!$F16)*1)\n*IF(ISBLANK('Interdependent Data Validation'!$G16),1,(Data[Division]='Interdependent Data Validation'!$G16)*1)\n*IF(ISBLANK('Interdependent Data Validation'!$H16),1,(Data[Unit No]='Interdependent Data Validation'!$H16)*1)\n))))","v":"Abdullah Bridges"},"Addyson Mccormick","Akira Murray","Alejandra Clements","Alexander Moses","Alisha Woodward","Allie Franklin","Alondra Long","Amber Spence","America Choi","Ari Hernandez","Armando Hoover","Arthur Patton","Ashanti Leblanc","Asher Dunn","Asia Hendricks","Baron Dougherty","Benjamin Bell","Braylon Townsend","Brennan Campos","Brooke Ritter","Carter Obrien","Catalina Richards","Christopher Bates","Cristal York","Cruz Short","Dane Patton","Declan Figueroa","Dixie Stanton","Donald Mcfarland","Donna Warren","Douglas Barry","Eileen Knox","Ellie Jensen","Emery Estes","Emma Mitchell","Emmett Esparza","Enrique Lambert","Erin Johns","Everett Gill","Francisco Stevenson","Frederick Knapp","Gilberto Yoder","Grant Snow","Heidy White","Ingrid Parker","Ishaan Hardy","Jacob Howell","Jaden Davidson","Jamarion Kelly","Jasmine Newton","Javier Meyers","Jaylene Jones","Jonathan Paul","Jovan Solomon","Julianna Knox","Kamila Waters","Karina Cisneros","Karson Choi","Keenan Sawyer","Kennedy Christian","Khloe Michael","Kiley Rollins","Kolton Elliott","Laura Barrett","Leonard Monroe","Lizbeth Carrillo","Lorelei Mccoy","Luciano Jackson","Maren Sweeney","Mariyah Randall","Markus Benson","Marley George","Miya Miranda","Morgan Rose","Paityn Olson","Parker Woods","Payton Horn","Pierre Cain","Porter Leach","Precious Guerrero","Raiden Shelton","Regina Freeman","Ricardo Jacobs","Rigoberto Bush","Sadie Pierce","Sanaa Dunn","Sarai Kemp","Savanna Dixon","Scarlett Calhoun","Shaniya Franklin","Stanley Gonzales","Stephen Booth","Terrance Sampson","Tomas Suarez","Trystan Norton","Tyler Lynch","Tyree Adkins","Valentina Durham","Zayne Dunn"]
[null,null,null,null,5,{"$f":"TRANSPOSE(_xlfn._xlws.SORT(_xlfn.UNIQUE(_xlfn._xlws.FILTER(Data[Manager],\nIF(ISBLANK('Interdependent Data Validation'!$F17),1,(Data[Quarter]='Interdependent Data Validation'!$F17)*1)\n*IF(ISBLANK('Interdependent Data Validation'!$G17),1,(Data[Division]='Interdependent Data Validation'!$G17)*1)\n*IF(ISBLANK('Interdependent Data Validation'!$H17),1,(Data[Unit No]='Interdependent Data Validation'!$H17)*1)\n))))","v":"Abdullah Bridges"},"Addyson Mccormick","Akira Murray","Alejandra Clements","Alexander Moses","Alisha Woodward","Allie Franklin","Alondra Long","Amber Spence","America Choi","Ari Hernandez","Armando Hoover","Arthur Patton","Ashanti Leblanc","Asher Dunn","Asia Hendricks","Baron Dougherty","Benjamin Bell","Braylon Townsend","Brennan Campos","Brooke Ritter","Carter Obrien","Catalina Richards","Christopher Bates","Cristal York","Cruz Short","Dane Patton","Declan Figueroa","Dixie Stanton","Donald Mcfarland","Donna Warren","Douglas Barry","Eileen Knox","Ellie Jensen","Emery Estes","Emma Mitchell","Emmett Esparza","Enrique Lambert","Erin Johns","Everett Gill","Francisco Stevenson","Frederick Knapp","Gilberto Yoder","Grant Snow","Heidy White","Ingrid Parker","Ishaan Hardy","Jacob Howell","Jaden Davidson","Jamarion Kelly","Jasmine Newton","Javier Meyers","Jaylene Jones","Jonathan Paul","Jovan Solomon","Julianna Knox","Kamila Waters","Karina Cisneros","Karson Choi","Keenan Sawyer","Kennedy Christian","Khloe Michael","Kiley Rollins","Kolton Elliott","Laura Barrett","Leonard Monroe","Lizbeth Carrillo","Lorelei Mccoy","Luciano Jackson","Maren Sweeney","Mariyah Randall","Markus Benson","Marley George","Miya Miranda","Morgan Rose","Paityn Olson","Parker Woods","Payton Horn","Pierre Cain","Porter Leach","Precious Guerrero","Raiden Shelton","Regina Freeman","Ricardo Jacobs","Rigoberto Bush","Sadie Pierce","Sanaa Dunn","Sarai Kemp","Savanna Dixon","Scarlett Calhoun","Shaniya Franklin","Stanley Gonzales","Stephen Booth","Terrance Sampson","Tomas Suarez","Trystan Norton","Tyler Lynch","Tyree Adkins","Valentina Durham","Zayne Dunn"]
[null,null,null,null,6,{"$f":"TRANSPOSE(_xlfn._xlws.SORT(_xlfn.UNIQUE(_xlfn._xlws.FILTER(Data[Manager],\nIF(ISBLANK('Interdependent Data Validation'!$F18),1,(Data[Quarter]='Interdependent Data Validation'!$F18)*1)\n*IF(ISBLANK('Interdependent Data Validation'!$G18),1,(Data[Division]='Interdependent Data Validation'!$G18)*1)\n*IF(ISBLANK('Interdependent Data Validation'!$H18),1,(Data[Unit No]='Interdependent Data Validation'!$H18)*1)\n))))","v":"Abdullah Bridges"},"Addyson Mccormick","Akira Murray","Alejandra Clements","Alexander Moses","Alisha Woodward","Allie Franklin","Alondra Long","Amber Spence","America Choi","Ari Hernandez","Armando Hoover","Arthur Patton","Ashanti Leblanc","Asher Dunn","Asia Hendricks","Baron Dougherty","Benjamin Bell","Braylon Townsend","Brennan Campos","Brooke Ritter","Carter Obrien","Catalina Richards","Christopher Bates","Cristal York","Cruz Short","Dane Patton","Declan Figueroa","Dixie Stanton","Donald Mcfarland","Donna Warren","Douglas Barry","Eileen Knox","Ellie Jensen","Emery Estes","Emma Mitchell","Emmett Esparza","Enrique Lambert","Erin Johns","Everett Gill","Francisco Stevenson","Frederick Knapp","Gilberto Yoder","Grant Snow","Heidy White","Ingrid Parker","Ishaan Hardy","Jacob Howell","Jaden Davidson","Jamarion Kelly","Jasmine Newton","Javier Meyers","Jaylene Jones","Jonathan Paul","Jovan Solomon","Julianna Knox","Kamila Waters","Karina Cisneros","Karson Choi","Keenan Sawyer","Kennedy Christian","Khloe Michael","Kiley Rollins","Kolton Elliott","Laura Barrett","Leonard Monroe","Lizbeth Carrillo","Lorelei Mccoy","Luciano Jackson","Maren Sweeney","Mariyah Randall","Markus Benson","Marley George","Miya Miranda","Morgan Rose","Paityn Olson","Parker Woods","Payton Horn","Pierre Cain","Porter Leach","Precious Guerrero","Raiden Shelton","Regina Freeman","Ricardo Jacobs","Rigoberto Bush","Sadie Pierce","Sanaa Dunn","Sarai Kemp","Savanna Dixon","Scarlett Calhoun","Shaniya Franklin","Stanley Gonzales","Stephen Booth","Terrance Sampson","Tomas Suarez","Trystan Norton","Tyler Lynch","Tyree Adkins","Valentina Durham","Zayne Dunn"]
[null,null,null,null,7,{"$f":"TRANSPOSE(_xlfn._xlws.SORT(_xlfn.UNIQUE(_xlfn._xlws.FILTER(Data[Manager],\nIF(ISBLANK('Interdependent Data Validation'!$F19),1,(Data[Quarter]='Interdependent Data Validation'!$F19)*1)\n*IF(ISBLANK('Interdependent Data Validation'!$G19),1,(Data[Division]='Interdependent Data Validation'!$G19)*1)\n*IF(ISBLANK('Interdependent Data Validation'!$H19),1,(Data[Unit No]='Interdependent Data Validation'!$H19)*1)\n))))","v":"Abdullah Bridges"},"Addyson Mccormick","Akira Murray","Alejandra Clements","Alexander Moses","Alisha Woodward","Allie Franklin","Alondra Long","Amber Spence","America Choi","Ari Hernandez","Armando Hoover","Arthur Patton","Ashanti Leblanc","Asher Dunn","Asia Hendricks","Baron Dougherty","Benjamin Bell","Braylon Townsend","Brennan Campos","Brooke Ritter","Carter Obrien","Catalina Richards","Christopher Bates","Cristal York","Cruz Short","Dane Patton","Declan Figueroa","Dixie Stanton","Donald Mcfarland","Donna Warren","Douglas Barry","Eileen Knox","Ellie Jensen","Emery Estes","Emma Mitchell","Emmett Esparza","Enrique Lambert","Erin Johns","Everett Gill","Francisco Stevenson","Frederick Knapp","Gilberto Yoder","Grant Snow","Heidy White","Ingrid Parker","Ishaan Hardy","Jacob Howell","Jaden Davidson","Jamarion Kelly","Jasmine Newton","Javier Meyers","Jaylene Jones","Jonathan Paul","Jovan Solomon","Julianna Knox","Kamila Waters","Karina Cisneros","Karson Choi","Keenan Sawyer","Kennedy Christian","Khloe Michael","Kiley Rollins","Kolton Elliott","Laura Barrett","Leonard Monroe","Lizbeth Carrillo","Lorelei Mccoy","Luciano Jackson","Maren Sweeney","Mariyah Randall","Markus Benson","Marley George","Miya Miranda","Morgan Rose","Paityn Olson","Parker Woods","Payton Horn","Pierre Cain","Porter Leach","Precious Guerrero","Raiden Shelton","Regina Freeman","Ricardo Jacobs","Rigoberto Bush","Sadie Pierce","Sanaa Dunn","Sarai Kemp","Savanna Dixon","Scarlett Calhoun","Shaniya Franklin","Stanley Gonzales","Stephen Booth","Terrance Sampson","Tomas Suarez","Trystan Norton","Tyler Lynch","Tyree Adkins","Valentina Durham","Zayne Dunn"]
[null,null,null,null,8,{"$f":"TRANSPOSE(_xlfn._xlws.SORT(_xlfn.UNIQUE(_xlfn._xlws.FILTER(Data[Manager],\nIF(ISBLANK('Interdependent Data Validation'!$F20),1,(Data[Quarter]='Interdependent Data Validation'!$F20)*1)\n*IF(ISBLANK('Interdependent Data Validation'!$G20),1,(Data[Division]='Interdependent Data Validation'!$G20)*1)\n*IF(ISBLANK('Interdependent Data Validation'!$H20),1,(Data[Unit No]='Interdependent Data Validation'!$H20)*1)\n))))","v":"Abdullah Bridges"},"Addyson Mccormick","Akira Murray","Alejandra Clements","Alexander Moses","Alisha Woodward","Allie Franklin","Alondra Long","Amber Spence","America Choi","Ari Hernandez","Armando Hoover","Arthur Patton","Ashanti Leblanc","Asher Dunn","Asia Hendricks","Baron Dougherty","Benjamin Bell","Braylon Townsend","Brennan Campos","Brooke Ritter","Carter Obrien","Catalina Richards","Christopher Bates","Cristal York","Cruz Short","Dane Patton","Declan Figueroa","Dixie Stanton","Donald Mcfarland","Donna Warren","Douglas Barry","Eileen Knox","Ellie Jensen","Emery Estes","Emma Mitchell","Emmett Esparza","Enrique Lambert","Erin Johns","Everett Gill","Francisco Stevenson","Frederick Knapp","Gilberto Yoder","Grant Snow","Heidy White","Ingrid Parker","Ishaan Hardy","Jacob Howell","Jaden Davidson","Jamarion Kelly","Jasmine Newton","Javier Meyers","Jaylene Jones","Jonathan Paul","Jovan Solomon","Julianna Knox","Kamila Waters","Karina Cisneros","Karson Choi","Keenan Sawyer","Kennedy Christian","Khloe Michael","Kiley Rollins","Kolton Elliott","Laura Barrett","Leonard Monroe","Lizbeth Carrillo","Lorelei Mccoy","Luciano Jackson","Maren Sweeney","Mariyah Randall","Markus Benson","Marley George","Miya Miranda","Morgan Rose","Paityn Olson","Parker Woods","Payton Horn","Pierre Cain","Porter Leach","Precious Guerrero","Raiden Shelton","Regina Freeman","Ricardo Jacobs","Rigoberto Bush","Sadie Pierce","Sanaa Dunn","Sarai Kemp","Savanna Dixon","Scarlett Calhoun","Shaniya Franklin","Stanley Gonzales","Stephen Booth","Terrance Sampson","Tomas Suarez","Trystan Norton","Tyler Lynch","Tyree Adkins","Valentina Durham","Zayne Dunn"]
[null,null,null,null,9,{"$f":"TRANSPOSE(_xlfn._xlws.SORT(_xlfn.UNIQUE(_xlfn._xlws.FILTER(Data[Manager],\nIF(ISBLANK('Interdependent Data Validation'!$F21),1,(Data[Quarter]='Interdependent Data Validation'!$F21)*1)\n*IF(ISBLANK('Interdependent Data Validation'!$G21),1,(Data[Division]='Interdependent Data Validation'!$G21)*1)\n*IF(ISBLANK('Interdependent Data Validation'!$H21),1,(Data[Unit No]='Interdependent Data Validation'!$H21)*1)\n))))","v":"Abdullah Bridges"},"Addyson Mccormick","Akira Murray","Alejandra Clements","Alexander Moses","Alisha Woodward","Allie Franklin","Alondra Long","Amber Spence","America Choi","Ari Hernandez","Armando Hoover","Arthur Patton","Ashanti Leblanc","Asher Dunn","Asia Hendricks","Baron Dougherty","Benjamin Bell","Braylon Townsend","Brennan Campos","Brooke Ritter","Carter Obrien","Catalina Richards","Christopher Bates","Cristal York","Cruz Short","Dane Patton","Declan Figueroa","Dixie Stanton","Donald Mcfarland","Donna Warren","Douglas Barry","Eileen Knox","Ellie Jensen","Emery Estes","Emma Mitchell","Emmett Esparza","Enrique Lambert","Erin Johns","Everett Gill","Francisco Stevenson","Frederick Knapp","Gilberto Yoder","Grant Snow","Heidy White","Ingrid Parker","Ishaan Hardy","Jacob Howell","Jaden Davidson","Jamarion Kelly","Jasmine Newton","Javier Meyers","Jaylene Jones","Jonathan Paul","Jovan Solomon","Julianna Knox","Kamila Waters","Karina Cisneros","Karson Choi","Keenan Sawyer","Kennedy Christian","Khloe Michael","Kiley Rollins","Kolton Elliott","Laura Barrett","Leonard Monroe","Lizbeth Carrillo","Lorelei Mccoy","Luciano Jackson","Maren Sweeney","Mariyah Randall","Markus Benson","Marley George","Miya Miranda","Morgan Rose","Paityn Olson","Parker Woods","Payton Horn","Pierre Cain","Porter Leach","Precious Guerrero","Raiden Shelton","Regina Freeman","Ricardo Jacobs","Rigoberto Bush","Sadie Pierce","Sanaa Dunn","Sarai Kemp","Savanna Dixon","Scarlett Calhoun","Shaniya Franklin","Stanley Gonzales","Stephen Booth","Terrance Sampson","Tomas Suarez","Trystan Norton","Tyler Lynch","Tyree Adkins","Valentina Durham","Zayne Dunn"]
[null,null,null,null,10,{"$f":"TRANSPOSE(_xlfn._xlws.SORT(_xlfn.UNIQUE(_xlfn._xlws.FILTER(Data[Manager],\nIF(ISBLANK('Interdependent Data Validation'!$F22),1,(Data[Quarter]='Interdependent Data Validation'!$F22)*1)\n*IF(ISBLANK('Interdependent Data Validation'!$G22),1,(Data[Division]='Interdependent Data Validation'!$G22)*1)\n*IF(ISBLANK('Interdependent Data Validation'!$H22),1,(Data[Unit No]='Interdependent Data Validation'!$H22)*1)\n))))","v":"Abdullah Bridges"},"Addyson Mccormick","Akira Murray","Alejandra Clements","Alexander Moses","Alisha Woodward","Allie Franklin","Alondra Long","Amber Spence","America Choi","Ari Hernandez","Armando Hoover","Arthur Patton","Ashanti Leblanc","Asher Dunn","Asia Hendricks","Baron Dougherty","Benjamin Bell","Braylon Townsend","Brennan Campos","Brooke Ritter","Carter Obrien","Catalina Richards","Christopher Bates","Cristal York","Cruz Short","Dane Patton","Declan Figueroa","Dixie Stanton","Donald Mcfarland","Donna Warren","Douglas Barry","Eileen Knox","Ellie Jensen","Emery Estes","Emma Mitchell","Emmett Esparza","Enrique Lambert","Erin Johns","Everett Gill","Francisco Stevenson","Frederick Knapp","Gilberto Yoder","Grant Snow","Heidy White","Ingrid Parker","Ishaan Hardy","Jacob Howell","Jaden Davidson","Jamarion Kelly","Jasmine Newton","Javier Meyers","Jaylene Jones","Jonathan Paul","Jovan Solomon","Julianna Knox","Kamila Waters","Karina Cisneros","Karson Choi","Keenan Sawyer","Kennedy Christian","Khloe Michael","Kiley Rollins","Kolton Elliott","Laura Barrett","Leonard Monroe","Lizbeth Carrillo","Lorelei Mccoy","Luciano Jackson","Maren Sweeney","Mariyah Randall","Markus Benson","Marley George","Miya Miranda","Morgan Rose","Paityn Olson","Parker Woods","Payton Horn","Pierre Cain","Porter Leach","Precious Guerrero","Raiden Shelton","Regina Freeman","Ricardo Jacobs","Rigoberto Bush","Sadie Pierce","Sanaa Dunn","Sarai Kemp","Savanna Dixon","Scarlett Calhoun","Shaniya Franklin","Stanley Gonzales","Stephen Booth","Terrance Sampson","Tomas Suarez","Trystan Norton","Tyler Lynch","Tyree Adkins","Valentina Durham","Zayne Dunn"]

{"sheet":"Error Checks","index":11,"n_rows":17,"n_cols":9,"rows_kept":17,"cut":false,"hidden":false,"merged":[[0,8,0,9],[2,0,2,4]]}
[{"$f":"IF(ISERROR(RIGHT(CELL(\"filename\",A1),LEN(CELL(\"filename\",A1))-FIND(\"]\",CELL(\"filename\",A1)))),\n\"\",\nRIGHT(CELL(\"filename\",A1),LEN(CELL(\"filename\",A1))-FIND(\"]\",CELL(\"filename\",A1))))","v":"Error Checks"}]
[{"$f":"Model_Name","v":"SP Examples of Dependent Data Validation.xlsm"}]
["Navigator"]
[null,"Error Checks:",null,null,null,{"$f":"Overall_Error_Check","v":0}]
[]
[null,{"$f":"MAX($B$5:$B5)+1","v":1},"Error Checks"]
[]
[null,null,"Summary of Errors"]
[]
[null,null,null,"Assumptions"]
[]
[null,null,null,null,"Hierarchical Data Validation OK",null,null,null,{"$f":"HL_Hierarchical_Data_Validation_OK","v":0}]
[null,null,null,null,"Interpendent Data Validation OK",null,null,null,{"$f":"HL_Input_Error","v":0}]
[]
[]
[]
[null,null,null,null,{"$f":"C8","v":"Summary of Errors"},null,null,null,{"$f":"MIN(1,SUM(I11:I15))","v":0}]